OrganisationNameLabel,OrganisationURI,EffectiveDate,Directorate/ServiceWhereExpenditureIncurred,ServiceCategoryLabel,ServiceCategoryURI,Supplier,SupplierRegisteredCompany Number,PaymentDate,TransactionNumber,NetAmount,IrrecoverableVAT,PurposeOfSpend,ProcurementClassification:ProclassLabel,ProcrementClassification:ProClassCode
South Lakeland District Council,http://opendatacommunities.org/id/district-council/south-lakeland,30/04/2018,Development Implementation,Cultural Environmental Regulatory & Planning Services,http://opendatacommunities.org/def/concept/finance/sercop/objective/104,KENDAL COLLEGE,,04-04-2018,0000075436,53181,0,Management Fee for Kendal Museum,908999,Public Bodies Not Elsewhere Classified
South Lakeland District Council,http://opendatacommunities.org/id/district-council/south-lakeland,30/04/2018,ICT Group,Central Services,http://opendatacommunities.org/def/concept/finance/sercop/objective/102,GGP Systems Limited,2685491,18-04-2018,0000075802,9000,0,Setup and training costs for new,270000,Information Communications Technology
South Lakeland District Council,http://opendatacommunities.org/id/district-council/south-lakeland,30/04/2018,Business Support Community Services,Internal Trading Accounts,,COMPASS COMPONENTS,,11-04-2018,0000076016,134.1,0,Consumables 2018/19,101400,Building General Materials
South Lakeland District Council,http://opendatacommunities.org/id/district-council/south-lakeland,30/04/2018,Development Implementation,Cultural Environmental Regulatory & Planning Services,http://opendatacommunities.org/def/concept/finance/sercop/objective/104,Ulverston Community Enterprises Ltd,08904327,11-04-2018,0000076152,26948,0,Grant Agreement 2018/19 (4 x Quarterly,201700,Financial Services Grants
South Lakeland District Council,http://opendatacommunities.org/id/district-council/south-lakeland,30/04/2018,ICT Group,Central Services,http://opendatacommunities.org/def/concept/finance/sercop/objective/102,Envitia Ltd,02348404,09-04-2018,0000076197,4634,0,Quote AQU1425-1.0,271440,ICT Software
South Lakeland District Council,http://opendatacommunities.org/id/district-council/south-lakeland,30/04/2018,ICT Group,Central Services,http://opendatacommunities.org/def/concept/finance/sercop/objective/102,IT PROFESSIONAL SERVICES (ITPS),,11-04-2018,0000076230,7314.29,0,Annual charge for hosted SIP gateway.,279999,ICT Not Elsewhere Classified
South Lakeland District Council,http://opendatacommunities.org/id/district-council/south-lakeland,30/04/2018,Revenues and Benefits,Central Services,http://opendatacommunities.org/def/concept/finance/sercop/objective/102,TAMESIDE METROPOLITAN BOROUGH,,27-03-2018,0000076267,1050,0,NAFN Subs to National Anti Fraud,202100,Financial Services Subscriptions
South Lakeland District Council,http://opendatacommunities.org/id/district-council/south-lakeland,30/04/2018,Development Implementation,SLDC as Agent,,PS BUSINESS MATTERS,08147185,04-04-2018,0000076309,2000,0,Kendal Futures Programme Support,151900,Consultancy Management
South Lakeland District Council,http://opendatacommunities.org/id/district-council/south-lakeland,30/04/2018,Revenues and Benefits,Central Services,http://opendatacommunities.org/def/concept/finance/sercop/objective/102,TAMESIDE METROPOLITAN BOROUGH,,04-04-2018,0000076310,418.3,0,2017 - 18 NAFN credit and other,202100,Financial Services Subscriptions
South Lakeland District Council,http://opendatacommunities.org/id/district-council/south-lakeland,30/04/2018,Business Support Community Services,Highways & Transport Services,http://opendatacommunities.org/def/concept/finance/sercop/objective/107,CUMBRIA COUNTY COUNCIL,,04-04-2018,0000076324,378,0,Relocate street light number 101 at,908000,Public Bodies Council support services
South Lakeland District Council,http://opendatacommunities.org/id/district-council/south-lakeland,30/04/2018,Policy & Partnerships,Central Services,http://opendatacommunities.org/def/concept/finance/sercop/objective/102,NORTHGATE VEHICLE HIRE LTD,01434157,04-04-2018,0000076337,15.14,0,Car hire for LC 23rd March 2018,381600,Vehicle Mgt Leasing
South Lakeland District Council,http://opendatacommunities.org/id/district-council/south-lakeland,30/04/2018,Financial Services,External Trading Accounts,,SOUTH LAKES HOUSING,IP031419,04-04-2018,0000076351,1665.88,0,SLH 50% share of Wayleave income 1718,191700,Facilities Property Management
South Lakeland District Council,http://opendatacommunities.org/id/district-council/south-lakeland,30/04/2018,ICT Group,Central Services,http://opendatacommunities.org/def/concept/finance/sercop/objective/102,Insight Direct (Uk) Ltd,2579852,04-04-2018,0000076352,1500,0,10x i7 hp 250 G6,271200,ICT Hardware
South Lakeland District Council,http://opendatacommunities.org/id/district-council/south-lakeland,30/04/2018,ICT Group,Central Services,http://opendatacommunities.org/def/concept/finance/sercop/objective/102,Insight Direct (Uk) Ltd,2579852,04-04-2018,0000076352,5000,0,10x i7 hp 250 G6,271200,ICT Hardware
South Lakeland District Council,http://opendatacommunities.org/id/district-council/south-lakeland,30/04/2018,Development Implementation,Planning and Development,,Roland Hill (Parsonby) Ltd,01018220,04-04-2018,0000076354,28227.92,0,Demolition & Asbestos Removal at North,391200,Construction Engineering
South Lakeland District Council,http://opendatacommunities.org/id/district-council/south-lakeland,30/04/2018,Development Implementation,Planning and Development,,John Wade Groundworks Ltd,,04-04-2018,0000076355,64980.09,0,New Road Groundworks,100000,Building Construction materials
South Lakeland District Council,http://opendatacommunities.org/id/district-council/south-lakeland,30/04/2018,Development Implementation,Cultural Environmental Regulatory & Planning Services,http://opendatacommunities.org/def/concept/finance/sercop/objective/104,DESIGNWORKS,,04-04-2018,0000076356,2640.5,0,Invest & Mintworks Marketing (RB9316),191100,Facilities Design & Photography
South Lakeland District Council,http://opendatacommunities.org/id/district-council/south-lakeland,30/04/2018,ICT Group,Central Services,http://opendatacommunities.org/def/concept/finance/sercop/objective/102,VODAFONE LIMITED,01471587,04-04-2018,0000076357,540,0,New mobile phones and contracts for,271800,ICT Telecommunications Mobile
South Lakeland District Council,http://opendatacommunities.org/id/district-council/south-lakeland,30/04/2018,Social Enterprise Admin,Central Services,http://opendatacommunities.org/def/concept/finance/sercop/objective/102,WOOF'S OF SEDBERGH,,04-04-2018,0000076358,200,0,MINI BUS SITE VISITS FOR MEMBERS RE,361300,Public Transport Passenger Transport
South Lakeland District Council,http://opendatacommunities.org/id/district-council/south-lakeland,30/04/2018,Social Enterprise Admin,Central Services,http://opendatacommunities.org/def/concept/finance/sercop/objective/102,WOOF'S OF SEDBERGH,,04-04-2018,0000076359,360,0,MINI BUS SITE VISITS FOR MEMBERS RE,361300,Public Transport Passenger Transport
South Lakeland District Council,http://opendatacommunities.org/id/district-council/south-lakeland,30/04/2018,Social Enterprise Admin,Central Services,http://opendatacommunities.org/def/concept/finance/sercop/objective/102,WOOF'S OF SEDBERGH,,04-04-2018,0000076360,180,0,MINI BUS SITE VISITS FOR MEMBERS RE,361300,Public Transport Passenger Transport
South Lakeland District Council,http://opendatacommunities.org/id/district-council/south-lakeland,30/04/2018,Social Enterprise Admin,Central Services,http://opendatacommunities.org/def/concept/finance/sercop/objective/102,WOOF'S OF SEDBERGH,,04-04-2018,0000076361,180,0,MINI BUS SITE VISITS FOR MEMBERS RE,361300,Public Transport Passenger Transport
South Lakeland District Council,http://opendatacommunities.org/id/district-council/south-lakeland,30/04/2018,Development Implementation,Cultural Environmental Regulatory & Planning Services,http://opendatacommunities.org/def/concept/finance/sercop/objective/104,PS BUSINESS MATTERS,08147185,04-04-2018,0000076362,700,0,Marketing Support Project - Mintworks,151900,Consultancy Management
South Lakeland District Council,http://opendatacommunities.org/id/district-council/south-lakeland,30/04/2018,Kendal Town Hall,Cultural Environmental Regulatory & Planning Services,http://opendatacommunities.org/def/concept/finance/sercop/objective/104,W MCCLURE LTD,00685360,04-04-2018,0000076363,207.2,0,Semi-Skimmed Milk Portions - Per Outer,111200,Catering Food & Beverages
South Lakeland District Council,http://opendatacommunities.org/id/district-council/south-lakeland,30/04/2018,Social Enterprise Admin,Cultural Environmental Regulatory & Planning Services,http://opendatacommunities.org/def/concept/finance/sercop/objective/104,THOMSON REUTERS (PROFESSIONAL) UK LTD,01679046,09-04-2018,0000076364,69,0,PLANNING CONT THEIR REINFORCEMENT REL 23,202100,Financial Services Subscriptions
South Lakeland District Council,http://opendatacommunities.org/id/district-council/south-lakeland,30/04/2018,Business Support Community Services,Cultural Environmental Regulatory & Planning Services,http://opendatacommunities.org/def/concept/finance/sercop/objective/104,ARCO LIMITED,00133804,04-04-2018,0000076365,88.65,0,PPE 2016/17,141100,Clothing Protective
South Lakeland District Council,http://opendatacommunities.org/id/district-council/south-lakeland,30/04/2018,Business Support Community Services,Cultural Environmental Regulatory & Planning Services,http://opendatacommunities.org/def/concept/finance/sercop/objective/104,ARCO LIMITED,00133804,04-04-2018,0000076366,-20.62,0,PPE 2016/17,141100,Clothing Protective
South Lakeland District Council,http://opendatacommunities.org/id/district-council/south-lakeland,30/04/2018,Business Support Community Services,Cultural Environmental Regulatory & Planning Services,http://opendatacommunities.org/def/concept/finance/sercop/objective/104,TPS Preston,,04-04-2018,0000076367,34.2,0,Parts,381400,Vehicle Mgt Maintenance
South Lakeland District Council,http://opendatacommunities.org/id/district-council/south-lakeland,30/04/2018,Business Support Community Services,Cultural Environmental Regulatory & Planning Services,http://opendatacommunities.org/def/concept/finance/sercop/objective/104,Southfield Garage,,04-04-2018,0000076368,150,0,Repair SL030,380000,Vehicle Management
South Lakeland District Council,http://opendatacommunities.org/id/district-council/south-lakeland,30/04/2018,Business Support Community Services,Cultural Environmental Regulatory & Planning Services,http://opendatacommunities.org/def/concept/finance/sercop/objective/104,Southfield Garage,,04-04-2018,0000076369,320,0,Repair SL030,380000,Vehicle Management
South Lakeland District Council,http://opendatacommunities.org/id/district-council/south-lakeland,30/04/2018,Business Support Community Services,Cultural Environmental Regulatory & Planning Services,http://opendatacommunities.org/def/concept/finance/sercop/objective/104,Southfield Garage,,04-04-2018,0000076370,180,0,Repair SL030,380000,Vehicle Management
South Lakeland District Council,http://opendatacommunities.org/id/district-council/south-lakeland,30/04/2018,Business Support Community Services,Cultural Environmental Regulatory & Planning Services,http://opendatacommunities.org/def/concept/finance/sercop/objective/104,Southfield Garage,,04-04-2018,0000076371,190,0,Repair SL030,380000,Vehicle Management
South Lakeland District Council,http://opendatacommunities.org/id/district-council/south-lakeland,30/04/2018,Business Support Community Services,Cultural Environmental Regulatory & Planning Services,http://opendatacommunities.org/def/concept/finance/sercop/objective/104,Southfield Garage,,04-04-2018,0000076372,490,0,Repair SL030,380000,Vehicle Management
South Lakeland District Council,http://opendatacommunities.org/id/district-council/south-lakeland,30/04/2018,Business Support Community Services,Cultural Environmental Regulatory & Planning Services,http://opendatacommunities.org/def/concept/finance/sercop/objective/104,Southfield Garage,,04-04-2018,0000076373,360,0,Repair SL030,380000,Vehicle Management
South Lakeland District Council,http://opendatacommunities.org/id/district-council/south-lakeland,30/04/2018,Business Support Community Services,Cultural Environmental Regulatory & Planning Services,http://opendatacommunities.org/def/concept/finance/sercop/objective/104,Southfield Garage,,04-04-2018,0000076374,600,0,Repair SL030,380000,Vehicle Management
South Lakeland District Council,http://opendatacommunities.org/id/district-council/south-lakeland,30/04/2018,Business Support Community Services,Cultural Environmental Regulatory & Planning Services,http://opendatacommunities.org/def/concept/finance/sercop/objective/104,HYDRAIR TRUCK & TRAILER PARTS LTD,,04-04-2018,0000076375,98.28,0,Parts,381500,Vehicle Mgt Parts
South Lakeland District Council,http://opendatacommunities.org/id/district-council/south-lakeland,30/04/2018,Business Support Community Services,Cultural Environmental Regulatory & Planning Services,http://opendatacommunities.org/def/concept/finance/sercop/objective/104,S J Bargh,00532272,04-04-2018,0000076376,230.98,0,MOTs 2017/18,381400,Vehicle Mgt Maintenance
South Lakeland District Council,http://opendatacommunities.org/id/district-council/south-lakeland,30/04/2018,Business Support Community Services,Cultural Environmental Regulatory & Planning Services,http://opendatacommunities.org/def/concept/finance/sercop/objective/104,S J Bargh,00532272,04-04-2018,0000076377,28,0,MOTs 2017/18,381400,Vehicle Mgt Maintenance
South Lakeland District Council,http://opendatacommunities.org/id/district-council/south-lakeland,30/04/2018,Business Support Community Services,Cultural Environmental Regulatory & Planning Services,http://opendatacommunities.org/def/concept/finance/sercop/objective/104,EK MOTOR FACTORS LTD,00838524,04-04-2018,0000076378,-6.5,0,Parts,381400,Vehicle Mgt Maintenance
South Lakeland District Council,http://opendatacommunities.org/id/district-council/south-lakeland,30/04/2018,Business Support Community Services,Cultural Environmental Regulatory & Planning Services,http://opendatacommunities.org/def/concept/finance/sercop/objective/104,CUMBRIA COUNTY COUNCIL,,04-04-2018,0000076379,19506.88,0,Tipping charges Feb 2018,908000,Public Bodies Council support services
South Lakeland District Council,http://opendatacommunities.org/id/district-council/south-lakeland,30/04/2018,Business Support Community Services,Cultural Environmental Regulatory & Planning Services,http://opendatacommunities.org/def/concept/finance/sercop/objective/104,SOLWAY DAF,1393710,04-04-2018,0000076380,320,0,Parts,381000,Vehicle Mgt Commercial
South Lakeland District Council,http://opendatacommunities.org/id/district-council/south-lakeland,30/04/2018,Business Support Community Services,Cultural Environmental Regulatory & Planning Services,http://opendatacommunities.org/def/concept/finance/sercop/objective/104,TPS Preston,,04-04-2018,0000076381,22.53,0,Parts,381400,Vehicle Mgt Maintenance
South Lakeland District Council,http://opendatacommunities.org/id/district-council/south-lakeland,30/04/2018,Business Support Community Services,Cultural Environmental Regulatory & Planning Services,http://opendatacommunities.org/def/concept/finance/sercop/objective/104,EK MOTOR FACTORS LTD,00838524,04-04-2018,0000076382,21.55,0,Parts,381400,Vehicle Mgt Maintenance
South Lakeland District Council,http://opendatacommunities.org/id/district-council/south-lakeland,30/04/2018,Business Support Community Services,Cultural Environmental Regulatory & Planning Services,http://opendatacommunities.org/def/concept/finance/sercop/objective/104,ADECCO UK LIMITED,00593232,04-04-2018,0000076383,487.08,0,Agency staff 2017/18,261400,HR Temporary & Agency Staff
South Lakeland District Council,http://opendatacommunities.org/id/district-council/south-lakeland,30/04/2018,Business Support Community Services,Cultural Environmental Regulatory & Planning Services,http://opendatacommunities.org/def/concept/finance/sercop/objective/104,K S INTERNATIONAL LTD,02703321,04-04-2018,0000076384,80,0,Parts,381500,Vehicle Mgt Parts
South Lakeland District Council,http://opendatacommunities.org/id/district-council/south-lakeland,30/04/2018,Business Support Community Services,Cultural Environmental Regulatory & Planning Services,http://opendatacommunities.org/def/concept/finance/sercop/objective/104,CANNON HYGIENE LTD,01298292,04-04-2018,0000076385,417.81,0,Clinical waste collections - 2017/18,131011,Cleaning & Janitorial Cleaning Materials
South Lakeland District Council,http://opendatacommunities.org/id/district-council/south-lakeland,30/04/2018,Business Support Community Services,Cultural Environmental Regulatory & Planning Services,http://opendatacommunities.org/def/concept/finance/sercop/objective/104,K S INTERNATIONAL LTD,02703321,04-04-2018,0000076386,75,0,Parts,381500,Vehicle Mgt Parts
South Lakeland District Council,http://opendatacommunities.org/id/district-council/south-lakeland,30/04/2018,Business Support Community Services,Cultural Environmental Regulatory & Planning Services,http://opendatacommunities.org/def/concept/finance/sercop/objective/104,LANCASHIRE DAF,,04-04-2018,0000076387,170,0,Parts,381400,Vehicle Mgt Maintenance
South Lakeland District Council,http://opendatacommunities.org/id/district-council/south-lakeland,30/04/2018,Business Support Community Services,Cultural Environmental Regulatory & Planning Services,http://opendatacommunities.org/def/concept/finance/sercop/objective/104,Southfield Garage,,04-04-2018,0000076388,280,0,Repair VU11 HRD & VX14 LKl,380000,Vehicle Management
South Lakeland District Council,http://opendatacommunities.org/id/district-council/south-lakeland,30/04/2018,Business Support Community Services,Cultural Environmental Regulatory & Planning Services,http://opendatacommunities.org/def/concept/finance/sercop/objective/104,Southfield Garage,,04-04-2018,0000076389,120,0,Repair VU11 HRD & VX14 LKl,380000,Vehicle Management
South Lakeland District Council,http://opendatacommunities.org/id/district-council/south-lakeland,30/04/2018,Business Support Community Services,Cultural Environmental Regulatory & Planning Services,http://opendatacommunities.org/def/concept/finance/sercop/objective/104,ARCO LIMITED,00133804,04-04-2018,0000076390,637.44,0,PPE 2016/17,141100,Clothing Protective
South Lakeland District Council,http://opendatacommunities.org/id/district-council/south-lakeland,30/04/2018,Business Support Community Services,Cultural Environmental Regulatory & Planning Services,http://opendatacommunities.org/def/concept/finance/sercop/objective/104,Masterstaff Limited,02777593,04-04-2018,0000076391,3702.66,0,Agency staff,261300,HR Recruitment & Assessment
South Lakeland District Council,http://opendatacommunities.org/id/district-council/south-lakeland,30/04/2018,Business Support Community Services,Cultural Environmental Regulatory & Planning Services,http://opendatacommunities.org/def/concept/finance/sercop/objective/104,TPS Preston,,04-04-2018,0000076392,163.61,0,Parts,381400,Vehicle Mgt Maintenance
South Lakeland District Council,http://opendatacommunities.org/id/district-council/south-lakeland,30/04/2018,Business Support Community Services,Cultural Environmental Regulatory & Planning Services,http://opendatacommunities.org/def/concept/finance/sercop/objective/104,SOLWAY DAF,1393710,04-04-2018,0000076393,98.26,0,Parts,381000,Vehicle Mgt Commercial
South Lakeland District Council,http://opendatacommunities.org/id/district-council/south-lakeland,30/04/2018,Business Support Community Services,Cultural Environmental Regulatory & Planning Services,http://opendatacommunities.org/def/concept/finance/sercop/objective/104,DENNIS EAGLE LTD,03794455,04-04-2018,0000076394,200.91,0,Parts,381300,Vehicle Mgt Industrial
South Lakeland District Council,http://opendatacommunities.org/id/district-council/south-lakeland,30/04/2018,Human Resources,Central Services,http://opendatacommunities.org/def/concept/finance/sercop/objective/102,Skillset Limited,,09-04-2018,0000076395,8450,0,Year 1 costs (software and support) -,261520,Human Resources Training
South Lakeland District Council,http://opendatacommunities.org/id/district-council/south-lakeland,30/04/2018,Leisure and Wellbeing,Cultural Environmental Regulatory & Planning Services,http://opendatacommunities.org/def/concept/finance/sercop/objective/104,Bergen Arbortech,,04-04-2018,0000076397,670,0,"Sunnyside, Kendal",241210,Horticultural Tree Trimming
South Lakeland District Council,http://opendatacommunities.org/id/district-council/south-lakeland,30/04/2018,Westmorland Centre Parking Office,Highways & Transport Services,http://opendatacommunities.org/def/concept/finance/sercop/objective/107,OPTECH FIBRES LTD,05442069,04-04-2018,0000076398,450,0,Network cabinet move WMMSCP,271200,ICT Hardware
South Lakeland District Council,http://opendatacommunities.org/id/district-council/south-lakeland,30/04/2018,Business Support Community Services,Housing Services,http://opendatacommunities.org/def/concept/finance/sercop/objective/108,Vigilant Security Services UK Ltd,05914271,18-04-2018,0000076399,-120.96,0,Security Guard at Town View Fields,192213,Facilities Security Manned Guarding
South Lakeland District Council,http://opendatacommunities.org/id/district-council/south-lakeland,30/04/2018,Policy & Partnerships,Cultural Environmental Regulatory & Planning Services,http://opendatacommunities.org/def/concept/finance/sercop/objective/104,GRANTS- MISCELLANEOUS,,04-04-2018,0000076400,3000,0,Waterhead Promenade Replanting Scheme,201700,Financial Services Grants
South Lakeland District Council,http://opendatacommunities.org/id/district-council/south-lakeland,30/04/2018,Policy & Partnerships,Cultural Environmental Regulatory & Planning Services,http://opendatacommunities.org/def/concept/finance/sercop/objective/104,GRANTS- MISCELLANEOUS,,04-04-2018,0000076401,211,0,Climbing Frame safety matting- South,201700,Financial Services Grants
South Lakeland District Council,http://opendatacommunities.org/id/district-council/south-lakeland,30/04/2018,Business Support Community Services,Cultural Environmental Regulatory & Planning Services,http://opendatacommunities.org/def/concept/finance/sercop/objective/104,Southfield Garage,,04-04-2018,0000076403,160,0,Repair SL011,380000,Vehicle Management
South Lakeland District Council,http://opendatacommunities.org/id/district-council/south-lakeland,30/04/2018,Business Support Community Services,Cultural Environmental Regulatory & Planning Services,http://opendatacommunities.org/def/concept/finance/sercop/objective/104,ARCO LIMITED,00133804,04-04-2018,0000076404,62.53,0,PPE 2016/17,141100,Clothing Protective
South Lakeland District Council,http://opendatacommunities.org/id/district-council/south-lakeland,30/04/2018,Business Support Community Services,Central Services,http://opendatacommunities.org/def/concept/finance/sercop/objective/102,LAKES TRAINING SOLUTIONS LTD,07541345,04-04-2018,0000076405,1150,0,1) 3 x Focus Group meetings (Ulverston,261500,HR Training & Conferences
South Lakeland District Council,http://opendatacommunities.org/id/district-council/south-lakeland,30/04/2018,Business Support Community Services,Cultural Environmental Regulatory & Planning Services,http://opendatacommunities.org/def/concept/finance/sercop/objective/104,BRIAN ARMISTEAD LTD T/A SINKFALL RECYCLI,04133280,09-04-2018,0000076406,683.47,0,Green waste tipping - 2017/18,391110,Construction Buildings Construction
South Lakeland District Council,http://opendatacommunities.org/id/district-council/south-lakeland,30/04/2018,Business Support Community Services,Cultural Environmental Regulatory & Planning Services,http://opendatacommunities.org/def/concept/finance/sercop/objective/104,Southfield Garage,,04-04-2018,0000076407,200,0,Repair SL030,380000,Vehicle Management
South Lakeland District Council,http://opendatacommunities.org/id/district-council/south-lakeland,30/04/2018,Customer Services,Central Services,http://opendatacommunities.org/def/concept/finance/sercop/objective/102,JOHNSTON PUBLISHING LTD,01919088,04-04-2018,0000076409,9787.58,0,South lakeland news,171114,Education Literature
South Lakeland District Council,http://opendatacommunities.org/id/district-council/south-lakeland,30/04/2018,Business Support Community Services,Cultural Environmental Regulatory & Planning Services,http://opendatacommunities.org/def/concept/finance/sercop/objective/104,INNOVATIVE SAFETY SYSTEMS LTD,06875015,25-04-2018,0000076410,-1041,0,Safety devices,192200,Facilities Security
South Lakeland District Council,http://opendatacommunities.org/id/district-council/south-lakeland,30/04/2018,Business Support Community Services,Cultural Environmental Regulatory & Planning Services,http://opendatacommunities.org/def/concept/finance/sercop/objective/104,Verizon Connect UK Ltd,05265904,04-04-2018,0000076411,24.78,0,Key fobs,361000,Public Transport Fleet Management
South Lakeland District Council,http://opendatacommunities.org/id/district-council/south-lakeland,30/04/2018,Business Support Community Services,Cultural Environmental Regulatory & Planning Services,http://opendatacommunities.org/def/concept/finance/sercop/objective/104,S J Bargh,00532272,04-04-2018,0000076412,252.98,0,MOTs 2016/17,381400,Vehicle Mgt Maintenance
South Lakeland District Council,http://opendatacommunities.org/id/district-council/south-lakeland,30/04/2018,Business Support Community Services,Cultural Environmental Regulatory & Planning Services,http://opendatacommunities.org/def/concept/finance/sercop/objective/104,Verizon Connect UK Ltd,05265904,04-04-2018,0000076413,350,0,Key fobs,361000,Public Transport Fleet Management
South Lakeland District Council,http://opendatacommunities.org/id/district-council/south-lakeland,30/04/2018,Business Support Community Services,Cultural Environmental Regulatory & Planning Services,http://opendatacommunities.org/def/concept/finance/sercop/objective/104,LANCASTER TRAINING SERVICES LTD,01447612,04-04-2018,0000076414,481.25,0,Training 2017/18 (SWK),261500,HR Training & Conferences
South Lakeland District Council,http://opendatacommunities.org/id/district-council/south-lakeland,30/04/2018,Business Support Community Services,Cultural Environmental Regulatory & Planning Services,http://opendatacommunities.org/def/concept/finance/sercop/objective/104,ARCO LIMITED,00133804,04-04-2018,0000076415,115.5,0,PPE 2016/17,141100,Clothing Protective
South Lakeland District Council,http://opendatacommunities.org/id/district-council/south-lakeland,30/04/2018,Business Support Community Services,Cultural Environmental Regulatory & Planning Services,http://opendatacommunities.org/def/concept/finance/sercop/objective/104,DENNIS EAGLE LTD,03794455,04-04-2018,0000076416,168.07,0,Parts,381300,Vehicle Mgt Industrial
South Lakeland District Council,http://opendatacommunities.org/id/district-council/south-lakeland,30/04/2018,Business Support Community Services,Cultural Environmental Regulatory & Planning Services,http://opendatacommunities.org/def/concept/finance/sercop/objective/104,EK MOTOR FACTORS LTD,00838524,04-04-2018,0000076417,207,0,Parts,381400,Vehicle Mgt Maintenance
South Lakeland District Council,http://opendatacommunities.org/id/district-council/south-lakeland,30/04/2018,Business Support Community Services,Cultural Environmental Regulatory & Planning Services,http://opendatacommunities.org/def/concept/finance/sercop/objective/104,GB Sign Solutions Ltd,09609330,04-04-2018,0000076418,337.6,0,Street nameplates,102400,Building Signage
South Lakeland District Council,http://opendatacommunities.org/id/district-council/south-lakeland,30/04/2018,Business Support Community Services,Cultural Environmental Regulatory & Planning Services,http://opendatacommunities.org/def/concept/finance/sercop/objective/104,GB Sign Solutions Ltd,09609330,04-04-2018,0000076419,97,0,Street nameplates,102400,Building Signage
South Lakeland District Council,http://opendatacommunities.org/id/district-council/south-lakeland,30/04/2018,Business Support Community Services,Cultural Environmental Regulatory & Planning Services,http://opendatacommunities.org/def/concept/finance/sercop/objective/104,GB Sign Solutions Ltd,09609330,04-04-2018,0000076420,102.5,0,Street nameplates,102400,Building Signage
South Lakeland District Council,http://opendatacommunities.org/id/district-council/south-lakeland,30/04/2018,Business Support Community Services,Cultural Environmental Regulatory & Planning Services,http://opendatacommunities.org/def/concept/finance/sercop/objective/104,GB Sign Solutions Ltd,09609330,04-04-2018,0000076421,129.25,0,Street nameplates,102400,Building Signage
South Lakeland District Council,http://opendatacommunities.org/id/district-council/south-lakeland,30/04/2018,Business Support Community Services,Cultural Environmental Regulatory & Planning Services,http://opendatacommunities.org/def/concept/finance/sercop/objective/104,Public Health England,,09-04-2018,0000076422,300,0,Cockle Examination,221100,Health & Safety� Maintenance
South Lakeland District Council,http://opendatacommunities.org/id/district-council/south-lakeland,30/04/2018,Development Implementation,Cultural Environmental Regulatory & Planning Services,http://opendatacommunities.org/def/concept/finance/sercop/objective/104,Helen Moriarty,,04-04-2018,0000076423,1100.01,0,Project Management Officer for,151000,Consultancy Business
South Lakeland District Council,http://opendatacommunities.org/id/district-council/south-lakeland,30/04/2018,Development Implementation,Cultural Environmental Regulatory & Planning Services,http://opendatacommunities.org/def/concept/finance/sercop/objective/104,Helen Moriarty,,04-04-2018,0000076424,1312.5,0,Project Management Officer for,151000,Consultancy Business
South Lakeland District Council,http://opendatacommunities.org/id/district-council/south-lakeland,30/04/2018,Financial Services,Central Services,http://opendatacommunities.org/def/concept/finance/sercop/objective/102,TIAA Ltd,04546319,04-04-2018,0000076425,3283.3,0,17/18 Internal Audit,201100,Financial Services Audit
South Lakeland District Council,http://opendatacommunities.org/id/district-council/south-lakeland,30/04/2018,Business Support Community Services,Cultural Environmental Regulatory & Planning Services,http://opendatacommunities.org/def/concept/finance/sercop/objective/104,TECHNIJET LTD,02776601,04-04-2018,0000076426,33.21,0,Service & repair pressure washers,139999,Cleaning & Janitorial Not Elsewhere Clas
South Lakeland District Council,http://opendatacommunities.org/id/district-council/south-lakeland,30/04/2018,Business Support Community Services,Cultural Environmental Regulatory & Planning Services,http://opendatacommunities.org/def/concept/finance/sercop/objective/104,TECHNIJET LTD,02776601,04-04-2018,0000076427,80,0,Service & repair pressure washers,139999,Cleaning & Janitorial Not Elsewhere Clas
South Lakeland District Council,http://opendatacommunities.org/id/district-council/south-lakeland,30/04/2018,Social Enterprise Admin,Cultural Environmental Regulatory & Planning Services,http://opendatacommunities.org/def/concept/finance/sercop/objective/104,NEWSQUEST MEDIA GROUP LTD,03102566,04-04-2018,0000076428,169.28,0,PUBLIC NOTICES FOR PLANNING 1 APRIL - 31,191000,Facilities Advertising
South Lakeland District Council,http://opendatacommunities.org/id/district-council/south-lakeland,30/04/2018,Revenues and Benefits,Central Services,http://opendatacommunities.org/def/concept/finance/sercop/objective/102,ROYAL MAIL GROUP PLC,,04-04-2018,0000076429,35,0,Postal Charges a/c 0055114000  (2017/18),301200,Mail Services� Postage
South Lakeland District Council,http://opendatacommunities.org/id/district-council/south-lakeland,30/04/2018,Revenues and Benefits,SLDC as Agent,,ROYAL MAIL GROUP PLC,,04-04-2018,0000076430,1543.38,0,Postal Charges a/c 0198123013 (2017-18),301200,Mail Services� Postage
South Lakeland District Council,http://opendatacommunities.org/id/district-council/south-lakeland,30/04/2018,Revenues and Benefits,SLDC as Agent,,ROYAL MAIL GROUP PLC,,04-04-2018,0000076431,-42.24,0,Postal Charges a/c 0198123013 (2017-18),301200,Mail Services� Postage
South Lakeland District Council,http://opendatacommunities.org/id/district-council/south-lakeland,30/04/2018,Business Support Community Services,Cultural Environmental Regulatory & Planning Services,http://opendatacommunities.org/def/concept/finance/sercop/objective/104,MARTIN TONKS,,04-04-2018,0000076432,1600,0,Land off the A590 Ulverston Road Retail,152100,Consultancy Strategic Planning
South Lakeland District Council,http://opendatacommunities.org/id/district-council/south-lakeland,30/04/2018,Business Support Community Services,SLDC as Agent,,CUMBRIA COUNTY COUNCIL,,16-04-2018,0000076433,54,0,DBS Charges fro Taxi Drivers,908000,Public Bodies Council support services
South Lakeland District Council,http://opendatacommunities.org/id/district-council/south-lakeland,30/04/2018,Revenues and Benefits,Central Services,http://opendatacommunities.org/def/concept/finance/sercop/objective/102,NEWSQUEST MEDIA GROUP LTD,03102566,04-04-2018,0000076434,3047.04,0,Public Notice - SLDC Council Tax,191000,Facilities Advertising
South Lakeland District Council,http://opendatacommunities.org/id/district-council/south-lakeland,30/04/2018,Lake Wardens,Cultural Environmental Regulatory & Planning Services,http://opendatacommunities.org/def/concept/finance/sercop/objective/104,MARINE WAREHOUSE LIMITED,05152483,09-04-2018,0000076435,529.98,0,Annual Service of Staff & Visitor,221000,Health & Safety� Products
South Lakeland District Council,http://opendatacommunities.org/id/district-council/south-lakeland,30/04/2018,Printing Section,Central Services,http://opendatacommunities.org/def/concept/finance/sercop/objective/102,PRESCO UK LTD,05923806,04-04-2018,0000076436,201.66,0,75 micron Ezeroll laminating film rolls,191600,Facilities Printing
South Lakeland District Council,http://opendatacommunities.org/id/district-council/south-lakeland,30/04/2018,Printing Section,Central Services,http://opendatacommunities.org/def/concept/finance/sercop/objective/102,Konica Minolta Bus Solutions (UK) Ltd,,09-04-2018,0000076437,4819.55,0,Print Room Clicks 29th Sept - 29th,192000,Facilities Reprographics
South Lakeland District Council,http://opendatacommunities.org/id/district-council/south-lakeland,30/04/2018,Business Support Community Services,Central Services,http://opendatacommunities.org/def/concept/finance/sercop/objective/102,A RICHARDSON - CRACKING SPREAD,,04-04-2018,0000076438,79.2,0,Catering,291000,Arts & Leisure Services Events
South Lakeland District Council,http://opendatacommunities.org/id/district-council/south-lakeland,30/04/2018,Business Support Community Services,Cultural Environmental Regulatory & Planning Services,http://opendatacommunities.org/def/concept/finance/sercop/objective/104,RIBBLESDALE AUTO ELECTRICS 1992 LTD,02732686,04-04-2018,0000076439,90.12,0,Parts,381500,Vehicle Mgt Parts
South Lakeland District Council,http://opendatacommunities.org/id/district-council/south-lakeland,30/04/2018,Business Support Community Services,Cultural Environmental Regulatory & Planning Services,http://opendatacommunities.org/def/concept/finance/sercop/objective/104,RIBBLESDALE AUTO ELECTRICS 1992 LTD,02732686,04-04-2018,0000076440,119.45,0,Parts,381500,Vehicle Mgt Parts
South Lakeland District Council,http://opendatacommunities.org/id/district-council/south-lakeland,30/04/2018,Business Support Community Services,Cultural Environmental Regulatory & Planning Services,http://opendatacommunities.org/def/concept/finance/sercop/objective/104,RIBBLESDALE AUTO ELECTRICS 1992 LTD,02732686,04-04-2018,0000076441,119.45,0,Parts,381500,Vehicle Mgt Parts
South Lakeland District Council,http://opendatacommunities.org/id/district-council/south-lakeland,30/04/2018,Development Management,Cultural Environmental Regulatory & Planning Services,http://opendatacommunities.org/def/concept/finance/sercop/objective/104,M & P Gadsden Ltd,,04-04-2018,0000076442,100,0,Part A checking of Structural,391000,Construction Architect
South Lakeland District Council,http://opendatacommunities.org/id/district-council/south-lakeland,30/04/2018,Development Management,Cultural Environmental Regulatory & Planning Services,http://opendatacommunities.org/def/concept/finance/sercop/objective/104,M & P Gadsden Ltd,,04-04-2018,0000076443,45,0,Part A checking of Structural,391000,Construction Architect
South Lakeland District Council,http://opendatacommunities.org/id/district-council/south-lakeland,30/04/2018,Development Management,Cultural Environmental Regulatory & Planning Services,http://opendatacommunities.org/def/concept/finance/sercop/objective/104,M & P Gadsden Ltd,,04-04-2018,0000076444,45,0,Part A checking of Structural,391000,Construction Architect
South Lakeland District Council,http://opendatacommunities.org/id/district-council/south-lakeland,30/04/2018,Democratic and Member Services,Cultural Environmental Regulatory & Planning Services,http://opendatacommunities.org/def/concept/finance/sercop/objective/104,GRANTS- MISCELLANEOUS,,04-04-2018,0000076445,700,0,locality donation to fund on going,201700,Financial Services Grants
South Lakeland District Council,http://opendatacommunities.org/id/district-council/south-lakeland,30/04/2018,Social Enterprise Admin,Transport,http://opendatacommunities.org/def/concept/finance/sercop/objective/107,THE SIGN MAN,05748839,09-04-2018,0000076446,2740,0,Broad Street 1 Pay and Display backing,102400,Building Signage
South Lakeland District Council,http://opendatacommunities.org/id/district-council/south-lakeland,30/04/2018,Financial Services,Central Services,http://opendatacommunities.org/def/concept/finance/sercop/objective/102,TRAFFORD COUNCIL,05498172,04-04-2018,0000076447,750,0,Spendpro spend analysis tool 2017/18,202100,Financial Services Subscriptions
South Lakeland District Council,http://opendatacommunities.org/id/district-council/south-lakeland,30/04/2018,Human Resources,Central Services,http://opendatacommunities.org/def/concept/finance/sercop/objective/102,FLORENCE MADDEN,,04-04-2018,0000076448,888.7,0,Module 1 14/11/17 to 16/11/17 = 3 days,261500,HR Training & Conferences
South Lakeland District Council,http://opendatacommunities.org/id/district-council/south-lakeland,30/04/2018,Policy & Partnerships,Culture and Related Serv,http://opendatacommunities.org/def/concept/finance/sercop/objective/104,LOWER ALLITHWAITE PARISH COUNCIL,,04-04-2018,0000076449,30000,0,50% of 2016-2017 Locally Important,908000,Public Bodies Council support services
South Lakeland District Council,http://opendatacommunities.org/id/district-council/south-lakeland,30/04/2018,Business Support Community Services,Cultural Environmental Regulatory & Planning Services,http://opendatacommunities.org/def/concept/finance/sercop/objective/104,ARNSIDE PARISH COUNCIL,,04-04-2018,0000076450,8000,0,2017-18 funding contribution to the,908000,Public Bodies Council support services
South Lakeland District Council,http://opendatacommunities.org/id/district-council/south-lakeland,30/04/2018,Leisure and Wellbeing,Culture and Related Serv,http://opendatacommunities.org/def/concept/finance/sercop/objective/104,Prescott Special Projects Ltd,,04-04-2018,0000076451,12868.14,0,"For paths, drainage and landscape works",391300,Construction Open Spaces
South Lakeland District Council,http://opendatacommunities.org/id/district-council/south-lakeland,30/04/2018,Electoral Services,Central Services,http://opendatacommunities.org/def/concept/finance/sercop/objective/102,Zest Publication Ltd,,11-04-2018,0000076452,200,0,Advertising in Local Choice - May 2018,261200,HR Professional & Advisory Services
South Lakeland District Council,http://opendatacommunities.org/id/district-council/south-lakeland,30/04/2018,Business Support Community Services,Cultural Environmental Regulatory & Planning Services,http://opendatacommunities.org/def/concept/finance/sercop/objective/104,Romaquip UK,,11-04-2018,0000076453,215.04,0,Parts,381000,Vehicle Mgt Commercial
South Lakeland District Council,http://opendatacommunities.org/id/district-council/south-lakeland,30/04/2018,Business Support Community Services,Cultural Environmental Regulatory & Planning Services,http://opendatacommunities.org/def/concept/finance/sercop/objective/104,FST CONSUMABLES LTD,01342012,09-04-2018,0000076454,162.72,0,Consumables 01/04/17- 31/03/18,101600,Building Hand Tools
South Lakeland District Council,http://opendatacommunities.org/id/district-council/south-lakeland,30/04/2018,Business Support Community Services,Internal Trading Accounts,,Romaquip UK,,18-04-2018,0000076455,675.74,0,Parts,381000,Vehicle Mgt Commercial
South Lakeland District Council,http://opendatacommunities.org/id/district-council/south-lakeland,30/04/2018,Development Implementation,Planning and Development,,Bloom Procurement Services Ltd,,30-04-2018,0000076456,29317,0,New Road Public Realm (Stages 2 - 6),151900,Consultancy Management
South Lakeland District Council,http://opendatacommunities.org/id/district-council/south-lakeland,30/04/2018,Development Strategy,Cultural Environmental Regulatory & Planning Services,http://opendatacommunities.org/def/concept/finance/sercop/objective/104,Bloom Procurement Services Ltd,,09-04-2018,0000076457,418.07,0,Footprint Ecology to carry out,151900,Consultancy Management
South Lakeland District Council,http://opendatacommunities.org/id/district-council/south-lakeland,30/04/2018,Business Support Community Services,Cultural Environmental Regulatory & Planning Services,http://opendatacommunities.org/def/concept/finance/sercop/objective/104,MILNTHORPE KENNELS & CATTERY,08932302,09-04-2018,0000076459,2633.93,0,Kennelling fees 2017/18,181500,Environment Animal Services
South Lakeland District Council,http://opendatacommunities.org/id/district-council/south-lakeland,30/04/2018,Democratic and Member Services,Central Services,http://opendatacommunities.org/def/concept/finance/sercop/objective/102,RIVERBANK HOSPITALITY CATERING,,09-04-2018,0000076460,89.1,0,buffet for member training-data,111000,Catering Banquet & Catering
South Lakeland District Council,http://opendatacommunities.org/id/district-council/south-lakeland,30/04/2018,Democratic Services,Central Services,http://opendatacommunities.org/def/concept/finance/sercop/objective/102,MODERN MINDSET LIMITED,02208130,09-04-2018,0000076461,10010,0,ModGov Annual Support and Maintenance,271600,ICT Software Customised & Bespoke
South Lakeland District Council,http://opendatacommunities.org/id/district-council/south-lakeland,30/04/2018,Business Support Community Services,Central Services,http://opendatacommunities.org/def/concept/finance/sercop/objective/102,GATES TRAVEL SERVICE,,30-04-2018,0000076463,-21.4,0,2 Train Tickets to Lancaster for the,261600,HR Travel & Subsistence
South Lakeland District Council,http://opendatacommunities.org/id/district-council/south-lakeland,30/04/2018,ICT Group,Central Services,http://opendatacommunities.org/def/concept/finance/sercop/objective/102,Insight Direct (Uk) Ltd,2579852,11-04-2018,0000076469,4000,0,0007210221 HP 250 G6 I7-7500U 8GB 256GB,271200,ICT Hardware
South Lakeland District Council,http://opendatacommunities.org/id/district-council/south-lakeland,30/04/2018,Leisure and Wellbeing,Cultural Environmental Regulatory & Planning Services,http://opendatacommunities.org/def/concept/finance/sercop/objective/104,SOUTH LAKES TREE SURGEONS & LANDSCAPES,05342745,11-04-2018,0000076470,2410,0,"Parkside road cemetery, Kendal",241210,Horticultural Tree Trimming
South Lakeland District Council,http://opendatacommunities.org/id/district-council/south-lakeland,30/04/2018,Leisure and Wellbeing,Cultural Environmental Regulatory & Planning Services,http://opendatacommunities.org/def/concept/finance/sercop/objective/104,SOUTH LAKES TREE SURGEONS & LANDSCAPES,05342745,11-04-2018,0000076471,310,0,Fell oak,241210,Horticultural Tree Trimming
South Lakeland District Council,http://opendatacommunities.org/id/district-council/south-lakeland,30/04/2018,Leisure and Wellbeing,Cultural Environmental Regulatory & Planning Services,http://opendatacommunities.org/def/concept/finance/sercop/objective/104,SOUTH LAKES TREE SURGEONS & LANDSCAPES,05342745,11-04-2018,0000076472,4740,0,Fell oak,241210,Horticultural Tree Trimming
South Lakeland District Council,http://opendatacommunities.org/id/district-council/south-lakeland,30/04/2018,Leisure and Wellbeing,Cultural Environmental Regulatory & Planning Services,http://opendatacommunities.org/def/concept/finance/sercop/objective/104,SOUTH LAKES TREE SURGEONS & LANDSCAPES,05342745,11-04-2018,0000076473,4260,0,Ellerthwaite/Marchesi Centre tree works,241210,Horticultural Tree Trimming
South Lakeland District Council,http://opendatacommunities.org/id/district-council/south-lakeland,30/04/2018,Leisure and Wellbeing,Cultural Environmental Regulatory & Planning Services,http://opendatacommunities.org/def/concept/finance/sercop/objective/104,SOUTH LAKES TREE SURGEONS & LANDSCAPES,05342745,11-04-2018,0000076474,450,0,Fell and remove dead tree at Brewery,241210,Horticultural Tree Trimming
South Lakeland District Council,http://opendatacommunities.org/id/district-council/south-lakeland,30/04/2018,Business Support Community Services,Cultural Environmental Regulatory & Planning Services,http://opendatacommunities.org/def/concept/finance/sercop/objective/104,HORIBA UK LTD,2242542,11-04-2018,0000076475,4549,0,Service and calibration contract for AQ,181811,Environment Technical Equip Measuring
South Lakeland District Council,http://opendatacommunities.org/id/district-council/south-lakeland,30/04/2018,ICT Group,Central Services,http://opendatacommunities.org/def/concept/finance/sercop/objective/102,IT PROFESSIONAL SERVICES (ITPS),,11-04-2018,0000076476,250,0,Quote QT-17303/1,279999,ICT Not Elsewhere Classified
South Lakeland District Council,http://opendatacommunities.org/id/district-council/south-lakeland,30/04/2018,Legal Services,Environment Regulatory,,NETWORK RAIL (INFRASTRUCTURE) LTD,02904587,11-04-2018,0000076477,38523.89,0,Project Code - 119210 re:  Installation,360000,Public Transport
South Lakeland District Council,http://opendatacommunities.org/id/district-council/south-lakeland,30/04/2018,Legal Services,Environment Regulatory,,NETWORK RAIL (INFRASTRUCTURE) LTD,02904587,11-04-2018,0000076478,-5262.39,0,Project Code - 119210 re:  Installation,360000,Public Transport
South Lakeland District Council,http://opendatacommunities.org/id/district-council/south-lakeland,30/04/2018,Development Implementation,Cultural Environmental Regulatory & Planning Services,http://opendatacommunities.org/def/concept/finance/sercop/objective/104,The Villa Levens,08678175,11-04-2018,0000076479,286.25,0,"1/2 day room hire (175) & cakes, fruit",192110,Facilities Room Hire
South Lakeland District Council,http://opendatacommunities.org/id/district-council/south-lakeland,30/04/2018,Development Implementation,Central Services,http://opendatacommunities.org/def/concept/finance/sercop/objective/102,LAMBERT SMITH HAMPTON GROUP,2521225,18-04-2018,0000076480,1250,0,Stockghyll Ambleside - Construction,999999,Unclassifiable
South Lakeland District Council,http://opendatacommunities.org/id/district-council/south-lakeland,30/04/2018,Development Implementation,Central Services,http://opendatacommunities.org/def/concept/finance/sercop/objective/102,LAMBERT SMITH HAMPTON GROUP,2521225,18-04-2018,0000076480,2424,0,Stockghyll Ambleside - Construction,999999,Unclassifiable
South Lakeland District Council,http://opendatacommunities.org/id/district-council/south-lakeland,30/04/2018,Development Implementation,Central Services,http://opendatacommunities.org/def/concept/finance/sercop/objective/102,THE TECHNOLOGY FORGE,06834254,18-04-2018,0000076481,1374.78,0,Technology Forge Training,271600,ICT Software Customised & Bespoke
South Lakeland District Council,http://opendatacommunities.org/id/district-council/south-lakeland,30/04/2018,Development Implementation,Central Services,http://opendatacommunities.org/def/concept/finance/sercop/objective/102,THE TECHNOLOGY FORGE,06834254,18-04-2018,0000076481,1320,0,Technology Forge Training,271600,ICT Software Customised & Bespoke
South Lakeland District Council,http://opendatacommunities.org/id/district-council/south-lakeland,30/04/2018,Development Implementation,Central Services,http://opendatacommunities.org/def/concept/finance/sercop/objective/102,THE TECHNOLOGY FORGE,06834254,18-04-2018,0000076481,6173.73,0,Technology Forge Training,271600,ICT Software Customised & Bespoke
South Lakeland District Council,http://opendatacommunities.org/id/district-council/south-lakeland,30/04/2018,Development Implementation,Central Services,http://opendatacommunities.org/def/concept/finance/sercop/objective/102,Greenwich Leisure Ltd,,11-04-2018,0000076482,2000,0,Kendal Leisure Centre re: Asbestos,291400,Arts & Leisure Services Sport & Fitness
South Lakeland District Council,http://opendatacommunities.org/id/district-council/south-lakeland,30/04/2018,Social Enterprise Admin,Cultural Environmental Regulatory & Planning Services,http://opendatacommunities.org/def/concept/finance/sercop/objective/104,FURNESS NEWSPAPERS LTD,01155841,11-04-2018,0000076483,86.56,0,PUBLIC NOTICES FOR PLANNING 1 APRIL 2015,191000,Facilities Advertising
South Lakeland District Council,http://opendatacommunities.org/id/district-council/south-lakeland,30/04/2018,Business Support Community Services,Cultural Environmental Regulatory & Planning Services,http://opendatacommunities.org/def/concept/finance/sercop/objective/104,ALLSTAR BUSINESS SOLUTIONS LTD (NCR),2631112,01-04-2018,0000076484,41.51,0,Fuel - Private Water Van - 21 March 2018,381600,Vehicle Mgt Leasing
South Lakeland District Council,http://opendatacommunities.org/id/district-council/south-lakeland,30/04/2018,Development Strategy,Planning and Development,,KENDAL TOWN COUNCIL,,09-04-2018,0000076492,1697.55,0,CIL - Neighbourhood Funding Portion,908000,Public Bodies Council support services
South Lakeland District Council,http://opendatacommunities.org/id/district-council/south-lakeland,30/04/2018,Development Strategy,Planning and Development,,BURTON-IN-KENDAL PARISH COUNCIL,,09-04-2018,0000076493,4260.56,0,CIL - Neighbourhood Funding Portion,908000,Public Bodies Council support services
South Lakeland District Council,http://opendatacommunities.org/id/district-council/south-lakeland,30/04/2018,Development Strategy,Planning and Development,,CASTERTON PARISH COUNCIL,,09-04-2018,0000076494,3751.88,0,CIL - Neighbourhood Funding Portion,908000,Public Bodies Council support services
South Lakeland District Council,http://opendatacommunities.org/id/district-council/south-lakeland,30/04/2018,Development Strategy,Planning and Development,,SKELSMERGH & SCALTHWAITERIGG P.C.,,09-04-2018,0000076495,25,0,CIL - Neighbourhood Funding Portion,908000,Public Bodies Council support services
South Lakeland District Council,http://opendatacommunities.org/id/district-council/south-lakeland,30/04/2018,Development Strategy,Planning and Development,,GRANGE OVER SANDS TOWN COUNCIL,,09-04-2018,0000076496,1066.5,0,CIL - Neighbourhood Funding Portion,908000,Public Bodies Council support services
South Lakeland District Council,http://opendatacommunities.org/id/district-council/south-lakeland,30/04/2018,Development Strategy,Planning and Development,,ULVERSTON TOWN COUNCIL,,09-04-2018,0000076497,88.41,0,CIL - Neighbourhood Funding Portion,908000,Public Bodies Council support services
South Lakeland District Council,http://opendatacommunities.org/id/district-council/south-lakeland,30/04/2018,Financial Services,Central Services,http://opendatacommunities.org/def/concept/finance/sercop/objective/102,Caboodle Technology Ltd,06784632,01-04-2018,0000076498,41.63,0,child care voucher service charge,260000,HR
South Lakeland District Council,http://opendatacommunities.org/id/district-council/south-lakeland,30/04/2018,Financial Services,Non-Service Payments,,COMPUTERSHARE VOUCHER SERVICES LTD,04968447,09-04-2018,0000076499,872.93,0,Computershare child care vouchers. New,202100,Financial Services Subscriptions
South Lakeland District Council,http://opendatacommunities.org/id/district-council/south-lakeland,30/04/2018,Financial Services,Non-Service Payments,,BUSY BEES BENEFITS LTD,06758298,11-04-2018,0000076500,943,0,Busy Bees child care vouchers. based on,202100,Financial Services Subscriptions
South Lakeland District Council,http://opendatacommunities.org/id/district-council/south-lakeland,30/04/2018,Financial Services,Central Services,http://opendatacommunities.org/def/concept/finance/sercop/objective/102,BUSY BEES BENEFITS LTD,06758298,09-04-2018,0000076501,33.01,0,Busy Bees child care voucher service,202100,Financial Services Subscriptions
South Lakeland District Council,http://opendatacommunities.org/id/district-council/south-lakeland,30/04/2018,Community & Housing Group,Housing Services,http://opendatacommunities.org/def/concept/finance/sercop/objective/108,GROWING CONCERNS LTD,,09-04-2018,0000076502,1040.34,0,For Handy Person Service 2018/19,391200,Construction Engineering
South Lakeland District Council,http://opendatacommunities.org/id/district-council/south-lakeland,30/04/2018,Legal Services,Central Services,http://opendatacommunities.org/def/concept/finance/sercop/objective/102,WEIGHTMANS LLP,OC326117,11-04-2018,0000076503,224,0,Fees in respect of ,281300,Legal Services Legal Opinion
South Lakeland District Council,http://opendatacommunities.org/id/district-council/south-lakeland,30/04/2018,Democratic and Member Services,Cultural Environmental Regulatory & Planning Services,http://opendatacommunities.org/def/concept/finance/sercop/objective/104,GRANTS- MISCELLANEOUS,,11-04-2018,0000076504,1000,0,locality donation to fund bee keeping,201700,Financial Services Grants
South Lakeland District Council,http://opendatacommunities.org/id/district-council/south-lakeland,30/04/2018,Policy & Partnerships,Cultural Environmental Regulatory & Planning Services,http://opendatacommunities.org/def/concept/finance/sercop/objective/104,HIGHLIGHTS PRODUCTIONS LTD,,11-04-2018,0000076505,3500,0,Strategic Cultural Partnership grant,291400,Arts & Leisure Services Sport & Fitness
South Lakeland District Council,http://opendatacommunities.org/id/district-council/south-lakeland,30/04/2018,ICT Group,Central Services,http://opendatacommunities.org/def/concept/finance/sercop/objective/102,NORTHGATE PUBLIC SERVICES (UK) LTD,00968498,18-04-2018,0000076506,774,0,Adlib annual support renewal,271600,ICT Software Customised & Bespoke
South Lakeland District Council,http://opendatacommunities.org/id/district-council/south-lakeland,30/04/2018,Democratic and Member Services,Cultural Environmental Regulatory & Planning Services,http://opendatacommunities.org/def/concept/finance/sercop/objective/104,GRANTS- MISCELLANEOUS,,11-04-2018,0000076507,1000,0,locality donation to fund replacement,201700,Financial Services Grants
South Lakeland District Council,http://opendatacommunities.org/id/district-council/south-lakeland,30/04/2018,Business Support Community Services,Housing Services,http://opendatacommunities.org/def/concept/finance/sercop/objective/108,KENDAL HOSTEL,,11-04-2018,0000076508,144,0,Accommodation,261000,HR Accommodation
South Lakeland District Council,http://opendatacommunities.org/id/district-council/south-lakeland,30/04/2018,Business Support Community Services,Housing Services,http://opendatacommunities.org/def/concept/finance/sercop/objective/108,KENDAL HOSTEL,,11-04-2018,0000076509,10,0,Accommodation,261000,HR Accommodation
South Lakeland District Council,http://opendatacommunities.org/id/district-council/south-lakeland,30/04/2018,Business Support Community Services,Housing Services,http://opendatacommunities.org/def/concept/finance/sercop/objective/108,Ashberry Recruitment,07202591,11-04-2018,0000076510,1313.25,0,Agency staff at Town View Fields,261300,HR Recruitment & Assessment
South Lakeland District Council,http://opendatacommunities.org/id/district-council/south-lakeland,30/04/2018,Business Support Community Services,Housing Services,http://opendatacommunities.org/def/concept/finance/sercop/objective/108,Ashberry Recruitment,07202591,11-04-2018,0000076511,795,0,Agency staff at Town View Fields,261300,HR Recruitment & Assessment
South Lakeland District Council,http://opendatacommunities.org/id/district-council/south-lakeland,30/04/2018,Social Enterprise Admin,Highways & Transport Services,http://opendatacommunities.org/def/concept/finance/sercop/objective/107,WSP UK Ltd,01383511,16-04-2018,0000076512,26.69,0,DVLA checks from 1 April 2017 to 31,351000,Street & Traffic Parking Car Parks
South Lakeland District Council,http://opendatacommunities.org/id/district-council/south-lakeland,30/04/2018,Business Support Community Services,Cultural Environmental Regulatory & Planning Services,http://opendatacommunities.org/def/concept/finance/sercop/objective/104,FMG CONSULTING LTD,07309324,11-04-2018,0000076513,1350,0,Proposal - Business Plan Review,151900,Consultancy Management
South Lakeland District Council,http://opendatacommunities.org/id/district-council/south-lakeland,30/04/2018,Leisure and Wellbeing,Highways & Transport Services,http://opendatacommunities.org/def/concept/finance/sercop/objective/107,CONTINENTAL LANDSCAPES LTD,2108452,11-04-2018,0000076514,12.33,0,Parks Routine Maintenance March 18,391310,Construction Open Spaces Construction
South Lakeland District Council,http://opendatacommunities.org/id/district-council/south-lakeland,30/04/2018,Leisure and Wellbeing,Highways & Transport Services,http://opendatacommunities.org/def/concept/finance/sercop/objective/107,CONTINENTAL LANDSCAPES LTD,2108452,11-04-2018,0000076514,123.32,0,Parks Routine Maintenance March 18,391310,Construction Open Spaces Construction
South Lakeland District Council,http://opendatacommunities.org/id/district-council/south-lakeland,30/04/2018,Leisure and Wellbeing,Highways & Transport Services,http://opendatacommunities.org/def/concept/finance/sercop/objective/107,CONTINENTAL LANDSCAPES LTD,2108452,11-04-2018,0000076514,1.23,0,Parks Routine Maintenance March 18,391310,Construction Open Spaces Construction
South Lakeland District Council,http://opendatacommunities.org/id/district-council/south-lakeland,30/04/2018,Leisure and Wellbeing,Highways & Transport Services,http://opendatacommunities.org/def/concept/finance/sercop/objective/107,CONTINENTAL LANDSCAPES LTD,2108452,11-04-2018,0000076514,12.33,0,Parks Routine Maintenance March 18,391310,Construction Open Spaces Construction
South Lakeland District Council,http://opendatacommunities.org/id/district-council/south-lakeland,30/04/2018,Leisure and Wellbeing,Highways & Transport Services,http://opendatacommunities.org/def/concept/finance/sercop/objective/107,CONTINENTAL LANDSCAPES LTD,2108452,11-04-2018,0000076514,123.32,0,Parks Routine Maintenance March 18,391310,Construction Open Spaces Construction
South Lakeland District Council,http://opendatacommunities.org/id/district-council/south-lakeland,30/04/2018,Leisure and Wellbeing,Highways & Transport Services,http://opendatacommunities.org/def/concept/finance/sercop/objective/107,CONTINENTAL LANDSCAPES LTD,2108452,11-04-2018,0000076514,12.33,0,Parks Routine Maintenance March 18,391310,Construction Open Spaces Construction
South Lakeland District Council,http://opendatacommunities.org/id/district-council/south-lakeland,30/04/2018,Leisure and Wellbeing,Highways & Transport Services,http://opendatacommunities.org/def/concept/finance/sercop/objective/107,CONTINENTAL LANDSCAPES LTD,2108452,11-04-2018,0000076514,24.66,0,Parks Routine Maintenance March 18,391310,Construction Open Spaces Construction
South Lakeland District Council,http://opendatacommunities.org/id/district-council/south-lakeland,30/04/2018,Leisure and Wellbeing,Highways & Transport Services,http://opendatacommunities.org/def/concept/finance/sercop/objective/107,CONTINENTAL LANDSCAPES LTD,2108452,11-04-2018,0000076514,15.41,0,Parks Routine Maintenance March 18,391310,Construction Open Spaces Construction
South Lakeland District Council,http://opendatacommunities.org/id/district-council/south-lakeland,30/04/2018,Leisure and Wellbeing,Highways & Transport Services,http://opendatacommunities.org/def/concept/finance/sercop/objective/107,CONTINENTAL LANDSCAPES LTD,2108452,11-04-2018,0000076514,154.15,0,Parks Routine Maintenance March 18,391310,Construction Open Spaces Construction
South Lakeland District Council,http://opendatacommunities.org/id/district-council/south-lakeland,30/04/2018,Leisure and Wellbeing,Highways & Transport Services,http://opendatacommunities.org/def/concept/finance/sercop/objective/107,CONTINENTAL LANDSCAPES LTD,2108452,11-04-2018,0000076514,6.17,0,Parks Routine Maintenance March 18,391310,Construction Open Spaces Construction
South Lakeland District Council,http://opendatacommunities.org/id/district-council/south-lakeland,30/04/2018,Leisure and Wellbeing,Highways & Transport Services,http://opendatacommunities.org/def/concept/finance/sercop/objective/107,CONTINENTAL LANDSCAPES LTD,2108452,11-04-2018,0000076514,61.66,0,Parks Routine Maintenance March 18,391310,Construction Open Spaces Construction
South Lakeland District Council,http://opendatacommunities.org/id/district-council/south-lakeland,30/04/2018,Leisure and Wellbeing,Highways & Transport Services,http://opendatacommunities.org/def/concept/finance/sercop/objective/107,CONTINENTAL LANDSCAPES LTD,2108452,11-04-2018,0000076514,24.66,0,Parks Routine Maintenance March 18,391310,Construction Open Spaces Construction
South Lakeland District Council,http://opendatacommunities.org/id/district-council/south-lakeland,30/04/2018,Leisure and Wellbeing,Highways & Transport Services,http://opendatacommunities.org/def/concept/finance/sercop/objective/107,CONTINENTAL LANDSCAPES LTD,2108452,11-04-2018,0000076514,6.17,0,Parks Routine Maintenance March 18,391310,Construction Open Spaces Construction
South Lakeland District Council,http://opendatacommunities.org/id/district-council/south-lakeland,30/04/2018,Leisure and Wellbeing,Highways & Transport Services,http://opendatacommunities.org/def/concept/finance/sercop/objective/107,CONTINENTAL LANDSCAPES LTD,2108452,11-04-2018,0000076514,4.01,0,Parks Routine Maintenance March 18,391310,Construction Open Spaces Construction
South Lakeland District Council,http://opendatacommunities.org/id/district-council/south-lakeland,30/04/2018,Leisure and Wellbeing,Highways & Transport Services,http://opendatacommunities.org/def/concept/finance/sercop/objective/107,CONTINENTAL LANDSCAPES LTD,2108452,11-04-2018,0000076514,6.17,0,Parks Routine Maintenance March 18,391310,Construction Open Spaces Construction
South Lakeland District Council,http://opendatacommunities.org/id/district-council/south-lakeland,30/04/2018,Leisure and Wellbeing,Highways & Transport Services,http://opendatacommunities.org/def/concept/finance/sercop/objective/107,CONTINENTAL LANDSCAPES LTD,2108452,11-04-2018,0000076514,73.99,0,Parks Routine Maintenance March 18,391310,Construction Open Spaces Construction
South Lakeland District Council,http://opendatacommunities.org/id/district-council/south-lakeland,30/04/2018,Leisure and Wellbeing,Highways & Transport Services,http://opendatacommunities.org/def/concept/finance/sercop/objective/107,CONTINENTAL LANDSCAPES LTD,2108452,11-04-2018,0000076514,3.08,0,Parks Routine Maintenance March 18,391310,Construction Open Spaces Construction
South Lakeland District Council,http://opendatacommunities.org/id/district-council/south-lakeland,30/04/2018,Leisure and Wellbeing,Highways & Transport Services,http://opendatacommunities.org/def/concept/finance/sercop/objective/107,CONTINENTAL LANDSCAPES LTD,2108452,11-04-2018,0000076514,5.55,0,Parks Routine Maintenance March 18,391310,Construction Open Spaces Construction
South Lakeland District Council,http://opendatacommunities.org/id/district-council/south-lakeland,30/04/2018,Leisure and Wellbeing,Highways & Transport Services,http://opendatacommunities.org/def/concept/finance/sercop/objective/107,CONTINENTAL LANDSCAPES LTD,2108452,11-04-2018,0000076514,6.17,0,Parks Routine Maintenance March 18,391310,Construction Open Spaces Construction
South Lakeland District Council,http://opendatacommunities.org/id/district-council/south-lakeland,30/04/2018,Leisure and Wellbeing,Highways & Transport Services,http://opendatacommunities.org/def/concept/finance/sercop/objective/107,CONTINENTAL LANDSCAPES LTD,2108452,11-04-2018,0000076514,67.82,0,Parks Routine Maintenance March 18,391310,Construction Open Spaces Construction
South Lakeland District Council,http://opendatacommunities.org/id/district-council/south-lakeland,30/04/2018,Leisure and Wellbeing,Highways & Transport Services,http://opendatacommunities.org/def/concept/finance/sercop/objective/107,CONTINENTAL LANDSCAPES LTD,2108452,11-04-2018,0000076514,129.48,0,Parks Routine Maintenance March 18,391310,Construction Open Spaces Construction
South Lakeland District Council,http://opendatacommunities.org/id/district-council/south-lakeland,30/04/2018,Leisure and Wellbeing,Highways & Transport Services,http://opendatacommunities.org/def/concept/finance/sercop/objective/107,CONTINENTAL LANDSCAPES LTD,2108452,11-04-2018,0000076514,6.17,0,Parks Routine Maintenance March 18,391310,Construction Open Spaces Construction
South Lakeland District Council,http://opendatacommunities.org/id/district-council/south-lakeland,30/04/2018,Leisure and Wellbeing,Highways & Transport Services,http://opendatacommunities.org/def/concept/finance/sercop/objective/107,CONTINENTAL LANDSCAPES LTD,2108452,11-04-2018,0000076514,12.33,0,Parks Routine Maintenance March 18,391310,Construction Open Spaces Construction
South Lakeland District Council,http://opendatacommunities.org/id/district-council/south-lakeland,30/04/2018,Leisure and Wellbeing,Highways & Transport Services,http://opendatacommunities.org/def/concept/finance/sercop/objective/107,CONTINENTAL LANDSCAPES LTD,2108452,11-04-2018,0000076514,12.33,0,Parks Routine Maintenance March 18,391310,Construction Open Spaces Construction
South Lakeland District Council,http://opendatacommunities.org/id/district-council/south-lakeland,30/04/2018,Leisure and Wellbeing,Highways & Transport Services,http://opendatacommunities.org/def/concept/finance/sercop/objective/107,CONTINENTAL LANDSCAPES LTD,2108452,11-04-2018,0000076514,184.98,0,Parks Routine Maintenance March 18,391310,Construction Open Spaces Construction
South Lakeland District Council,http://opendatacommunities.org/id/district-council/south-lakeland,30/04/2018,Leisure and Wellbeing,Highways & Transport Services,http://opendatacommunities.org/def/concept/finance/sercop/objective/107,CONTINENTAL LANDSCAPES LTD,2108452,11-04-2018,0000076514,6.17,0,Parks Routine Maintenance March 18,391310,Construction Open Spaces Construction
South Lakeland District Council,http://opendatacommunities.org/id/district-council/south-lakeland,30/04/2018,Leisure and Wellbeing,Highways & Transport Services,http://opendatacommunities.org/def/concept/finance/sercop/objective/107,CONTINENTAL LANDSCAPES LTD,2108452,11-04-2018,0000076514,55.49,0,Parks Routine Maintenance March 18,391310,Construction Open Spaces Construction
South Lakeland District Council,http://opendatacommunities.org/id/district-council/south-lakeland,30/04/2018,Leisure and Wellbeing,Highways & Transport Services,http://opendatacommunities.org/def/concept/finance/sercop/objective/107,CONTINENTAL LANDSCAPES LTD,2108452,11-04-2018,0000076514,12.33,0,Parks Routine Maintenance March 18,391310,Construction Open Spaces Construction
South Lakeland District Council,http://opendatacommunities.org/id/district-council/south-lakeland,30/04/2018,Leisure and Wellbeing,Highways & Transport Services,http://opendatacommunities.org/def/concept/finance/sercop/objective/107,CONTINENTAL LANDSCAPES LTD,2108452,11-04-2018,0000076514,24.66,0,Parks Routine Maintenance March 18,391310,Construction Open Spaces Construction
South Lakeland District Council,http://opendatacommunities.org/id/district-council/south-lakeland,30/04/2018,Leisure and Wellbeing,Highways & Transport Services,http://opendatacommunities.org/def/concept/finance/sercop/objective/107,CONTINENTAL LANDSCAPES LTD,2108452,11-04-2018,0000076514,18.5,0,Parks Routine Maintenance March 18,391310,Construction Open Spaces Construction
South Lakeland District Council,http://opendatacommunities.org/id/district-council/south-lakeland,30/04/2018,Leisure and Wellbeing,Highways & Transport Services,http://opendatacommunities.org/def/concept/finance/sercop/objective/107,CONTINENTAL LANDSCAPES LTD,2108452,11-04-2018,0000076514,18.5,0,Parks Routine Maintenance March 18,391310,Construction Open Spaces Construction
South Lakeland District Council,http://opendatacommunities.org/id/district-council/south-lakeland,30/04/2018,Leisure and Wellbeing,Cultural Environmental Regulatory & Planning Services,http://opendatacommunities.org/def/concept/finance/sercop/objective/104,CONTINENTAL LANDSCAPES LTD,2108452,11-04-2018,0000076514,59941.48,0,Parks Routine Maintenance March 18,391310,Construction Open Spaces Construction
South Lakeland District Council,http://opendatacommunities.org/id/district-council/south-lakeland,30/04/2018,Leisure and Wellbeing,Cultural Environmental Regulatory & Planning Services,http://opendatacommunities.org/def/concept/finance/sercop/objective/104,CONTINENTAL LANDSCAPES LTD,2108452,11-04-2018,0000076514,493.27,0,Parks Routine Maintenance March 18,391310,Construction Open Spaces Construction
South Lakeland District Council,http://opendatacommunities.org/id/district-council/south-lakeland,30/04/2018,Business Support Community Services,Central Services,http://opendatacommunities.org/def/concept/finance/sercop/objective/102,CRAEMER UK LTD,02574815,11-04-2018,0000076515,10032,0,ESPO Framework Agreement 860 Lot 1,182012,Environment Waste Management Recycling
South Lakeland District Council,http://opendatacommunities.org/id/district-council/south-lakeland,30/04/2018,Business Support Community Services,Cultural Environmental Regulatory & Planning Services,http://opendatacommunities.org/def/concept/finance/sercop/objective/104,K S INTERNATIONAL LTD,02703321,11-04-2018,0000076516,100,0,Parts,381500,Vehicle Mgt Parts
South Lakeland District Council,http://opendatacommunities.org/id/district-council/south-lakeland,30/04/2018,Business Support Community Services,Internal Trading Accounts,,SOLWAY DAF,1393710,11-04-2018,0000076517,31.19,0,Parts,381000,Vehicle Mgt Commercial
South Lakeland District Council,http://opendatacommunities.org/id/district-council/south-lakeland,30/04/2018,Business Support Community Services,Cultural Environmental Regulatory & Planning Services,http://opendatacommunities.org/def/concept/finance/sercop/objective/104,Romaquip UK,,16-04-2018,0000076518,4995,0,RRV vehicle hire,381000,Vehicle Mgt Commercial
South Lakeland District Council,http://opendatacommunities.org/id/district-council/south-lakeland,30/04/2018,Business Support Community Services,Cultural Environmental Regulatory & Planning Services,http://opendatacommunities.org/def/concept/finance/sercop/objective/104,BERENDSEN UK LTD,00228604,11-04-2018,0000076519,218.52,0,Workwear hire 01/04/18 - 31/03/19,161000,Domestic Goods Commercial
South Lakeland District Council,http://opendatacommunities.org/id/district-council/south-lakeland,30/04/2018,Business Support Community Services,Internal Trading Accounts,,S J Bargh,00532272,11-04-2018,0000076520,230.98,0,MOTs 2018/19 & vehicle cleaning,381400,Vehicle Mgt Maintenance
South Lakeland District Council,http://opendatacommunities.org/id/district-council/south-lakeland,30/04/2018,Business Support Community Services,Internal Trading Accounts,,Harry Park Tyres Ltd,08131208,11-04-2018,0000076521,579.5,0,Tyres,381500,Vehicle Mgt Parts
South Lakeland District Council,http://opendatacommunities.org/id/district-council/south-lakeland,30/04/2018,Business Support Community Services,Cultural Environmental Regulatory & Planning Services,http://opendatacommunities.org/def/concept/finance/sercop/objective/104,GARWOOD EUROPE LTD,04333504,11-04-2018,0000076522,59.24,0,Switches,182011,Environment Waste Management Consumables
South Lakeland District Council,http://opendatacommunities.org/id/district-council/south-lakeland,30/04/2018,Business Support Community Services,Internal Trading Accounts,,TAYLOR ENGINEERING & FABRICATIONS LTD,04989359,11-04-2018,0000076523,20.95,0,Parts,391200,Construction Engineering
South Lakeland District Council,http://opendatacommunities.org/id/district-council/south-lakeland,30/04/2018,Business Support Community Services,Internal Trading Accounts,,Verizon Connect UK Ltd,05265904,11-04-2018,0000076524,32,0,Annual fee for 70 vehicles from 01/06/18,361000,Public Transport Fleet Management
South Lakeland District Council,http://opendatacommunities.org/id/district-council/south-lakeland,30/04/2018,Business Support Community Services,Cultural Environmental Regulatory & Planning Services,http://opendatacommunities.org/def/concept/finance/sercop/objective/104,PENNINGTONS (KENDAL) LIMITED,00434649,11-04-2018,0000076525,2500,0,Annual Charge for use of Link Road at,182013,Environment Waste Mgt Waste Collection
South Lakeland District Council,http://opendatacommunities.org/id/district-council/south-lakeland,30/04/2018,Business Support Community Services,Cultural Environmental Regulatory & Planning Services,http://opendatacommunities.org/def/concept/finance/sercop/objective/104,Masterstaff Limited,02777593,16-04-2018,0000076526,5975.58,0,Agency staff,261300,HR Recruitment & Assessment
South Lakeland District Council,http://opendatacommunities.org/id/district-council/south-lakeland,30/04/2018,Business Support Community Services,Internal Trading Accounts,,M G D LTD,,11-04-2018,0000076527,35,0,MOTs 2018/19,381400,Vehicle Mgt Maintenance
South Lakeland District Council,http://opendatacommunities.org/id/district-council/south-lakeland,30/04/2018,Business Support Community Services,Internal Trading Accounts,,PROBRUSH T/A NORTHERN MUNICIPAL SPARES L,,11-04-2018,0000076528,2042.6,0,Brushes 2018/19,381600,Vehicle Mgt Leasing
South Lakeland District Council,http://opendatacommunities.org/id/district-council/south-lakeland,30/04/2018,Business Support Community Services,Cultural Environmental Regulatory & Planning Services,http://opendatacommunities.org/def/concept/finance/sercop/objective/104,TOTALKARE LTD,05256574,11-04-2018,0000076529,1344,0,Service lifts,381300,Vehicle Mgt Industrial
South Lakeland District Council,http://opendatacommunities.org/id/district-council/south-lakeland,30/04/2018,Business Support Community Services,Internal Trading Accounts,,Harry Park Tyres Ltd,08131208,11-04-2018,0000076530,515,0,Tyres,381500,Vehicle Mgt Parts
South Lakeland District Council,http://opendatacommunities.org/id/district-council/south-lakeland,30/04/2018,Business Support Community Services,Internal Trading Accounts,,EK MOTOR FACTORS LTD,00838524,11-04-2018,0000076531,16.01,0,Parts,381400,Vehicle Mgt Maintenance
South Lakeland District Council,http://opendatacommunities.org/id/district-council/south-lakeland,30/04/2018,Business Support Community Services,Internal Trading Accounts,,DENNIS EAGLE LTD,03794455,11-04-2018,0000076532,24,0,Parts,381300,Vehicle Mgt Industrial
South Lakeland District Council,http://opendatacommunities.org/id/district-council/south-lakeland,30/04/2018,Business Support Community Services,Cultural Environmental Regulatory & Planning Services,http://opendatacommunities.org/def/concept/finance/sercop/objective/104,ALLSTAR BUSINESS SOLUTIONS LTD (NCR),2631112,01-04-2018,0000076533,4700,0,Fuel to 31/03/18 (estimated),381600,Vehicle Mgt Leasing
South Lakeland District Council,http://opendatacommunities.org/id/district-council/south-lakeland,30/04/2018,Business Support Community Services,Cultural Environmental Regulatory & Planning Services,http://opendatacommunities.org/def/concept/finance/sercop/objective/104,ALLSTAR BUSINESS SOLUTIONS LTD (NCR),2631112,01-04-2018,0000076533,16592.62,0,Fuel to 31/03/18 (estimated),381600,Vehicle Mgt Leasing
South Lakeland District Council,http://opendatacommunities.org/id/district-council/south-lakeland,30/04/2018,Policy & Partnerships,Central Services,http://opendatacommunities.org/def/concept/finance/sercop/objective/102,LOCAL GOVERNMENT ASSOCIATION,,11-04-2018,0000076534,10320.32,0,2018/19 Subcription to Local Government,202100,Financial Services Subscriptions
South Lakeland District Council,http://opendatacommunities.org/id/district-council/south-lakeland,30/04/2018,Business Support Community Services,Internal Trading Accounts,,TECHNIJET LTD,02776601,11-04-2018,0000076535,93.87,0,Service & repair pressure washers,139999,Cleaning & Janitorial Not Elsewhere Clas
South Lakeland District Council,http://opendatacommunities.org/id/district-council/south-lakeland,30/04/2018,Business Support Community Services,Internal Trading Accounts,,TECHNIJET LTD,02776601,11-04-2018,0000076536,88.12,0,Service & repair pressure washers,139999,Cleaning & Janitorial Not Elsewhere Clas
South Lakeland District Council,http://opendatacommunities.org/id/district-council/south-lakeland,30/04/2018,Business Support Community Services,SLDC as Agent,,CUMBRIA COUNTY COUNCIL,,25-04-2018,0000076537,162,0,DBS Charges fro Taxi Drivers,908000,Public Bodies Council support services
South Lakeland District Council,http://opendatacommunities.org/id/district-council/south-lakeland,30/04/2018,Business Support Community Services,Cultural Environmental Regulatory & Planning Services,http://opendatacommunities.org/def/concept/finance/sercop/objective/104,CANNON HYGIENE LTD,01298292,16-04-2018,0000076538,2628.37,0,Clinical waste collections - 2017/18,131011,Cleaning & Janitorial Cleaning Materials
South Lakeland District Council,http://opendatacommunities.org/id/district-council/south-lakeland,30/04/2018,Revenues and Benefits,Central Services,http://opendatacommunities.org/def/concept/finance/sercop/objective/102,CAPITA BUSINESS SERVICES LTD,02299747,25-04-2018,0000076539,20041.81,0,Capita Payment Systems Maintenance,261500,HR Training & Conferences
South Lakeland District Council,http://opendatacommunities.org/id/district-council/south-lakeland,30/04/2018,Revenues and Benefits,Central Services,http://opendatacommunities.org/def/concept/finance/sercop/objective/102,CAPITA BUSINESS SERVICES LTD,02299747,25-04-2018,0000076539,268.75,0,Capita Payment Systems Maintenance,261500,HR Training & Conferences
South Lakeland District Council,http://opendatacommunities.org/id/district-council/south-lakeland,30/04/2018,Revenues and Benefits,Cultural Environmental Regulatory & Planning Services,http://opendatacommunities.org/def/concept/finance/sercop/objective/104,CAPITA BUSINESS SERVICES LTD,02299747,25-04-2018,0000076539,650.39,0,Capita Payment Systems Maintenance,261500,HR Training & Conferences
South Lakeland District Council,http://opendatacommunities.org/id/district-council/south-lakeland,30/04/2018,Social Enterprise Admin,SLDC as Agent,,PAY BY PHONE (PAYPOINT),,18-04-2018,0000076540,406.22,0,Pay-by-phone charges from 1 April 2017,351400,Street & Traffic Traffic Control
South Lakeland District Council,http://opendatacommunities.org/id/district-council/south-lakeland,30/04/2018,Business Support Community Services,Cultural Environmental Regulatory & Planning Services,http://opendatacommunities.org/def/concept/finance/sercop/objective/104,ADECCO UK LIMITED,00593232,11-04-2018,0000076541,510.76,0,Agency staff 2017/18,261400,HR Temporary & Agency Staff
South Lakeland District Council,http://opendatacommunities.org/id/district-council/south-lakeland,30/04/2018,Development Implementation,Planning and Development,,Bloom Procurement Services Ltd,,23-04-2018,0000076542,480,0,New Road Public Realm (Stages 2 - 6),151900,Consultancy Management
South Lakeland District Council,http://opendatacommunities.org/id/district-council/south-lakeland,30/04/2018,Leisure and Wellbeing,Culture and Related Serv,http://opendatacommunities.org/def/concept/finance/sercop/objective/104,Prescott Special Projects Ltd,,11-04-2018,0000076543,46454.66,0,"For paths, drainage and landscape works",391300,Construction Open Spaces
South Lakeland District Council,http://opendatacommunities.org/id/district-council/south-lakeland,30/04/2018,Kendal Town Hall,Cultural Environmental Regulatory & Planning Services,http://opendatacommunities.org/def/concept/finance/sercop/objective/104,Waterflo Ltd,5001809,11-04-2018,0000076545,120,0,Annual service and sanitisation of,371300,Utilities Water
South Lakeland District Council,http://opendatacommunities.org/id/district-council/south-lakeland,30/04/2018,Lake Wardens,Cultural Environmental Regulatory & Planning Services,http://opendatacommunities.org/def/concept/finance/sercop/objective/104,JONATHAN B JACKSON LTD,07762503,11-04-2018,0000076547,2400,0,Annual Inspection of Hire Craft in SLDC,391110,Construction Buildings Construction
South Lakeland District Council,http://opendatacommunities.org/id/district-council/south-lakeland,30/04/2018,Customer Services,Cultural Environmental Regulatory & Planning Services,http://opendatacommunities.org/def/concept/finance/sercop/objective/104,RIGHT 2 WORK,,18-04-2018,0000076548,3862,0,bulky items collected,321010,Social Care Adult Advice & Counselling
South Lakeland District Council,http://opendatacommunities.org/id/district-council/south-lakeland,30/04/2018,Social Enterprise Admin,Highways & Transport Services,http://opendatacommunities.org/def/concept/finance/sercop/objective/107,METRIC GROUP LIMITED,02560839,18-04-2018,0000076550,693,0,Web hosting and web tariff editor for,359999,Street & Traffic Not Elsewhere Classifie
South Lakeland District Council,http://opendatacommunities.org/id/district-council/south-lakeland,30/04/2018,Development Implementation,Cultural Environmental Regulatory & Planning Services,http://opendatacommunities.org/def/concept/finance/sercop/objective/104,CUMBRIAN NEWSPAPERS LIMITED,00002729,18-04-2018,0000076551,300,0,12 Months Advertising in InCumbria,191000,Facilities Advertising
South Lakeland District Council,http://opendatacommunities.org/id/district-council/south-lakeland,30/04/2018,Business Support Community Services,Central Services,http://opendatacommunities.org/def/concept/finance/sercop/objective/102,CUMBRIA COUNTY COUNCIL,,11-04-2018,0000076553,3745.3,0,LAND CHARGE SEARCH ENQUIRIES HIGHWAYS,908000,Public Bodies Council support services
South Lakeland District Council,http://opendatacommunities.org/id/district-council/south-lakeland,30/04/2018,ICT Group,Central Services,http://opendatacommunities.org/def/concept/finance/sercop/objective/102,CABLE & WIRELESS UK (VODAFONE),,25-04-2018,0000076556,3634.01,0,"GSI Convergence Framework, covers 1/4/17",271700,ICT Telecommunications Fixed
South Lakeland District Council,http://opendatacommunities.org/id/district-council/south-lakeland,30/04/2018,Human Resources,Central Services,http://opendatacommunities.org/def/concept/finance/sercop/objective/102,Colston Media Ltd,08299417,11-04-2018,0000076558,95,0,North West Times & Jobs Board x5 roles,191000,Facilities Advertising
South Lakeland District Council,http://opendatacommunities.org/id/district-council/south-lakeland,30/04/2018,Financial Services,Central Services,http://opendatacommunities.org/def/concept/finance/sercop/objective/102,Agility Resourcing,,11-04-2018,0000076559,5875.38,0,Placement of ,261300,HR Recruitment & Assessment
South Lakeland District Council,http://opendatacommunities.org/id/district-council/south-lakeland,30/04/2018,Policy & Partnerships,Cultural Environmental Regulatory & Planning Services,http://opendatacommunities.org/def/concept/finance/sercop/objective/104,THE WORDSWORTH TRUST,03442086,11-04-2018,0000076562,10000,0,Strategic Cultural Partnership grant,201700,Financial Services Grants
South Lakeland District Council,http://opendatacommunities.org/id/district-council/south-lakeland,30/04/2018,Business Support Community Services,Cultural Environmental Regulatory & Planning Services,http://opendatacommunities.org/def/concept/finance/sercop/objective/104,CIVICA UK LTD,01628868,11-04-2018,0000076565,4381.45,0,FASTSUITE SOFTWARE RENEWAL 01/04/2018,271600,ICT Software Customised & Bespoke
South Lakeland District Council,http://opendatacommunities.org/id/district-council/south-lakeland,30/04/2018,Business Support Community Services,Cultural Environmental Regulatory & Planning Services,http://opendatacommunities.org/def/concept/finance/sercop/objective/104,CIVICA UK LTD,01628868,11-04-2018,0000076565,8762.91,0,FASTSUITE SOFTWARE RENEWAL 01/04/2018,271600,ICT Software Customised & Bespoke
South Lakeland District Council,http://opendatacommunities.org/id/district-council/south-lakeland,30/04/2018,Business Support Community Services,Central Services,http://opendatacommunities.org/def/concept/finance/sercop/objective/102,CIVICA UK LTD,01628868,11-04-2018,0000076565,4381.45,0,FASTSUITE SOFTWARE RENEWAL 01/04/2018,271600,ICT Software Customised & Bespoke
South Lakeland District Council,http://opendatacommunities.org/id/district-council/south-lakeland,30/04/2018,Democratic and Member Services,Cultural Environmental Regulatory & Planning Services,http://opendatacommunities.org/def/concept/finance/sercop/objective/104,MILNTHORPE PARISH COUNCIL,,11-04-2018,0000076568,1000,0,LOCALITY DONATION TO PURCHASE FLOOD,908000,Public Bodies Council support services
South Lakeland District Council,http://opendatacommunities.org/id/district-council/south-lakeland,30/04/2018,Social Enterprise Admin,Highways & Transport Services,http://opendatacommunities.org/def/concept/finance/sercop/objective/107,ALLSTAR BUSINESS SOLUTIONS LTD (NCR),2631112,01-04-2018,0000076569,137.92,0,Fuel for CEO enforcement vehicles,381600,Vehicle Mgt Leasing
South Lakeland District Council,http://opendatacommunities.org/id/district-council/south-lakeland,30/04/2018,Social Enterprise Admin,Highways & Transport Services,http://opendatacommunities.org/def/concept/finance/sercop/objective/107,ALLSTAR BUSINESS SOLUTIONS LTD (NCR),2631112,01-04-2018,0000076569,206.88,0,Fuel for CEO enforcement vehicles,381600,Vehicle Mgt Leasing
South Lakeland District Council,http://opendatacommunities.org/id/district-council/south-lakeland,30/04/2018,Social Enterprise Admin,Cultural Environmental Regulatory & Planning Services,http://opendatacommunities.org/def/concept/finance/sercop/objective/104,ALLSTAR BUSINESS SOLUTIONS LTD (NCR),2631112,01-04-2018,0000076569,103.44,0,Fuel for CEO enforcement vehicles,381600,Vehicle Mgt Leasing
South Lakeland District Council,http://opendatacommunities.org/id/district-council/south-lakeland,30/04/2018,Business Support Community Services,Housing Services,http://opendatacommunities.org/def/concept/finance/sercop/objective/108,James Andrews Recruitment Solutions,06834852,11-04-2018,0000076570,833.89,0,Payment for ,261400,HR Temporary & Agency Staff
South Lakeland District Council,http://opendatacommunities.org/id/district-council/south-lakeland,30/04/2018,Business Support Community Services,Housing Services,http://opendatacommunities.org/def/concept/finance/sercop/objective/108,James Andrews Recruitment Solutions,06834852,11-04-2018,0000076572,840.72,0,Payment for ,261400,HR Temporary & Agency Staff
South Lakeland District Council,http://opendatacommunities.org/id/district-council/south-lakeland,30/04/2018,Business Support Community Services,Housing Services,http://opendatacommunities.org/def/concept/finance/sercop/objective/108,James Andrews Recruitment Solutions,06834852,11-04-2018,0000076572,840.72,0,Payment for ,261400,HR Temporary & Agency Staff
South Lakeland District Council,http://opendatacommunities.org/id/district-council/south-lakeland,30/04/2018,Social Enterprise Admin,Highways & Transport Services,http://opendatacommunities.org/def/concept/finance/sercop/objective/107,Conduent Business Process Solutions Ltd,,11-04-2018,0000076573,5032.44,0,Quarterly maintenance charge for,111200,Catering Food & Beverages
South Lakeland District Council,http://opendatacommunities.org/id/district-council/south-lakeland,30/04/2018,Business Support Community Services,Housing Services,http://opendatacommunities.org/def/concept/finance/sercop/objective/108,My Dream Cleaners Ltd,09839482,11-04-2018,0000076575,1126.12,0,Cleaning at Town View Fields,131320,Cleaning & Janitorial Cleaning Service
South Lakeland District Council,http://opendatacommunities.org/id/district-council/south-lakeland,30/04/2018,Electoral Services,Central Services,http://opendatacommunities.org/def/concept/finance/sercop/objective/102,ROYAL MAIL GROUP PLC,,18-04-2018,0000076577,54.68,0,Return postage 17/02/18 - 10/03/2018,301200,Mail Services� Postage
South Lakeland District Council,http://opendatacommunities.org/id/district-council/south-lakeland,30/04/2018,Leisure and Wellbeing,Cultural Environmental Regulatory & Planning Services,http://opendatacommunities.org/def/concept/finance/sercop/objective/104,J S Cleaning Services,,18-04-2018,0000076579,60,0,for the weekly cleaning of the chapel,131010,Cleaning & Janitorial Cleaning Materials
South Lakeland District Council,http://opendatacommunities.org/id/district-council/south-lakeland,30/04/2018,Social Enterprise Admin,Culture and Related Serv,http://opendatacommunities.org/def/concept/finance/sercop/objective/104,Eamonn Byrne Landscape Architecture,,11-04-2018,0000076580,1583.33,0,Tender documentation and detailed,391300,Construction Open Spaces
South Lakeland District Council,http://opendatacommunities.org/id/district-council/south-lakeland,30/04/2018,Business Support Community Services,Internal Trading Accounts,,LANCASTER TRAINING SERVICES LTD,01447612,11-04-2018,0000076583,20.83,0,Membership renewal,261500,HR Training & Conferences
South Lakeland District Council,http://opendatacommunities.org/id/district-council/south-lakeland,30/04/2018,Business Support Community Services,Internal Trading Accounts,,TPS Preston,,11-04-2018,0000076584,68.5,0,Parts,381400,Vehicle Mgt Maintenance
South Lakeland District Council,http://opendatacommunities.org/id/district-council/south-lakeland,30/04/2018,Business Support Community Services,Central Services,http://opendatacommunities.org/def/concept/finance/sercop/objective/102,ADECCO UK LIMITED,00593232,11-04-2018,0000076585,390.31,0,PAI Technician from 20/11/2017,261400,HR Temporary & Agency Staff
South Lakeland District Council,http://opendatacommunities.org/id/district-council/south-lakeland,30/04/2018,Business Support Community Services,Central Services,http://opendatacommunities.org/def/concept/finance/sercop/objective/102,ADECCO UK LIMITED,00593232,11-04-2018,0000076586,254.37,0,PAI Technician from 20/11/2017,261400,HR Temporary & Agency Staff
South Lakeland District Council,http://opendatacommunities.org/id/district-council/south-lakeland,30/04/2018,Development Implementation,Central Services,http://opendatacommunities.org/def/concept/finance/sercop/objective/102,ADECCO UK LIMITED,00593232,11-04-2018,0000076587,76.08,0,Cleaner for SLDC -  (6 hours per,261400,HR Temporary & Agency Staff
South Lakeland District Council,http://opendatacommunities.org/id/district-council/south-lakeland,30/04/2018,Development Implementation,Central Services,http://opendatacommunities.org/def/concept/finance/sercop/objective/102,ADECCO UK LIMITED,00593232,11-04-2018,0000076588,76.08,0,Cleaner for SLDC -  (6 hours per,261400,HR Temporary & Agency Staff
South Lakeland District Council,http://opendatacommunities.org/id/district-council/south-lakeland,30/04/2018,Development Implementation,Central Services,http://opendatacommunities.org/def/concept/finance/sercop/objective/102,ADECCO UK LIMITED,00593232,11-04-2018,0000076589,235.08,0,Cleaner for SLDC - - 15hrs per,261400,HR Temporary & Agency Staff
South Lakeland District Council,http://opendatacommunities.org/id/district-council/south-lakeland,30/04/2018,Business Support Community Services,Central Services,http://opendatacommunities.org/def/concept/finance/sercop/objective/102,ADECCO UK LIMITED,00593232,18-04-2018,0000076590,211.25,0,PAI Technician from 20/11/2017,261400,HR Temporary & Agency Staff
South Lakeland District Council,http://opendatacommunities.org/id/district-council/south-lakeland,30/04/2018,Customer Services,Central Services,http://opendatacommunities.org/def/concept/finance/sercop/objective/102,SHRED-IT,04047194,30-04-2018,0000076591,229.1,0,SHRED IT,279999,ICT Not Elsewhere Classified
South Lakeland District Council,http://opendatacommunities.org/id/district-council/south-lakeland,30/04/2018,Business Support Community Services,Cultural Environmental Regulatory & Planning Services,http://opendatacommunities.org/def/concept/finance/sercop/objective/104,ARCO LIMITED,00133804,16-04-2018,0000076592,88.8,0,Cleaning materials,141100,Clothing Protective
South Lakeland District Council,http://opendatacommunities.org/id/district-council/south-lakeland,30/04/2018,Business Support Community Services,Cultural Environmental Regulatory & Planning Services,http://opendatacommunities.org/def/concept/finance/sercop/objective/104,ARCO LIMITED,00133804,16-04-2018,0000076593,88.8,0,Cleaning materials,141100,Clothing Protective
South Lakeland District Council,http://opendatacommunities.org/id/district-council/south-lakeland,30/04/2018,Kendal Town Hall,Central Services,http://opendatacommunities.org/def/concept/finance/sercop/objective/102,BERENDSEN UK LTD,00228604,11-04-2018,0000076594,100.64,0,Weekly cleaning and exchange of mats at,161000,Domestic Goods Commercial
South Lakeland District Council,http://opendatacommunities.org/id/district-council/south-lakeland,30/04/2018,Kendal Town Hall,Cultural Environmental Regulatory & Planning Services,http://opendatacommunities.org/def/concept/finance/sercop/objective/104,BERENDSEN UK LTD,00228604,11-04-2018,0000076594,24,0,Weekly cleaning and exchange of mats at,161000,Domestic Goods Commercial
South Lakeland District Council,http://opendatacommunities.org/id/district-council/south-lakeland,30/04/2018,Business Support Community Services,Internal Trading Accounts,,AINSWORTH'S GARAGE,,11-04-2018,0000076595,210,0,Call outs,381400,Vehicle Mgt Maintenance
South Lakeland District Council,http://opendatacommunities.org/id/district-council/south-lakeland,30/04/2018,Business Support Community Services,Cultural Environmental Regulatory & Planning Services,http://opendatacommunities.org/def/concept/finance/sercop/objective/104,ARCO LIMITED,00133804,16-04-2018,0000076596,54.28,0,Cleaning materials,141100,Clothing Protective
South Lakeland District Council,http://opendatacommunities.org/id/district-council/south-lakeland,30/04/2018,Business Support Community Services,Central Services,http://opendatacommunities.org/def/concept/finance/sercop/objective/102,STRAIGHT MANUFACTURING Ltd,01618165,11-04-2018,0000076597,8317.44,0,44-l blue Ergo boxes as specified. 5 x,182011,Environment Waste Management Consumables
South Lakeland District Council,http://opendatacommunities.org/id/district-council/south-lakeland,30/04/2018,Business Support Community Services,Cultural Environmental Regulatory & Planning Services,http://opendatacommunities.org/def/concept/finance/sercop/objective/104,H WICKS (LINDAL) LTD,00754590,11-04-2018,0000076598,900,0,"Gate fees, handling, transport & baling",182012,Environment Waste Management Recycling
South Lakeland District Council,http://opendatacommunities.org/id/district-council/south-lakeland,30/04/2018,Business Support Community Services,Internal Trading Accounts,,COMPASS COMPONENTS,,11-04-2018,0000076599,207.23,0,Consumables 2018/19,101400,Building General Materials
South Lakeland District Council,http://opendatacommunities.org/id/district-council/south-lakeland,30/04/2018,Development Strategy,Planning and Development,,KIRKBY LONSDALE TOWN COUNCIL,,11-04-2018,0000076600,1946.34,0,CIL - Neighbourhood Funding Portion,908000,Public Bodies Council support services
South Lakeland District Council,http://opendatacommunities.org/id/district-council/south-lakeland,30/04/2018,Development Strategy,Planning and Development,,NATLAND PARISH COUNCIL,,11-04-2018,0000076601,1134.64,0,CIL - Neighbourhood Funding Portion,908000,Public Bodies Council support services
South Lakeland District Council,http://opendatacommunities.org/id/district-council/south-lakeland,30/04/2018,Development Strategy,Planning and Development,,LOWER ALLITHWAITE PARISH COUNCIL,,11-04-2018,0000076602,713.43,0,CIL - Neighbourhood Funding Portion,908000,Public Bodies Council support services
South Lakeland District Council,http://opendatacommunities.org/id/district-council/south-lakeland,30/04/2018,Business Support Community Services,Housing Services,http://opendatacommunities.org/def/concept/finance/sercop/objective/108,Mapp Estates,,11-04-2018,0000076603,850,0,"Deposit for 4 Cumberland View Rd,",250010,Housing Letting Agents
South Lakeland District Council,http://opendatacommunities.org/id/district-council/south-lakeland,30/04/2018,Lake Wardens,Cultural Environmental Regulatory & Planning Services,http://opendatacommunities.org/def/concept/finance/sercop/objective/104,THOMAS GRAHAM & SONS LTD,00656879,11-04-2018,0000076608,28.75,0,1 Pack (10) of 18 tooth hacksaw blades,101400,Building General Materials
South Lakeland District Council,http://opendatacommunities.org/id/district-council/south-lakeland,30/04/2018,Lake Wardens,Cultural Environmental Regulatory & Planning Services,http://opendatacommunities.org/def/concept/finance/sercop/objective/104,THOMAS GRAHAM & SONS LTD,00656879,11-04-2018,0000076609,20.8,0,1 Pack (10) of 18 tooth hacksaw blades,101400,Building General Materials
South Lakeland District Council,http://opendatacommunities.org/id/district-council/south-lakeland,30/04/2018,Development Implementation,Cultural Environmental Regulatory & Planning Services,http://opendatacommunities.org/def/concept/finance/sercop/objective/104,THOMAS GRAHAM & SONS LTD,00656879,16-04-2018,0000076611,11.7,0,Lemon Floor Gel - 1 box of 2,101400,Building General Materials
South Lakeland District Council,http://opendatacommunities.org/id/district-council/south-lakeland,30/04/2018,Development Implementation,Cultural Environmental Regulatory & Planning Services,http://opendatacommunities.org/def/concept/finance/sercop/objective/104,THOMAS GRAHAM & SONS LTD,00656879,16-04-2018,0000076611,32.42,0,Lemon Floor Gel - 1 box of 2,101400,Building General Materials
South Lakeland District Council,http://opendatacommunities.org/id/district-council/south-lakeland,30/04/2018,Development Implementation,Central Services,http://opendatacommunities.org/def/concept/finance/sercop/objective/102,THOMAS GRAHAM & SONS LTD,00656879,16-04-2018,0000076612,367.16,0,C Fold Paper Hand Towels Blue 1ply - 3,101400,Building General Materials
South Lakeland District Council,http://opendatacommunities.org/id/district-council/south-lakeland,30/04/2018,Kendal Town Hall,Central Services,http://opendatacommunities.org/def/concept/finance/sercop/objective/102,THOMAS GRAHAM & SONS LTD,00656879,16-04-2018,0000076613,159.05,0,99PR071 - Tork White Centrefeed Rolls -,101400,Building General Materials
South Lakeland District Council,http://opendatacommunities.org/id/district-council/south-lakeland,30/04/2018,Social Enterprise Admin,Highways & Transport Services,http://opendatacommunities.org/def/concept/finance/sercop/objective/107,THOMAS GRAHAM & SONS LTD,00656879,16-04-2018,0000076614,60.12,0,Jangro Cartridge Soad Dispenser Product,101400,Building General Materials
South Lakeland District Council,http://opendatacommunities.org/id/district-council/south-lakeland,30/04/2018,Lake Wardens,Cultural Environmental Regulatory & Planning Services,http://opendatacommunities.org/def/concept/finance/sercop/objective/104,THOMAS GRAHAM & SONS LTD,00656879,11-04-2018,0000076615,130.5,0,6 x Packs of JP32 Coreless Toilet Rolls,101400,Building General Materials
South Lakeland District Council,http://opendatacommunities.org/id/district-council/south-lakeland,30/04/2018,Development Implementation,Central Services,http://opendatacommunities.org/def/concept/finance/sercop/objective/102,THOMAS GRAHAM & SONS LTD,00656879,11-04-2018,0000076616,382.56,0,8 boxes of Azure foam wash (6 liters,101400,Building General Materials
South Lakeland District Council,http://opendatacommunities.org/id/district-council/south-lakeland,30/04/2018,Development Implementation,Cultural Environmental Regulatory & Planning Services,http://opendatacommunities.org/def/concept/finance/sercop/objective/104,Trafalgar Public Relations Ltd,,11-04-2018,0000076617,2800,0,PR & Marketing Support for Invest in,150000,Consultancy
South Lakeland District Council,http://opendatacommunities.org/id/district-council/south-lakeland,30/04/2018,ICT Group,Central Services,http://opendatacommunities.org/def/concept/finance/sercop/objective/102,THE DOCUMENT MANAGEMENT GROUP LTD,05210023,11-04-2018,0000076618,4050,0,Scanner support and maintenance,191200,Facilities Document Archiving & Storage
South Lakeland District Council,http://opendatacommunities.org/id/district-council/south-lakeland,30/04/2018,Development Management,Cultural Environmental Regulatory & Planning Services,http://opendatacommunities.org/def/concept/finance/sercop/objective/104,LABC,,11-04-2018,0000076619,1205.49,0,LABC Service Fee 2018 - 2019,202100,Financial Services Subscriptions
South Lakeland District Council,http://opendatacommunities.org/id/district-council/south-lakeland,30/04/2018,Development Management,Cultural Environmental Regulatory & Planning Services,http://opendatacommunities.org/def/concept/finance/sercop/objective/104,LABC,,11-04-2018,0000076619,723.3,0,LABC Service Fee 2018 - 2019,202100,Financial Services Subscriptions
South Lakeland District Council,http://opendatacommunities.org/id/district-council/south-lakeland,30/04/2018,Democratic and Member Services,Cultural Environmental Regulatory & Planning Services,http://opendatacommunities.org/def/concept/finance/sercop/objective/104,GRANTS- MISCELLANEOUS,,11-04-2018,0000076620,600,0,loclaity donation to assist with the,201700,Financial Services Grants
South Lakeland District Council,http://opendatacommunities.org/id/district-council/south-lakeland,30/04/2018,Transport,Central Services,http://opendatacommunities.org/def/concept/finance/sercop/objective/102,HAKO MACHINES LIMITED,01414225,18-04-2018,0000076621,65918.89,0,6 x compact sweepers,131000,Cleaning & Janitorial Cleaning Materials
South Lakeland District Council,http://opendatacommunities.org/id/district-council/south-lakeland,30/04/2018,Business Support Community Services,Central Services,http://opendatacommunities.org/def/concept/finance/sercop/objective/102,HAKO MACHINES LIMITED,01414225,18-04-2018,0000076622,131837.78,0,6 x compact sweepers,131000,Cleaning & Janitorial Cleaning Materials
South Lakeland District Council,http://opendatacommunities.org/id/district-council/south-lakeland,30/04/2018,Business Support Community Services,Central Services,http://opendatacommunities.org/def/concept/finance/sercop/objective/102,HAKO MACHINES LIMITED,01414225,18-04-2018,0000076623,131837.78,0,6 x compact sweepers,131000,Cleaning & Janitorial Cleaning Materials
South Lakeland District Council,http://opendatacommunities.org/id/district-council/south-lakeland,30/04/2018,Business Support Community Services,Internal Trading Accounts,,HYDRAIR TRUCK & TRAILER PARTS LTD,,16-04-2018,0000076624,76.58,0,Parts,381500,Vehicle Mgt Parts
South Lakeland District Council,http://opendatacommunities.org/id/district-council/south-lakeland,30/04/2018,Business Support Community Services,Internal Trading Accounts,,EK MOTOR FACTORS LTD,00838524,16-04-2018,0000076625,210,0,Parts,381400,Vehicle Mgt Maintenance
South Lakeland District Council,http://opendatacommunities.org/id/district-council/south-lakeland,30/04/2018,Business Support Community Services,Internal Trading Accounts,,EK MOTOR FACTORS LTD,00838524,16-04-2018,0000076626,-180,0,Parts,381400,Vehicle Mgt Maintenance
South Lakeland District Council,http://opendatacommunities.org/id/district-council/south-lakeland,30/04/2018,Business Support Community Services,Internal Trading Accounts,,SOLWAY DAF,1393710,16-04-2018,0000076627,54.22,0,Parts,381000,Vehicle Mgt Commercial
South Lakeland District Council,http://opendatacommunities.org/id/district-council/south-lakeland,30/04/2018,Business Support Community Services,Internal Trading Accounts,,Harry Park Tyres Ltd,08131208,16-04-2018,0000076628,30,0,Tyres,381500,Vehicle Mgt Parts
South Lakeland District Council,http://opendatacommunities.org/id/district-council/south-lakeland,30/04/2018,Business Support Community Services,Internal Trading Accounts,,VOLVO GROUP UK LTD,02190944,18-04-2018,0000076629,228,0,Parts,381000,Vehicle Mgt Commercial
South Lakeland District Council,http://opendatacommunities.org/id/district-council/south-lakeland,30/04/2018,Business Support Community Services,Internal Trading Accounts,,EK MOTOR FACTORS LTD,00838524,16-04-2018,0000076630,35.94,0,Parts,381400,Vehicle Mgt Maintenance
South Lakeland District Council,http://opendatacommunities.org/id/district-council/south-lakeland,30/04/2018,Business Support Community Services,Internal Trading Accounts,,EK MOTOR FACTORS LTD,00838524,16-04-2018,0000076631,11.98,0,Parts,381400,Vehicle Mgt Maintenance
South Lakeland District Council,http://opendatacommunities.org/id/district-council/south-lakeland,30/04/2018,Business Support Community Services,Cultural Environmental Regulatory & Planning Services,http://opendatacommunities.org/def/concept/finance/sercop/objective/104,BRIAN ARMISTEAD LTD T/A SINKFALL RECYCLI,04133280,18-04-2018,0000076632,1257.47,0,Green waste tipping - 2017/18,391110,Construction Buildings Construction
South Lakeland District Council,http://opendatacommunities.org/id/district-council/south-lakeland,30/04/2018,Business Support Community Services,Cultural Environmental Regulatory & Planning Services,http://opendatacommunities.org/def/concept/finance/sercop/objective/104,ADECCO UK LIMITED,00593232,25-04-2018,0000076633,647.94,0,Agency staff 2018/19,261400,HR Temporary & Agency Staff
South Lakeland District Council,http://opendatacommunities.org/id/district-council/south-lakeland,30/04/2018,Business Support Community Services,Transport Planning Policy,http://opendatacommunities.org/def/concept/finance/sercop/objective/107,ARCO LIMITED,00133804,16-04-2018,0000076634,134.28,0,Cleaning materials,141100,Clothing Protective
South Lakeland District Council,http://opendatacommunities.org/id/district-council/south-lakeland,30/04/2018,Business Support Community Services,Cultural Environmental Regulatory & Planning Services,http://opendatacommunities.org/def/concept/finance/sercop/objective/104,ARCO LIMITED,00133804,16-04-2018,0000076634,649.06,0,Cleaning materials,141100,Clothing Protective
South Lakeland District Council,http://opendatacommunities.org/id/district-council/south-lakeland,30/04/2018,Development Implementation,Central Services,http://opendatacommunities.org/def/concept/finance/sercop/objective/102,ADECCO UK LIMITED,00593232,18-04-2018,0000076637,272.16,0,Cleaner for SLDC -  - 15hrs per,261400,HR Temporary & Agency Staff
South Lakeland District Council,http://opendatacommunities.org/id/district-council/south-lakeland,30/04/2018,Business Support Community Services,Central Services,http://opendatacommunities.org/def/concept/finance/sercop/objective/102,ADECCO UK LIMITED,00593232,18-04-2018,0000076638,431.57,0,PAI Technician from 20/11/2017,261400,HR Temporary & Agency Staff
South Lakeland District Council,http://opendatacommunities.org/id/district-council/south-lakeland,30/04/2018,Business Support Community Services,Cultural Environmental Regulatory & Planning Services,http://opendatacommunities.org/def/concept/finance/sercop/objective/104,INTELLIGENT DATA SYSTEMS (UK) LTD,05148878,16-04-2018,0000076640,86.25,0,IDS Checks,271510,ICT Application Service Provision
South Lakeland District Council,http://opendatacommunities.org/id/district-council/south-lakeland,30/04/2018,Business Support Community Services,Transport Planning Policy,http://opendatacommunities.org/def/concept/finance/sercop/objective/107,Exacom Systems Ltd,07356515,25-04-2018,0000076641,8480.72,0,ANNUAL MAINTENANCE EXACOM OBLIGATION,152100,Consultancy Strategic Planning
South Lakeland District Council,http://opendatacommunities.org/id/district-council/south-lakeland,30/04/2018,Policy & Partnerships,Central Services,http://opendatacommunities.org/def/concept/finance/sercop/objective/102,KENTDALE FIRST AID TRAINING,,16-04-2018,0000076642,90,0,First Aid Training for Town View,261500,HR Training & Conferences
South Lakeland District Council,http://opendatacommunities.org/id/district-council/south-lakeland,30/04/2018,Financial Services,Central Services,http://opendatacommunities.org/def/concept/finance/sercop/objective/102,LINK ASSET SERVICES,2652033,16-04-2018,0000076643,7950,0,18/19 Treasury Advice Contract,209999,Financial Services Not Elsewhere Classif
South Lakeland District Council,http://opendatacommunities.org/id/district-council/south-lakeland,30/04/2018,Policy & Partnerships,Central Services,http://opendatacommunities.org/def/concept/finance/sercop/objective/102,The Coniston Institute,,16-04-2018,0000076644,21,0,High Furness LAP Meeting for Wednesday,192110,Facilities Room Hire
South Lakeland District Council,http://opendatacommunities.org/id/district-council/south-lakeland,30/04/2018,Business Support Community Services,Internal Trading Accounts,,EK MOTOR FACTORS LTD,00838524,16-04-2018,0000076646,47.17,0,Parts,381400,Vehicle Mgt Maintenance
South Lakeland District Council,http://opendatacommunities.org/id/district-council/south-lakeland,30/04/2018,Business Support Community Services,Internal Trading Accounts,,AINSWORTH'S GARAGE,,16-04-2018,0000076647,39,0,Call outs,381400,Vehicle Mgt Maintenance
South Lakeland District Council,http://opendatacommunities.org/id/district-council/south-lakeland,30/04/2018,Business Support Community Services,Internal Trading Accounts,,SOLWAY DAF,1393710,16-04-2018,0000076648,227.01,0,Parts,381000,Vehicle Mgt Commercial
South Lakeland District Council,http://opendatacommunities.org/id/district-council/south-lakeland,30/04/2018,Business Support Community Services,Cultural Environmental Regulatory & Planning Services,http://opendatacommunities.org/def/concept/finance/sercop/objective/104,ARCO LIMITED,00133804,16-04-2018,0000076649,9.85,0,Cleaning materials,141100,Clothing Protective
South Lakeland District Council,http://opendatacommunities.org/id/district-council/south-lakeland,30/04/2018,Business Support Community Services,Internal Trading Accounts,,M G D LTD,,16-04-2018,0000076650,35,0,MOTs 2018/19,381400,Vehicle Mgt Maintenance
South Lakeland District Council,http://opendatacommunities.org/id/district-council/south-lakeland,30/04/2018,Business Support Community Services,Cultural Environmental Regulatory & Planning Services,http://opendatacommunities.org/def/concept/finance/sercop/objective/104,APSE,06735100,16-04-2018,0000076651,2408,0,APSE membership,202100,Financial Services Subscriptions
South Lakeland District Council,http://opendatacommunities.org/id/district-council/south-lakeland,30/04/2018,Business Support Community Services,Central Services,http://opendatacommunities.org/def/concept/finance/sercop/objective/102,YORKSHIRE DALES NATIONAL PARK AUTHY,,16-04-2018,0000076652,605.6,0,LAND CHARGE SEARCH ENQUIRIES YDNPA,202100,Financial Services Subscriptions
South Lakeland District Council,http://opendatacommunities.org/id/district-council/south-lakeland,30/04/2018,Business Support Community Services,Housing Services,http://opendatacommunities.org/def/concept/finance/sercop/objective/108,James Andrews Recruitment Solutions,06834852,16-04-2018,0000076653,728.78,0,Payment ,261400,HR Temporary & Agency Staff
South Lakeland District Council,http://opendatacommunities.org/id/district-council/south-lakeland,30/04/2018,Business Support Community Services,Housing Services,http://opendatacommunities.org/def/concept/finance/sercop/objective/108,James Andrews Recruitment Solutions,06834852,16-04-2018,0000076654,833.94,0,Payment ,261400,HR Temporary & Agency Staff
South Lakeland District Council,http://opendatacommunities.org/id/district-council/south-lakeland,30/04/2018,Business Support Community Services,Housing Services,http://opendatacommunities.org/def/concept/finance/sercop/objective/108,James Andrews Recruitment Solutions,06834852,16-04-2018,0000076654,833.94,0,Payment ,261400,HR Temporary & Agency Staff
South Lakeland District Council,http://opendatacommunities.org/id/district-council/south-lakeland,30/04/2018,Financial Services,Central Services,http://opendatacommunities.org/def/concept/finance/sercop/objective/102,LAVAT Consulting t/a PSTAX,04810070,16-04-2018,0000076656,1785,0,Subs to Associations PSTAX 18/19,202100,Financial Services Subscriptions
South Lakeland District Council,http://opendatacommunities.org/id/district-council/south-lakeland,30/04/2018,Lake Wardens,Cultural Environmental Regulatory & Planning Services,http://opendatacommunities.org/def/concept/finance/sercop/objective/104,Harry Park Tyres Ltd,08131208,16-04-2018,0000076657,50,0,"2 x 4.80 - 4.00 x 8"" Tyres as per our",381500,Vehicle Mgt Parts
South Lakeland District Council,http://opendatacommunities.org/id/district-council/south-lakeland,30/04/2018,Customer Services,Central Services,http://opendatacommunities.org/def/concept/finance/sercop/objective/102,NEWSQUEST MEDIA GROUP LTD,03102566,16-04-2018,0000076658,348.46,0,for advertising,191000,Facilities Advertising
South Lakeland District Council,http://opendatacommunities.org/id/district-council/south-lakeland,30/04/2018,Westmorland Centre Parking Office,Highways & Transport Services,http://opendatacommunities.org/def/concept/finance/sercop/objective/107,LOOMIS UK LTD,03200432,16-04-2018,0000076660,1028.82,0,Cash collection April 2018,192200,Facilities Security
South Lakeland District Council,http://opendatacommunities.org/id/district-council/south-lakeland,30/04/2018,Westmorland Centre Parking Office,Highways & Transport Services,http://opendatacommunities.org/def/concept/finance/sercop/objective/107,G&D CURRENCY TECH LTD,04376601,16-04-2018,0000076661,495,0,CTL 301D Coin Sorter Maintenance,151200,Consultancy Efficiency
South Lakeland District Council,http://opendatacommunities.org/id/district-council/south-lakeland,30/04/2018,Business Support Community Services,Cultural Environmental Regulatory & Planning Services,http://opendatacommunities.org/def/concept/finance/sercop/objective/104,Planning Jungle Ltd,07854370,16-04-2018,0000076662,200,0,ANNUAL 1 YEAR MEMBERSHIP FOR PLANNING,202100,Financial Services Subscriptions
South Lakeland District Council,http://opendatacommunities.org/id/district-council/south-lakeland,30/04/2018,Social Enterprise Admin,Cultural Environmental Regulatory & Planning Services,http://opendatacommunities.org/def/concept/finance/sercop/objective/104,NEWSQUEST MEDIA GROUP LTD,03102566,16-04-2018,0000076663,169.28,0,PUBLIC NOTICES FOR PLANNING 1 APRIL - 31,191000,Facilities Advertising
South Lakeland District Council,http://opendatacommunities.org/id/district-council/south-lakeland,30/04/2018,Social Enterprise Admin,Cultural Environmental Regulatory & Planning Services,http://opendatacommunities.org/def/concept/finance/sercop/objective/104,FURNESS NEWSPAPERS LTD,01155841,16-04-2018,0000076664,129.84,0,PUBLIC NOTICES FOR PLANNING 1 APRIL 2015,191000,Facilities Advertising
South Lakeland District Council,http://opendatacommunities.org/id/district-council/south-lakeland,30/04/2018,Business Support Community Services,Internal Trading Accounts,,K S INTERNATIONAL LTD,02703321,16-04-2018,0000076667,85,0,Parts,381500,Vehicle Mgt Parts
South Lakeland District Council,http://opendatacommunities.org/id/district-council/south-lakeland,30/04/2018,Business Support Community Services,Cultural Environmental Regulatory & Planning Services,http://opendatacommunities.org/def/concept/finance/sercop/objective/104,ARCO LIMITED,00133804,16-04-2018,0000076668,529.44,0,Cleaning materials,141100,Clothing Protective
South Lakeland District Council,http://opendatacommunities.org/id/district-council/south-lakeland,30/04/2018,Business Support Community Services,Cultural Environmental Regulatory & Planning Services,http://opendatacommunities.org/def/concept/finance/sercop/objective/104,ARCO LIMITED,00133804,16-04-2018,0000076669,-637.44,0,Cleaning materials,141100,Clothing Protective
South Lakeland District Council,http://opendatacommunities.org/id/district-council/south-lakeland,30/04/2018,Business Support Community Services,Cultural Environmental Regulatory & Planning Services,http://opendatacommunities.org/def/concept/finance/sercop/objective/104,ARCO LIMITED,00133804,16-04-2018,0000076670,478.56,0,Cleaning materials,141100,Clothing Protective
South Lakeland District Council,http://opendatacommunities.org/id/district-council/south-lakeland,30/04/2018,Business Support Community Services,Central Services,http://opendatacommunities.org/def/concept/finance/sercop/objective/102,HAKO MACHINES LIMITED,01414225,16-04-2018,0000076671,1700,0,5 x road sweepers,131000,Cleaning & Janitorial Cleaning Materials
South Lakeland District Council,http://opendatacommunities.org/id/district-council/south-lakeland,30/04/2018,Business Support Community Services,Internal Trading Accounts,,FAUN ZOELLER (UK) LTD,00751804,16-04-2018,0000076672,417.75,0,Cylinder,381400,Vehicle Mgt Maintenance
South Lakeland District Council,http://opendatacommunities.org/id/district-council/south-lakeland,30/04/2018,Business Support Community Services,Cultural Environmental Regulatory & Planning Services,http://opendatacommunities.org/def/concept/finance/sercop/objective/104,Soopa Doopa Branding Ltd,07550313,16-04-2018,0000076673,222.5,0,750ml sports bottles in white with a,191800,Facilities Public Relations & Image
South Lakeland District Council,http://opendatacommunities.org/id/district-council/south-lakeland,30/04/2018,Business Support Community Services,Internal Trading Accounts,,FST CONSUMABLES LTD,01342012,16-04-2018,0000076674,129.83,0,Consumables 2018/19,101600,Building Hand Tools
South Lakeland District Council,http://opendatacommunities.org/id/district-council/south-lakeland,30/04/2018,Business Support Community Services,Internal Trading Accounts,,FST CONSUMABLES LTD,01342012,16-04-2018,0000076675,251.64,0,Consumables 2018/19,101600,Building Hand Tools
South Lakeland District Council,http://opendatacommunities.org/id/district-council/south-lakeland,30/04/2018,Business Support Community Services,Cultural Environmental Regulatory & Planning Services,http://opendatacommunities.org/def/concept/finance/sercop/objective/104,THOMAS GRAHAM & SONS LTD,00656879,16-04-2018,0000076676,5.23,0,Screws,101400,Building General Materials
South Lakeland District Council,http://opendatacommunities.org/id/district-council/south-lakeland,30/04/2018,Business Support Community Services,Internal Trading Accounts,,Harry Park Tyres Ltd,08131208,16-04-2018,0000076677,30,0,Tyres,381500,Vehicle Mgt Parts
South Lakeland District Council,http://opendatacommunities.org/id/district-council/south-lakeland,30/04/2018,Business Support Community Services,Cultural Environmental Regulatory & Planning Services,http://opendatacommunities.org/def/concept/finance/sercop/objective/104,JEWSON LIMITED,00348407,16-04-2018,0000076678,27.8,0,Fixtures & fittings 2017/18,101400,Building General Materials
South Lakeland District Council,http://opendatacommunities.org/id/district-council/south-lakeland,30/04/2018,Business Support Community Services,Internal Trading Accounts,,CALIBRATION & CONSULTANCY SERV (UK) LTD,,16-04-2018,0000076679,843.5,0,Calibrate tools,159999,Consultancy Not Elsewhere Classified
South Lakeland District Council,http://opendatacommunities.org/id/district-council/south-lakeland,30/04/2018,Business Support Community Services,Internal Trading Accounts,,EK MOTOR FACTORS LTD,00838524,16-04-2018,0000076680,14.16,0,Parts,381400,Vehicle Mgt Maintenance
South Lakeland District Council,http://opendatacommunities.org/id/district-council/south-lakeland,30/04/2018,Business Support Community Services,Internal Trading Accounts,,DENNIS EAGLE LTD,03794455,16-04-2018,0000076681,104.58,0,Parts,381300,Vehicle Mgt Industrial
South Lakeland District Council,http://opendatacommunities.org/id/district-council/south-lakeland,30/04/2018,Financial Services,Central Services,http://opendatacommunities.org/def/concept/finance/sercop/objective/102,Fred Harvey Associates,,16-04-2018,0000076682,300,0,EU Procurement Support 2018/19,150000,Consultancy
South Lakeland District Council,http://opendatacommunities.org/id/district-council/south-lakeland,30/04/2018,Business Support Community Services,SLDC as Agent,,TEXTHELP SYSTEMS LTD,NI31186,16-04-2018,0000076683,1400,0,Browsealoud Renewal,271200,ICT Hardware
South Lakeland District Council,http://opendatacommunities.org/id/district-council/south-lakeland,30/04/2018,Development Strategy,Cultural Environmental Regulatory & Planning Services,http://opendatacommunities.org/def/concept/finance/sercop/objective/104,Programme Officer Solutions Ltd,,16-04-2018,0000076684,886.3,0,Preparation for AONB DPD examination,261413,HR- Temporary Staff- Professional
South Lakeland District Council,http://opendatacommunities.org/id/district-council/south-lakeland,30/04/2018,Development Strategy,Cultural Environmental Regulatory & Planning Services,http://opendatacommunities.org/def/concept/finance/sercop/objective/104,Programme Officer Solutions Ltd,,16-04-2018,0000076685,312.5,0,Preparation for AONB DPD examination,261413,HR- Temporary Staff- Professional
South Lakeland District Council,http://opendatacommunities.org/id/district-council/south-lakeland,30/04/2018,Development Strategy,Cultural Environmental Regulatory & Planning Services,http://opendatacommunities.org/def/concept/finance/sercop/objective/104,Programme Officer Solutions Ltd,,16-04-2018,0000076686,368.75,0,Preparation for AONB DPD examination,261413,HR- Temporary Staff- Professional
South Lakeland District Council,http://opendatacommunities.org/id/district-council/south-lakeland,30/04/2018,Business Support Community Services,Housing Services,http://opendatacommunities.org/def/concept/finance/sercop/objective/108,Ashberry Recruitment,07202591,16-04-2018,0000076687,754.5,0,Agency staff at Town View Fields,261300,HR Recruitment & Assessment
South Lakeland District Council,http://opendatacommunities.org/id/district-council/south-lakeland,30/04/2018,Policy & Partnerships,Central Services,http://opendatacommunities.org/def/concept/finance/sercop/objective/102,Bloom Procurement Services Ltd,,18-04-2018,0000076688,2585.32,0,Ignite - Future Model Consultancy,151900,Consultancy Management
South Lakeland District Council,http://opendatacommunities.org/id/district-council/south-lakeland,30/04/2018,Business Support Community Services,Culture and Related Serv,http://opendatacommunities.org/def/concept/finance/sercop/objective/104,ULVERSTON TOWN COUNCIL,,16-04-2018,0000076689,4000,0,One-off LIPs contribution to Sir John,908000,Public Bodies Council support services
South Lakeland District Council,http://opendatacommunities.org/id/district-council/south-lakeland,30/04/2018,Development Implementation,Cultural Environmental Regulatory & Planning Services,http://opendatacommunities.org/def/concept/finance/sercop/objective/104,CUMBRIA WASTE RECYCLING LTD,03162439,18-04-2018,0000076690,112.4,0,"Waste Collection at 124 Highgate, Kendal",182012,Environment Waste Management Recycling
South Lakeland District Council,http://opendatacommunities.org/id/district-council/south-lakeland,30/04/2018,Development Implementation,Central Services,http://opendatacommunities.org/def/concept/finance/sercop/objective/102,CUMBRIA WASTE RECYCLING LTD,03162439,16-04-2018,0000076691,238.5,0,South Lakeland House bin & skip emptying,182012,Environment Waste Management Recycling
South Lakeland District Council,http://opendatacommunities.org/id/district-council/south-lakeland,30/04/2018,Development Implementation,Central Services,http://opendatacommunities.org/def/concept/finance/sercop/objective/102,CUMBRIA WASTE RECYCLING LTD,03162439,18-04-2018,0000076692,41.75,0,Langstone House 360ltr Wheelie Bin,182012,Environment Waste Management Recycling
South Lakeland District Council,http://opendatacommunities.org/id/district-council/south-lakeland,30/04/2018,Lake Wardens,Cultural Environmental Regulatory & Planning Services,http://opendatacommunities.org/def/concept/finance/sercop/objective/104,CUMBRIA WASTE RECYCLING LTD,03162439,23-04-2018,0000076693,246.08,0,Monthly collection of Refuse Wheelie,182012,Environment Waste Management Recycling
South Lakeland District Council,http://opendatacommunities.org/id/district-council/south-lakeland,30/04/2018,Kendal Town Hall,Cultural Environmental Regulatory & Planning Services,http://opendatacommunities.org/def/concept/finance/sercop/objective/104,CUMBRIA WASTE RECYCLING LTD,03162439,16-04-2018,0000076695,170,0,Annual waste collection for Kendal Town,182012,Environment Waste Management Recycling
South Lakeland District Council,http://opendatacommunities.org/id/district-council/south-lakeland,30/04/2018,Business Support Community Services,Internal Trading Accounts,,HYDRAIR TRUCK & TRAILER PARTS LTD,,16-04-2018,0000076696,203.22,0,Parts,381500,Vehicle Mgt Parts
South Lakeland District Council,http://opendatacommunities.org/id/district-council/south-lakeland,30/04/2018,Cemeteries Office,Cultural Environmental Regulatory & Planning Services,http://opendatacommunities.org/def/concept/finance/sercop/objective/104,CUMBRIA WASTE RECYCLING LTD,03162439,18-04-2018,0000076698,41.75,0,Covering order for cemeteries waste bin,182012,Environment Waste Management Recycling
South Lakeland District Council,http://opendatacommunities.org/id/district-council/south-lakeland,30/04/2018,Cemeteries Office,Cultural Environmental Regulatory & Planning Services,http://opendatacommunities.org/def/concept/finance/sercop/objective/104,CUMBRIA WASTE RECYCLING LTD,03162439,18-04-2018,0000076699,36.25,0,Covering order for cemeteries waste bin,182012,Environment Waste Management Recycling
South Lakeland District Council,http://opendatacommunities.org/id/district-council/south-lakeland,30/04/2018,Cemeteries Office,Cultural Environmental Regulatory & Planning Services,http://opendatacommunities.org/def/concept/finance/sercop/objective/104,CUMBRIA WASTE RECYCLING LTD,03162439,23-04-2018,0000076700,54.45,0,Covering order for cemeteries waste bin,182012,Environment Waste Management Recycling
South Lakeland District Council,http://opendatacommunities.org/id/district-council/south-lakeland,30/04/2018,Cemeteries Office,Cultural Environmental Regulatory & Planning Services,http://opendatacommunities.org/def/concept/finance/sercop/objective/104,CUMBRIA WASTE RECYCLING LTD,03162439,23-04-2018,0000076701,77.65,0,Covering order for cemeteries waste bin,182012,Environment Waste Management Recycling
South Lakeland District Council,http://opendatacommunities.org/id/district-council/south-lakeland,30/04/2018,Leisure and Wellbeing,Highways & Transport Services,http://opendatacommunities.org/def/concept/finance/sercop/objective/107,CUMBRIA WASTE RECYCLING LTD,03162439,18-04-2018,0000076702,62.32,0,660ltr bin at Kendal multi storey car,182012,Environment Waste Management Recycling
South Lakeland District Council,http://opendatacommunities.org/id/district-council/south-lakeland,30/04/2018,Development Management,Cultural Environmental Regulatory & Planning Services,http://opendatacommunities.org/def/concept/finance/sercop/objective/104,M & P Gadsden Ltd,,18-04-2018,0000076703,45,0,Checking of Structural calculations,391000,Construction Architect
South Lakeland District Council,http://opendatacommunities.org/id/district-council/south-lakeland,30/04/2018,Business Support Community Services,Transport Planning Policy,http://opendatacommunities.org/def/concept/finance/sercop/objective/107,ARCO LIMITED,00133804,18-04-2018,0000076704,37.11,0,Cleaning materials,141100,Clothing Protective
South Lakeland District Council,http://opendatacommunities.org/id/district-council/south-lakeland,30/04/2018,Business Support Community Services,Cultural Environmental Regulatory & Planning Services,http://opendatacommunities.org/def/concept/finance/sercop/objective/104,ARCO LIMITED,00133804,18-04-2018,0000076704,27.76,0,Cleaning materials,141100,Clothing Protective
South Lakeland District Council,http://opendatacommunities.org/id/district-council/south-lakeland,30/04/2018,Business Support Community Services,Cultural Environmental Regulatory & Planning Services,http://opendatacommunities.org/def/concept/finance/sercop/objective/104,CARTMEL AGRICULTURAL SOCIETY,,18-04-2018,0000076705,202.5,0,Cartmel Show,291000,Arts & Leisure Services Events
South Lakeland District Council,http://opendatacommunities.org/id/district-council/south-lakeland,30/04/2018,Business Support Community Services,Cultural Environmental Regulatory & Planning Services,http://opendatacommunities.org/def/concept/finance/sercop/objective/104,Masterstaff Limited,02777593,18-04-2018,0000076706,4770.04,0,Agency staff,261300,HR Recruitment & Assessment
South Lakeland District Council,http://opendatacommunities.org/id/district-council/south-lakeland,30/04/2018,Business Support Community Services,Internal Trading Accounts,,J R RICHARDSON LTD,02225792,18-04-2018,0000076707,190.34,0,Vehicle washing consumables,381500,Vehicle Mgt Parts
South Lakeland District Council,http://opendatacommunities.org/id/district-council/south-lakeland,30/04/2018,Business Support Community Services,Internal Trading Accounts,,Slicker Recycling Ltd,08652156,18-04-2018,0000076708,165,0,Waste oil collection,182015,Environment Waste Mgt Waste Disposal
South Lakeland District Council,http://opendatacommunities.org/id/district-council/south-lakeland,30/04/2018,Business Support Community Services,Internal Trading Accounts,,EK MOTOR FACTORS LTD,00838524,18-04-2018,0000076709,8,0,Parts,381400,Vehicle Mgt Maintenance
South Lakeland District Council,http://opendatacommunities.org/id/district-council/south-lakeland,30/04/2018,Business Support Community Services,Internal Trading Accounts,,DENNIS EAGLE LTD,03794455,18-04-2018,0000076710,119.46,0,Parts,381300,Vehicle Mgt Industrial
South Lakeland District Council,http://opendatacommunities.org/id/district-council/south-lakeland,30/04/2018,Business Support Community Services,Internal Trading Accounts,,INNOVATIVE SAFETY SYSTEMS LTD,06875015,25-04-2018,0000076711,158.5,0,Camera,192200,Facilities Security
South Lakeland District Council,http://opendatacommunities.org/id/district-council/south-lakeland,30/04/2018,Business Support Community Services,Internal Trading Accounts,,DENNIS EAGLE LTD,03794455,18-04-2018,0000076712,719.83,0,Parts,381300,Vehicle Mgt Industrial
South Lakeland District Council,http://opendatacommunities.org/id/district-council/south-lakeland,30/04/2018,Business Support Community Services,Housing Services,http://opendatacommunities.org/def/concept/finance/sercop/objective/108,Landlord,,16-04-2018,0000076714,520,0,Monthly rent ,202000,Financial Services Rents
South Lakeland District Council,http://opendatacommunities.org/id/district-council/south-lakeland,30/04/2018,Business Support Community Services,Housing Services,http://opendatacommunities.org/def/concept/finance/sercop/objective/108,Landlord,,16-04-2018,0000076715,600,0,Monthly rent ,250000,Housing
South Lakeland District Council,http://opendatacommunities.org/id/district-council/south-lakeland,30/04/2018,Business Support Community Services,Housing Services,http://opendatacommunities.org/def/concept/finance/sercop/objective/108,Landlord,,16-04-2018,0000076716,400,0,Monthly rent ,250000,Housing
South Lakeland District Council,http://opendatacommunities.org/id/district-council/south-lakeland,30/04/2018,Business Support Community Services,Housing Services,http://opendatacommunities.org/def/concept/finance/sercop/objective/108,Landlord,,16-04-2018,0000076717,410,0,Monthly rent ,250000,Housing
South Lakeland District Council,http://opendatacommunities.org/id/district-council/south-lakeland,30/04/2018,Business Support Community Services,Housing Services,http://opendatacommunities.org/def/concept/finance/sercop/objective/108,Landlord,,16-04-2018,0000076718,400,0,Monthly rent ,250000,Housing
South Lakeland District Council,http://opendatacommunities.org/id/district-council/south-lakeland,30/04/2018,Business Support Community Services,Housing Services,http://opendatacommunities.org/def/concept/finance/sercop/objective/108,Landlord,,16-04-2018,0000076719,415,0,Monthly rent ,250010,Housing Letting Agents
South Lakeland District Council,http://opendatacommunities.org/id/district-council/south-lakeland,30/04/2018,Business Support Community Services,Housing Services,http://opendatacommunities.org/def/concept/finance/sercop/objective/108,Landlord,07009105,16-04-2018,0000076720,480,0,Monthly rent ,250000,Housing
South Lakeland District Council,http://opendatacommunities.org/id/district-council/south-lakeland,30/04/2018,Business Support Community Services,Housing Services,http://opendatacommunities.org/def/concept/finance/sercop/objective/108,Landlord,,16-04-2018,0000076721,500,0,Monthly rent ,202000,Financial Services Rents
South Lakeland District Council,http://opendatacommunities.org/id/district-council/south-lakeland,30/04/2018,Business Support Community Services,Housing Services,http://opendatacommunities.org/def/concept/finance/sercop/objective/108,Landlord,,16-04-2018,0000076722,520,0,Monthly rent ,250000,Housing
South Lakeland District Council,http://opendatacommunities.org/id/district-council/south-lakeland,30/04/2018,Business Support Community Services,Central Services,http://opendatacommunities.org/def/concept/finance/sercop/objective/102,ADECCO UK LIMITED,00593232,23-04-2018,0000076727,542.1,0,PAI Technician from 20/11/2017,261400,HR Temporary & Agency Staff
South Lakeland District Council,http://opendatacommunities.org/id/district-council/south-lakeland,30/04/2018,Policy & Partnerships,Central Services,http://opendatacommunities.org/def/concept/finance/sercop/objective/102,ADECCO UK LIMITED,00593232,18-04-2018,0000076728,347.62,0,Temporary L&D Advisor supporting,261400,HR Temporary & Agency Staff
South Lakeland District Council,http://opendatacommunities.org/id/district-council/south-lakeland,30/04/2018,Business Support Community Services,Central Services,http://opendatacommunities.org/def/concept/finance/sercop/objective/102,ADECCO UK LIMITED,00593232,23-04-2018,0000076729,363.35,0,PAI Technician from 20/11/2017,261400,HR Temporary & Agency Staff
South Lakeland District Council,http://opendatacommunities.org/id/district-council/south-lakeland,30/04/2018,Revenues and Benefits,Central Services,http://opendatacommunities.org/def/concept/finance/sercop/objective/102,VENN GROUP RECRUITMENT SOLUTIONS,,23-04-2018,0000076730,372,0,Agency Staff -  A756938,261400,HR Temporary & Agency Staff
South Lakeland District Council,http://opendatacommunities.org/id/district-council/south-lakeland,30/04/2018,Revenues and Benefits,Central Services,http://opendatacommunities.org/def/concept/finance/sercop/objective/102,CFH Docmail Ltd,01716891,23-04-2018,0000076731,18967.97,0,C Tax & NNDR 2017 - 18 Billing,300000,Mail Services
South Lakeland District Council,http://opendatacommunities.org/id/district-council/south-lakeland,30/04/2018,Revenues and Benefits,Central Services,http://opendatacommunities.org/def/concept/finance/sercop/objective/102,CFH Docmail Ltd,01716891,23-04-2018,0000076731,1000,0,C Tax & NNDR 2017 - 18 Billing,300000,Mail Services
South Lakeland District Council,http://opendatacommunities.org/id/district-council/south-lakeland,30/04/2018,Revenues and Benefits,Central Services,http://opendatacommunities.org/def/concept/finance/sercop/objective/102,CFH Docmail Ltd,01716891,23-04-2018,0000076731,8801.87,0,C Tax & NNDR 2017 - 18 Billing,300000,Mail Services
South Lakeland District Council,http://opendatacommunities.org/id/district-council/south-lakeland,30/04/2018,Revenues and Benefits,Central Services,http://opendatacommunities.org/def/concept/finance/sercop/objective/102,ROYAL MAIL GROUP PLC,,18-04-2018,0000076732,37.45,0,Postal Charges a/c 0055114000  (2017/18),301200,Mail Services� Postage
South Lakeland District Council,http://opendatacommunities.org/id/district-council/south-lakeland,30/04/2018,Revenues and Benefits,SLDC as Agent,,ROYAL MAIL GROUP PLC,,23-04-2018,0000076733,2333.85,0,Postal Charges a/c 0198123013 (2017-18),301200,Mail Services� Postage
South Lakeland District Council,http://opendatacommunities.org/id/district-council/south-lakeland,30/04/2018,Revenues and Benefits,Central Services,http://opendatacommunities.org/def/concept/finance/sercop/objective/102,VENN GROUP RECRUITMENT SOLUTIONS,,18-04-2018,0000076734,800.84,0,Agency Staff -A756938,261400,HR Temporary & Agency Staff
South Lakeland District Council,http://opendatacommunities.org/id/district-council/south-lakeland,30/04/2018,Revenues and Benefits,Central Services,http://opendatacommunities.org/def/concept/finance/sercop/objective/102,VENN GROUP RECRUITMENT SOLUTIONS,,18-04-2018,0000076735,1054.1,0,Agency Staff - A756938,261400,HR Temporary & Agency Staff
South Lakeland District Council,http://opendatacommunities.org/id/district-council/south-lakeland,30/04/2018,Cemeteries Office,Cultural Environmental Regulatory & Planning Services,http://opendatacommunities.org/def/concept/finance/sercop/objective/104,COOPER ENGRAVING,,18-04-2018,0000076736,80,0,1 off reverse etched brass seat plaque,102400,Building Signage
South Lakeland District Council,http://opendatacommunities.org/id/district-council/south-lakeland,30/04/2018,Leisure and Wellbeing,Cultural Environmental Regulatory & Planning Services,http://opendatacommunities.org/def/concept/finance/sercop/objective/104,SOUTH LAKES TREE SURGEONS & LANDSCAPES,05342745,18-04-2018,0000076737,1050,0,"For work in Broadgate Meadow, Grasmere",241210,Horticultural Tree Trimming
South Lakeland District Council,http://opendatacommunities.org/id/district-council/south-lakeland,30/04/2018,Public Health and Licensing,Central Services,http://opendatacommunities.org/def/concept/finance/sercop/objective/102,INSTITUTE OF LICENSING (EVENTS) LTD,05710898,18-04-2018,0000076738,310,0,Gambling 7th June 2018,202100,Financial Services Subscriptions
South Lakeland District Council,http://opendatacommunities.org/id/district-council/south-lakeland,30/04/2018,Business Support Community Services,SLDC as Agent,,CUMBRIA COUNTY COUNCIL,,18-04-2018,0000076739,54,0,DBS Checks for Taxi Drivers,908000,Public Bodies Council support services
South Lakeland District Council,http://opendatacommunities.org/id/district-council/south-lakeland,30/04/2018,Leisure and Wellbeing,Cultural Environmental Regulatory & Planning Services,http://opendatacommunities.org/def/concept/finance/sercop/objective/104,INST OF CEMETERY & CREMATORIUM MANGMT,,18-04-2018,0000076746,90,0,Annual membership,202100,Financial Services Subscriptions
South Lakeland District Council,http://opendatacommunities.org/id/district-council/south-lakeland,30/04/2018,Business Support Community Services,Cultural Environmental Regulatory & Planning Services,http://opendatacommunities.org/def/concept/finance/sercop/objective/104,Voluntary Action Cumbria,3957858,30-04-2018,0000076747,5000,0,17-18 funding contribution to ACT.,250000,Housing
South Lakeland District Council,http://opendatacommunities.org/id/district-council/south-lakeland,30/04/2018,Business Support Community Services,Internal Trading Accounts,,SOLWAY DAF,1393710,18-04-2018,0000076748,19,0,Parts,381000,Vehicle Mgt Commercial
South Lakeland District Council,http://opendatacommunities.org/id/district-council/south-lakeland,30/04/2018,Business Support Community Services,Internal Trading Accounts,,SOLWAY DAF,1393710,18-04-2018,0000076749,250,0,Parts,381000,Vehicle Mgt Commercial
South Lakeland District Council,http://opendatacommunities.org/id/district-council/south-lakeland,30/04/2018,Business Support Community Services,Internal Trading Accounts,,SOLWAY DAF,1393710,18-04-2018,0000076750,20.55,0,Parts,381000,Vehicle Mgt Commercial
South Lakeland District Council,http://opendatacommunities.org/id/district-council/south-lakeland,30/04/2018,Business Support Community Services,Internal Trading Accounts,,CUMBRIA TRUCK CENTRE LTD,04298488,18-04-2018,0000076751,152.5,0,Repair SL003,381300,Vehicle Mgt Industrial
South Lakeland District Council,http://opendatacommunities.org/id/district-council/south-lakeland,30/04/2018,Business Support Community Services,Internal Trading Accounts,,S J Bargh,00532272,18-04-2018,0000076752,230.98,0,MOTs 2018/19 & vehicle cleaning,381400,Vehicle Mgt Maintenance
South Lakeland District Council,http://opendatacommunities.org/id/district-council/south-lakeland,30/04/2018,Business Support Community Services,Cultural Environmental Regulatory & Planning Services,http://opendatacommunities.org/def/concept/finance/sercop/objective/104,ARCO LIMITED,00133804,18-04-2018,0000076753,34.48,0,Cleaning materials,141100,Clothing Protective
South Lakeland District Council,http://opendatacommunities.org/id/district-council/south-lakeland,30/04/2018,Business Support Community Services,Internal Trading Accounts,,ARCO LIMITED,00133804,18-04-2018,0000076754,21.1,0,Trousers,141100,Clothing Protective
South Lakeland District Council,http://opendatacommunities.org/id/district-council/south-lakeland,30/04/2018,Business Support Community Services,Cultural Environmental Regulatory & Planning Services,http://opendatacommunities.org/def/concept/finance/sercop/objective/104,ARCO LIMITED,00133804,18-04-2018,0000076755,60.94,0,Cleaning materials,141100,Clothing Protective
South Lakeland District Council,http://opendatacommunities.org/id/district-council/south-lakeland,30/04/2018,Business Support Community Services,Internal Trading Accounts,,DENNIS EAGLE LTD,03794455,18-04-2018,0000076756,167.36,0,Parts,381300,Vehicle Mgt Industrial
South Lakeland District Council,http://opendatacommunities.org/id/district-council/south-lakeland,30/04/2018,Business Support Community Services,Internal Trading Accounts,,DENNIS EAGLE LTD,03794455,18-04-2018,0000076757,58.12,0,Parts,381300,Vehicle Mgt Industrial
South Lakeland District Council,http://opendatacommunities.org/id/district-council/south-lakeland,30/04/2018,Printing Section,Central Services,http://opendatacommunities.org/def/concept/finance/sercop/objective/102,ROSEFOX PAPER LIMITED,01655083,23-04-2018,0000076758,268.86,0,Sky Blue A4 80sm,341000,Stationery Paper
South Lakeland District Council,http://opendatacommunities.org/id/district-council/south-lakeland,30/04/2018,Business Support Community Services,Housing Services,http://opendatacommunities.org/def/concept/finance/sercop/objective/108,Vigilant Security Services UK Ltd,05914271,18-04-2018,0000076759,2580.48,0,Security Guard at Town View Fields,192213,Facilities Security Manned Guarding
South Lakeland District Council,http://opendatacommunities.org/id/district-council/south-lakeland,30/04/2018,Business Support Community Services,Housing Services,http://opendatacommunities.org/def/concept/finance/sercop/objective/108,The County Hotel,01815672,18-04-2018,0000076760,33.33,0,Accommodation,250000,Housing
South Lakeland District Council,http://opendatacommunities.org/id/district-council/south-lakeland,30/04/2018,Human Resources,Central Services,http://opendatacommunities.org/def/concept/finance/sercop/objective/102,Choose Occupational Health,07365943,23-04-2018,0000076761,442,0,Half a day clinic - March 2018,191800,Facilities Public Relations & Image
South Lakeland District Council,http://opendatacommunities.org/id/district-council/south-lakeland,30/04/2018,Business Support Community Services,Housing Services,http://opendatacommunities.org/def/concept/finance/sercop/objective/108,KENDAL HOSTEL,,18-04-2018,0000076762,158,0,Accommodation,261000,HR Accommodation
South Lakeland District Council,http://opendatacommunities.org/id/district-council/south-lakeland,30/04/2018,Business Support Community Services,Housing Services,http://opendatacommunities.org/def/concept/finance/sercop/objective/108,G B BURROW & SON,,18-04-2018,0000076763,165,0,Storage costs,192300,Facilities Storage
South Lakeland District Council,http://opendatacommunities.org/id/district-council/south-lakeland,30/04/2018,Business Support Community Services,Housing Services,http://opendatacommunities.org/def/concept/finance/sercop/objective/108,G B BURROW & SON,,18-04-2018,0000076764,104,0,Storage costs,192300,Facilities Storage
South Lakeland District Council,http://opendatacommunities.org/id/district-council/south-lakeland,30/04/2018,Policy & Partnerships,Central Services,http://opendatacommunities.org/def/concept/finance/sercop/objective/102,STRICKLANDGATE HOUSE,02856983,18-04-2018,0000076765,83.75,0,Room hire and refreshments for Ignite,201700,Financial Services Grants
South Lakeland District Council,http://opendatacommunities.org/id/district-council/south-lakeland,30/04/2018,Democratic and Member Services,Cultural Environmental Regulatory & Planning Services,http://opendatacommunities.org/def/concept/finance/sercop/objective/104,Windermere First Responders,,25-04-2018,0000076776,1000,0,locality donation to fund the group of,311300,Healthcare-Equipment
South Lakeland District Council,http://opendatacommunities.org/id/district-council/south-lakeland,30/04/2018,Business Support Community Services,Internal Trading Accounts,,FREIGHT TRANSPORT ASSOCIATION,,18-04-2018,0000076777,1032,0,Defect books,361100,Public Transport Haulage
South Lakeland District Council,http://opendatacommunities.org/id/district-council/south-lakeland,30/04/2018,Business Support Community Services,Internal Trading Accounts,,HAKO MACHINES LIMITED,01414225,18-04-2018,0000076778,15,0,Fan,131000,Cleaning & Janitorial Cleaning Materials
South Lakeland District Council,http://opendatacommunities.org/id/district-council/south-lakeland,30/04/2018,Business Support Community Services,Internal Trading Accounts,,HAKO MACHINES LIMITED,01414225,18-04-2018,0000076778,188.13,0,Fan,131000,Cleaning & Janitorial Cleaning Materials
South Lakeland District Council,http://opendatacommunities.org/id/district-council/south-lakeland,30/04/2018,Business Support Community Services,Cultural Environmental Regulatory & Planning Services,http://opendatacommunities.org/def/concept/finance/sercop/objective/104,CUMBRIA WASTE RECYCLING LTD,03162439,23-04-2018,0000076779,15017.3,0,Empty recycling banks in April to,182012,Environment Waste Management Recycling
South Lakeland District Council,http://opendatacommunities.org/id/district-council/south-lakeland,30/04/2018,Business Support Community Services,Cultural Environmental Regulatory & Planning Services,http://opendatacommunities.org/def/concept/finance/sercop/objective/104,LANCASTER TRAINING SERVICES LTD,01447612,18-04-2018,0000076780,1141,0,Training 2018/19 (GWK),261500,HR Training & Conferences
South Lakeland District Council,http://opendatacommunities.org/id/district-council/south-lakeland,30/04/2018,Business Support Community Services,Cultural Environmental Regulatory & Planning Services,http://opendatacommunities.org/def/concept/finance/sercop/objective/104,C T HAYTON LTD,01212766,18-04-2018,0000076781,28.64,0,Hoses,391200,Construction Engineering
South Lakeland District Council,http://opendatacommunities.org/id/district-council/south-lakeland,30/04/2018,Business Support Community Services,Internal Trading Accounts,,FREIGHT TRANSPORT ASSOCIATION,,18-04-2018,0000076782,99.95,0,Defect books,361100,Public Transport Haulage
South Lakeland District Council,http://opendatacommunities.org/id/district-council/south-lakeland,30/04/2018,Business Support Community Services,Internal Trading Accounts,,EK MOTOR FACTORS LTD,00838524,18-04-2018,0000076783,22.62,0,Parts,381400,Vehicle Mgt Maintenance
South Lakeland District Council,http://opendatacommunities.org/id/district-council/south-lakeland,30/04/2018,Business Support Community Services,Cultural Environmental Regulatory & Planning Services,http://opendatacommunities.org/def/concept/finance/sercop/objective/104,H WICKS (LINDAL) LTD,00754590,23-04-2018,0000076785,1892.92,0,"Gate fees, handling, transport & baling",182012,Environment Waste Management Recycling
South Lakeland District Council,http://opendatacommunities.org/id/district-council/south-lakeland,30/04/2018,Business Support Community Services,Housing Services,http://opendatacommunities.org/def/concept/finance/sercop/objective/108,Landlord,,18-04-2018,0000076786,890,0,Monthly rent ,250000,Housing
South Lakeland District Council,http://opendatacommunities.org/id/district-council/south-lakeland,30/04/2018,Business Support Community Services,Housing Services,http://opendatacommunities.org/def/concept/finance/sercop/objective/108,Landlord,08672920,18-04-2018,0000076787,400,0,Monthly rent ,202000,Financial Services Rents
South Lakeland District Council,http://opendatacommunities.org/id/district-council/south-lakeland,30/04/2018,Business Support Community Services,Housing Services,http://opendatacommunities.org/def/concept/finance/sercop/objective/108,Landlord,,18-04-2018,0000076788,1190,0,Monthly rent ,202000,Financial Services Rents
South Lakeland District Council,http://opendatacommunities.org/id/district-council/south-lakeland,30/04/2018,Human Resources,Central Services,http://opendatacommunities.org/def/concept/finance/sercop/objective/102,FORBES SOLICITORS,,23-04-2018,0000076791,2225.5,0,Invoice Number: 496971,281300,Legal Services Legal Opinion
South Lakeland District Council,http://opendatacommunities.org/id/district-council/south-lakeland,30/04/2018,Human Resources,Central Services,http://opendatacommunities.org/def/concept/finance/sercop/objective/102,FORBES SOLICITORS,,23-04-2018,0000076792,2402,0,Invoice Number: 496971,281300,Legal Services Legal Opinion
South Lakeland District Council,http://opendatacommunities.org/id/district-council/south-lakeland,30/04/2018,Human Resources,Central Services,http://opendatacommunities.org/def/concept/finance/sercop/objective/102,FORBES SOLICITORS,,23-04-2018,0000076793,75,0,Invoice Number: 496971,281300,Legal Services Legal Opinion
South Lakeland District Council,http://opendatacommunities.org/id/district-council/south-lakeland,30/04/2018,Business Support Community Services,Cultural Environmental Regulatory & Planning Services,http://opendatacommunities.org/def/concept/finance/sercop/objective/104,H WICKS (LINDAL) LTD,00754590,25-04-2018,0000076794,128,0,"Gate fees, handling, transport & baling",182012,Environment Waste Management Recycling
South Lakeland District Council,http://opendatacommunities.org/id/district-council/south-lakeland,30/04/2018,Business Support Community Services,Cultural Environmental Regulatory & Planning Services,http://opendatacommunities.org/def/concept/finance/sercop/objective/104,H WICKS (LINDAL) LTD,00754590,25-04-2018,0000076795,240,0,"Gate fees, handling, transport & baling",182012,Environment Waste Management Recycling
South Lakeland District Council,http://opendatacommunities.org/id/district-council/south-lakeland,30/04/2018,ICT Group,Central Services,http://opendatacommunities.org/def/concept/finance/sercop/objective/102,ITPS Professional Services Ltd (DD),,01-04-2018,0000076797,198,0,Canal Head Depot - Main Connection,271700,ICT Telecommunications Fixed
South Lakeland District Council,http://opendatacommunities.org/id/district-council/south-lakeland,30/04/2018,ICT Group,Central Services,http://opendatacommunities.org/def/concept/finance/sercop/objective/102,ITPS Professional Services Ltd (DD),,01-04-2018,0000076798,787.2,0,Canal Head Depot - Main Connection,271700,ICT Telecommunications Fixed
South Lakeland District Council,http://opendatacommunities.org/id/district-council/south-lakeland,30/04/2018,ICT Group,Central Services,http://opendatacommunities.org/def/concept/finance/sercop/objective/102,IMPROVEMENT & DEVELOPMENT AGENCY,03675577,23-04-2018,0000076800,1193,0,LG Inform Plus for Eden and  South,202100,Financial Services Subscriptions
South Lakeland District Council,http://opendatacommunities.org/id/district-council/south-lakeland,30/04/2018,ICT Group,Central Services,http://opendatacommunities.org/def/concept/finance/sercop/objective/102,SITEIMPROVE LTD,04932868,23-04-2018,0000076801,1758.67,0,Renewal Quote for Siteimprove Contract,271515,ICT Website Development
South Lakeland District Council,http://opendatacommunities.org/id/district-council/south-lakeland,30/04/2018,ICT Group,Central Services,http://opendatacommunities.org/def/concept/finance/sercop/objective/102,DEMON (VODAFONE),,23-04-2018,0000076802,120,0,Hosting for  .....,271700,ICT Telecommunications Fixed
South Lakeland District Council,http://opendatacommunities.org/id/district-council/south-lakeland,30/04/2018,Development Implementation,Central Services,http://opendatacommunities.org/def/concept/finance/sercop/objective/102,ADECCO UK LIMITED,00593232,23-04-2018,0000076803,76.56,0,Cleaner for SLDC -  - April 2018,261400,HR Temporary & Agency Staff
South Lakeland District Council,http://opendatacommunities.org/id/district-council/south-lakeland,30/04/2018,Development Implementation,Central Services,http://opendatacommunities.org/def/concept/finance/sercop/objective/102,ADECCO UK LIMITED,00593232,23-04-2018,0000076804,242.44,0,Cleaner for SLDC -  - April,261400,HR Temporary & Agency Staff
South Lakeland District Council,http://opendatacommunities.org/id/district-council/south-lakeland,30/04/2018,ICT Group,Central Services,http://opendatacommunities.org/def/concept/finance/sercop/objective/102,IT PROFESSIONAL SERVICES (ITPS),,23-04-2018,0000076807,103.13,0,SIP calls not covered by SIP rental,279999,ICT Not Elsewhere Classified
South Lakeland District Council,http://opendatacommunities.org/id/district-council/south-lakeland,30/04/2018,Business Support Community Services,Housing Services,http://opendatacommunities.org/def/concept/finance/sercop/objective/108,James Andrews Recruitment Solutions,06834852,23-04-2018,0000076810,1009.08,0,Payment ,261400,HR Temporary & Agency Staff
South Lakeland District Council,http://opendatacommunities.org/id/district-council/south-lakeland,30/04/2018,Business Support Community Services,Housing Services,http://opendatacommunities.org/def/concept/finance/sercop/objective/108,James Andrews Recruitment Solutions,06834852,23-04-2018,0000076811,806.82,0,Payment,261400,HR Temporary & Agency Staff
South Lakeland District Council,http://opendatacommunities.org/id/district-council/south-lakeland,30/04/2018,Business Support Community Services,Housing Services,http://opendatacommunities.org/def/concept/finance/sercop/objective/108,James Andrews Recruitment Solutions,06834852,23-04-2018,0000076811,806.82,0,Payment ,261400,HR Temporary & Agency Staff
South Lakeland District Council,http://opendatacommunities.org/id/district-council/south-lakeland,30/04/2018,Business Support Community Services,Cultural Environmental Regulatory & Planning Services,http://opendatacommunities.org/def/concept/finance/sercop/objective/104,CUMBRIA WASTE RECYCLING LTD,03162439,23-04-2018,0000076813,1062,0,Skip emptying at Ecclerigg & Ulverston,182012,Environment Waste Management Recycling
South Lakeland District Council,http://opendatacommunities.org/id/district-council/south-lakeland,30/04/2018,Business Support Community Services,Housing Services,http://opendatacommunities.org/def/concept/finance/sercop/objective/108,ULTRACARE PROPERTY MANAGEMENT LTD,05020554,23-04-2018,0000076814,270,0,Deep clean - Social Lettings,191700,Facilities Property Management
South Lakeland District Council,http://opendatacommunities.org/id/district-council/south-lakeland,30/04/2018,Business Support Community Services,Housing Services,http://opendatacommunities.org/def/concept/finance/sercop/objective/108,ULTRACARE PROPERTY MANAGEMENT LTD,05020554,23-04-2018,0000076815,390,0,Deep clean - Social Lettings,191700,Facilities Property Management
South Lakeland District Council,http://opendatacommunities.org/id/district-council/south-lakeland,30/04/2018,Business Support Community Services,Cultural Environmental Regulatory & Planning Services,http://opendatacommunities.org/def/concept/finance/sercop/objective/104,CUMBRIA WASTE RECYCLING LTD,03162439,25-04-2018,0000076816,354,0,Skip emptying at Ecclerigg & Ulverston,182012,Environment Waste Management Recycling
South Lakeland District Council,http://opendatacommunities.org/id/district-council/south-lakeland,30/04/2018,Business Support Community Services,Internal Trading Accounts,,CUMBRIA TRUCK CENTRE LTD,04298488,23-04-2018,0000076817,52.66,0,Switch (37299),381300,Vehicle Mgt Industrial
South Lakeland District Council,http://opendatacommunities.org/id/district-council/south-lakeland,30/04/2018,Business Support Community Services,Cultural Environmental Regulatory & Planning Services,http://opendatacommunities.org/def/concept/finance/sercop/objective/104,ADECCO UK LIMITED,00593232,23-04-2018,0000076818,385.61,0,Agency staff 2018/19,261400,HR Temporary & Agency Staff
South Lakeland District Council,http://opendatacommunities.org/id/district-council/south-lakeland,30/04/2018,Business Support Community Services,Internal Trading Accounts,,FAUN ZOELLER (UK) LTD,00751804,25-04-2018,0000076819,656.25,0,Arms,381400,Vehicle Mgt Maintenance
South Lakeland District Council,http://opendatacommunities.org/id/district-council/south-lakeland,30/04/2018,Business Support Community Services,Cultural Environmental Regulatory & Planning Services,http://opendatacommunities.org/def/concept/finance/sercop/objective/104,ARCO LIMITED,00133804,23-04-2018,0000076820,31.34,0,Cleaning materials,141100,Clothing Protective
South Lakeland District Council,http://opendatacommunities.org/id/district-council/south-lakeland,30/04/2018,Business Support Community Services,Internal Trading Accounts,,DAVID BREAKS,,23-04-2018,0000076821,182.6,0,Fit cambelt,381500,Vehicle Mgt Parts
South Lakeland District Council,http://opendatacommunities.org/id/district-council/south-lakeland,30/04/2018,Business Support Community Services,Cultural Environmental Regulatory & Planning Services,http://opendatacommunities.org/def/concept/finance/sercop/objective/104,ARCO LIMITED,00133804,23-04-2018,0000076822,122.79,0,Cleaning materials,141100,Clothing Protective
South Lakeland District Council,http://opendatacommunities.org/id/district-council/south-lakeland,30/04/2018,Business Support Community Services,Cultural Environmental Regulatory & Planning Services,http://opendatacommunities.org/def/concept/finance/sercop/objective/104,ARCO LIMITED,00133804,23-04-2018,0000076823,41.23,0,Cleaning materials,141100,Clothing Protective
South Lakeland District Council,http://opendatacommunities.org/id/district-council/south-lakeland,30/04/2018,Business Support Community Services,Cultural Environmental Regulatory & Planning Services,http://opendatacommunities.org/def/concept/finance/sercop/objective/104,ARCO LIMITED,00133804,23-04-2018,0000076824,123.7,0,Cleaning materials,141100,Clothing Protective
South Lakeland District Council,http://opendatacommunities.org/id/district-council/south-lakeland,30/04/2018,Business Support Community Services,Internal Trading Accounts,,EK MOTOR FACTORS LTD,00838524,23-04-2018,0000076825,494.25,0,Parts,381400,Vehicle Mgt Maintenance
South Lakeland District Council,http://opendatacommunities.org/id/district-council/south-lakeland,30/04/2018,ICT Group,Housing Services,http://opendatacommunities.org/def/concept/finance/sercop/objective/108,CCS MEDIA LTD,01693516,25-04-2018,0000076826,145.37,0,Plantronics Voyager Focus UC B825-M,271400,ICT Office & Reprographics Equipment
South Lakeland District Council,http://opendatacommunities.org/id/district-council/south-lakeland,30/04/2018,Business Support Community Services,Internal Trading Accounts,,TPS Preston,,23-04-2018,0000076827,87.95,0,Parts,381400,Vehicle Mgt Maintenance
South Lakeland District Council,http://opendatacommunities.org/id/district-council/south-lakeland,30/04/2018,Human Resources,Central Services,http://opendatacommunities.org/def/concept/finance/sercop/objective/102,BAINES WILSON LLP,OC330890,23-04-2018,0000076828,1000,0,GDPR - April 2018,261500,HR Training & Conferences
South Lakeland District Council,http://opendatacommunities.org/id/district-council/south-lakeland,30/04/2018,Policy & Partnerships,Central Services,http://opendatacommunities.org/def/concept/finance/sercop/objective/102,Lawyers in Local Government (Membership),08379439,25-04-2018,0000076829,300,0,Lawyers in Local Government Annual,202100,Financial Services Subscriptions
South Lakeland District Council,http://opendatacommunities.org/id/district-council/south-lakeland,30/04/2018,Printing Section,Central Services,http://opendatacommunities.org/def/concept/finance/sercop/objective/102,ALPHATEC P.F.E,05419826,25-04-2018,0000076831,765,0,Labour Call our for Roll Laminator,271400,ICT Office & Reprographics Equipment
South Lakeland District Council,http://opendatacommunities.org/id/district-council/south-lakeland,30/04/2018,Revenues and Benefits,Central Services,http://opendatacommunities.org/def/concept/finance/sercop/objective/102,ALLPAY.NET LTD (NCR),6871069,01-04-2018,0000076837,24.36,0,2017 - 18 Internet Payment,209999,Financial Services Not Elsewhere Classif
South Lakeland District Council,http://opendatacommunities.org/id/district-council/south-lakeland,30/04/2018,Revenues and Benefits,Central Services,http://opendatacommunities.org/def/concept/finance/sercop/objective/102,ALLPAY.NET LTD (NCR),6871069,01-04-2018,0000076838,183.94,0,2017 - 18 Internet Payment,209999,Financial Services Not Elsewhere Classif
South Lakeland District Council,http://opendatacommunities.org/id/district-council/south-lakeland,30/04/2018,Revenues and Benefits,Central Services,http://opendatacommunities.org/def/concept/finance/sercop/objective/102,ALLPAY.NET LTD (NCR),6871069,01-04-2018,0000076839,17.33,0,2017 - 18 Internet Payment,209999,Financial Services Not Elsewhere Classif
South Lakeland District Council,http://opendatacommunities.org/id/district-council/south-lakeland,30/04/2018,Revenues and Benefits,Central Services,http://opendatacommunities.org/def/concept/finance/sercop/objective/102,ALLPAY.NET LTD (NCR),6871069,01-04-2018,0000076841,13.98,0,2017 - 18 Internet Payment,209999,Financial Services Not Elsewhere Classif
South Lakeland District Council,http://opendatacommunities.org/id/district-council/south-lakeland,30/04/2018,Revenues and Benefits,Central Services,http://opendatacommunities.org/def/concept/finance/sercop/objective/102,ALLPAY.NET LTD (NCR),6871069,01-04-2018,0000076842,16.4,0,2017 - 18 Internet Payment,209999,Financial Services Not Elsewhere Classif
South Lakeland District Council,http://opendatacommunities.org/id/district-council/south-lakeland,30/04/2018,Revenues and Benefits,Central Services,http://opendatacommunities.org/def/concept/finance/sercop/objective/102,ALLPAY.NET LTD (NCR),6871069,01-04-2018,0000076843,11.06,0,2017 - 18 Internet Payment,209999,Financial Services Not Elsewhere Classif
South Lakeland District Council,http://opendatacommunities.org/id/district-council/south-lakeland,30/04/2018,Revenues and Benefits,Central Services,http://opendatacommunities.org/def/concept/finance/sercop/objective/102,ALLPAY.NET LTD (NCR),6871069,01-04-2018,0000076844,10.6,0,2017 - 18 Internet Payment,209999,Financial Services Not Elsewhere Classif
South Lakeland District Council,http://opendatacommunities.org/id/district-council/south-lakeland,30/04/2018,Business Support Community Services,SLDC as Agent,,CUMBRIA COUNTY COUNCIL,,25-04-2018,0000076847,-108,0,DBS Checks for Taxi Drivers,908000,Public Bodies Council support services
South Lakeland District Council,http://opendatacommunities.org/id/district-council/south-lakeland,30/04/2018,Business Support Community Services,SLDC as Agent,,CUMBRIA COUNTY COUNCIL,,25-04-2018,0000076848,-108,0,DBS Checks for Taxi Drivers,908000,Public Bodies Council support services
South Lakeland District Council,http://opendatacommunities.org/id/district-council/south-lakeland,30/04/2018,Business Support Community Services,SLDC as Agent,,CUMBRIA COUNTY COUNCIL,,25-04-2018,0000076849,-54,0,DBS Checks for Taxi Drivers,908000,Public Bodies Council support services
South Lakeland District Council,http://opendatacommunities.org/id/district-council/south-lakeland,30/04/2018,Business Support Community Services,SLDC as Agent,,CUMBRIA COUNTY COUNCIL,,25-04-2018,0000076850,108,0,DBS Checks for Taxi Drivers,908000,Public Bodies Council support services
South Lakeland District Council,http://opendatacommunities.org/id/district-council/south-lakeland,30/04/2018,ICT Group,Central Services,http://opendatacommunities.org/def/concept/finance/sercop/objective/102,BRITISH TELECOMMUNICATIONS PLC (DD),,01-04-2018,0000076851,64.93,0,Town View Fields Broadband,279999,ICT Not Elsewhere Classified
South Lakeland District Council,http://opendatacommunities.org/id/district-council/south-lakeland,30/04/2018,ICT Group,Central Services,http://opendatacommunities.org/def/concept/finance/sercop/objective/102,DAISY COMMUNICATIONS LTD,04145329,23-04-2018,0000076852,377.64,0,Daisy Line Rentals,271700,ICT Telecommunications Fixed
South Lakeland District Council,http://opendatacommunities.org/id/district-council/south-lakeland,30/04/2018,ICT Group,Central Services,http://opendatacommunities.org/def/concept/finance/sercop/objective/102,DAISY COMMUNICATIONS LTD,04145329,23-04-2018,0000076852,83.52,0,Daisy Line Rentals,271700,ICT Telecommunications Fixed
South Lakeland District Council,http://opendatacommunities.org/id/district-council/south-lakeland,30/04/2018,Policy & Partnerships,Cultural Environmental Regulatory & Planning Services,http://opendatacommunities.org/def/concept/finance/sercop/objective/104,INSTITUTION OF ECONOMIC DEVELOPMENT,,23-04-2018,0000076853,500,0,LC and GV Subscription fees to,202100,Financial Services Subscriptions
South Lakeland District Council,http://opendatacommunities.org/id/district-council/south-lakeland,30/04/2018,Development Implementation,Cultural Environmental Regulatory & Planning Services,http://opendatacommunities.org/def/concept/finance/sercop/objective/104,Charlie's Cafe Bar Ltd,04757080,23-04-2018,0000076855,550,0,Participation in the Kendal Courtesy,201700,Financial Services Grants
South Lakeland District Council,http://opendatacommunities.org/id/district-council/south-lakeland,30/04/2018,Development Implementation,Cultural Environmental Regulatory & Planning Services,http://opendatacommunities.org/def/concept/finance/sercop/objective/104,PS BUSINESS MATTERS,08147185,23-04-2018,0000076857,350,0,Marketing Support Project - Mintworks,151900,Consultancy Management
South Lakeland District Council,http://opendatacommunities.org/id/district-council/south-lakeland,30/04/2018,Development Implementation,Culture and Related Serv,http://opendatacommunities.org/def/concept/finance/sercop/objective/104,LAMBERT SMITH HAMPTON GROUP,2521225,23-04-2018,0000076858,909.9,0,Braithwaite Fold Caravan Park -,999999,Unclassifiable
South Lakeland District Council,http://opendatacommunities.org/id/district-council/south-lakeland,30/04/2018,Social Enterprise Admin,Cultural Environmental Regulatory & Planning Services,http://opendatacommunities.org/def/concept/finance/sercop/objective/104,FURNESS NEWSPAPERS LTD,01155841,23-04-2018,0000076859,86.56,0,PUBLIC NOTICES FOR PLANNING 1 APRIL 2015,191000,Facilities Advertising
South Lakeland District Council,http://opendatacommunities.org/id/district-council/south-lakeland,30/04/2018,Business Support Community Services,Central Services,http://opendatacommunities.org/def/concept/finance/sercop/objective/102,LAKE DISTRICT NATIONAL PARK AUTHORITY,,23-04-2018,0000076860,2655,0,LAND CHARGE SEARCH ENQUIRIES LDNPA,201700,Financial Services Grants
South Lakeland District Council,http://opendatacommunities.org/id/district-council/south-lakeland,30/04/2018,Social Enterprise Admin,Highways & Transport Services,http://opendatacommunities.org/def/concept/finance/sercop/objective/107,PATROL,,23-04-2018,0000076861,488.95,0,Charges for Traffic Penalty Tribunal,192214,Facilities Security Street Wardens
South Lakeland District Council,http://opendatacommunities.org/id/district-council/south-lakeland,30/04/2018,Business Support Community Services,Central Services,http://opendatacommunities.org/def/concept/finance/sercop/objective/102,CUMBRIA COUNTY COUNCIL,,25-04-2018,0000076865,136.4,0,LAND CHARGE SEARCH ENQUIRIES COMMONS,908000,Public Bodies Council support services
South Lakeland District Council,http://opendatacommunities.org/id/district-council/south-lakeland,30/04/2018,Business Support Community Services,Cultural Environmental Regulatory & Planning Services,http://opendatacommunities.org/def/concept/finance/sercop/objective/104,N WESTERN INSHORE FISHERIES &,,23-04-2018,0000076866,2531.1,0,Cockle Sampling,111200,Catering Food & Beverages
South Lakeland District Council,http://opendatacommunities.org/id/district-council/south-lakeland,30/04/2018,Business Support Community Services,Internal Trading Accounts,,K S INTERNATIONAL LTD,02703321,23-04-2018,0000076867,150,0,Parts,381500,Vehicle Mgt Parts
South Lakeland District Council,http://opendatacommunities.org/id/district-council/south-lakeland,30/04/2018,Business Support Community Services,Internal Trading Accounts,,RIBBLESDALE AUTO ELECTRICS 1992 LTD,02732686,23-04-2018,0000076868,22.42,0,Parts,381500,Vehicle Mgt Parts
South Lakeland District Council,http://opendatacommunities.org/id/district-council/south-lakeland,30/04/2018,Business Support Community Services,Internal Trading Accounts,,RIBBLESDALE AUTO ELECTRICS 1992 LTD,02732686,23-04-2018,0000076869,42.24,0,Parts,381500,Vehicle Mgt Parts
South Lakeland District Council,http://opendatacommunities.org/id/district-council/south-lakeland,30/04/2018,Business Support Community Services,Internal Trading Accounts,,RIBBLESDALE AUTO ELECTRICS 1992 LTD,02732686,23-04-2018,0000076870,225.96,0,Parts,381500,Vehicle Mgt Parts
South Lakeland District Council,http://opendatacommunities.org/id/district-council/south-lakeland,30/04/2018,Kendal Town Hall,Cultural Environmental Regulatory & Planning Services,http://opendatacommunities.org/def/concept/finance/sercop/objective/104,FARRERS,09023215,23-04-2018,0000076871,112.88,0,4 x Lakeland Special tea tags for KTH,111200,Catering Food & Beverages
South Lakeland District Council,http://opendatacommunities.org/id/district-council/south-lakeland,30/04/2018,Business Support Community Services,Internal Trading Accounts,,K S INTERNATIONAL LTD,02703321,23-04-2018,0000076872,675,0,Parts,381500,Vehicle Mgt Parts
South Lakeland District Council,http://opendatacommunities.org/id/district-council/south-lakeland,30/04/2018,Business Support Community Services,Cultural Environmental Regulatory & Planning Services,http://opendatacommunities.org/def/concept/finance/sercop/objective/104,H WICKS (LINDAL) LTD,00754590,23-04-2018,0000076873,600,0,"Gate fees, handling, transport & baling",182012,Environment Waste Management Recycling
South Lakeland District Council,http://opendatacommunities.org/id/district-council/south-lakeland,30/04/2018,Business Support Community Services,Internal Trading Accounts,,M G D LTD,,23-04-2018,0000076874,35,0,MOTs 2018/19,381400,Vehicle Mgt Maintenance
South Lakeland District Council,http://opendatacommunities.org/id/district-council/south-lakeland,30/04/2018,Business Support Community Services,Internal Trading Accounts,,DENNIS EAGLE LTD,03794455,23-04-2018,0000076875,1543.44,0,Parts,381300,Vehicle Mgt Industrial
South Lakeland District Council,http://opendatacommunities.org/id/district-council/south-lakeland,30/04/2018,Business Support Community Services,Internal Trading Accounts,,FREIGHT TRANSPORT ASSOCIATION,,23-04-2018,0000076876,107.6,0,Defect books,361100,Public Transport Haulage
South Lakeland District Council,http://opendatacommunities.org/id/district-council/south-lakeland,30/04/2018,Business Support Community Services,Internal Trading Accounts,,DENNIS EAGLE LTD,03794455,23-04-2018,0000076877,118.08,0,Parts,381300,Vehicle Mgt Industrial
South Lakeland District Council,http://opendatacommunities.org/id/district-council/south-lakeland,30/04/2018,Business Support Community Services,Cultural Environmental Regulatory & Planning Services,http://opendatacommunities.org/def/concept/finance/sercop/objective/104,H WICKS (LINDAL) LTD,00754590,23-04-2018,0000076878,600,0,"Gate fees, handling, transport & baling",182012,Environment Waste Management Recycling
South Lakeland District Council,http://opendatacommunities.org/id/district-council/south-lakeland,30/04/2018,Business Support Community Services,Internal Trading Accounts,,A & W COMMERCIALS LTD,02630625,23-04-2018,0000076879,50.68,0,LOLER inspection,381400,Vehicle Mgt Maintenance
South Lakeland District Council,http://opendatacommunities.org/id/district-council/south-lakeland,30/04/2018,Business Support Community Services,Internal Trading Accounts,,TPS Preston,,23-04-2018,0000076880,29.08,0,Parts,381400,Vehicle Mgt Maintenance
South Lakeland District Council,http://opendatacommunities.org/id/district-council/south-lakeland,30/04/2018,Business Support Community Services,Internal Trading Accounts,,TPS Preston,,23-04-2018,0000076881,116.32,0,Parts,381400,Vehicle Mgt Maintenance
South Lakeland District Council,http://opendatacommunities.org/id/district-council/south-lakeland,30/04/2018,Business Support Community Services,Internal Trading Accounts,,BUSINESS LINES LTD T/A CHECKPOINT,01988026,23-04-2018,0000076882,60,0,Indicators,101400,Building General Materials
South Lakeland District Council,http://opendatacommunities.org/id/district-council/south-lakeland,30/04/2018,Business Support Community Services,Internal Trading Accounts,,VOLVO GROUP UK LTD,02190944,25-04-2018,0000076883,132,0,Parts,381000,Vehicle Mgt Commercial
South Lakeland District Council,http://opendatacommunities.org/id/district-council/south-lakeland,30/04/2018,Development Management,Cultural Environmental Regulatory & Planning Services,http://opendatacommunities.org/def/concept/finance/sercop/objective/104,SALFORD CITY COUNCIL,,23-04-2018,0000076885,142.5,0,Checking structural information in,908000,Public Bodies Council support services
South Lakeland District Council,http://opendatacommunities.org/id/district-council/south-lakeland,30/04/2018,Leisure and Wellbeing,Cultural Environmental Regulatory & Planning Services,http://opendatacommunities.org/def/concept/finance/sercop/objective/104,SOUTH LAKES TREE SURGEONS & LANDSCAPES,05342745,30-04-2018,0000076886,570,0,Clear windblown conifer at Yewbarrow,241210,Horticultural Tree Trimming
South Lakeland District Council,http://opendatacommunities.org/id/district-council/south-lakeland,30/04/2018,Financial Services,Central Services,http://opendatacommunities.org/def/concept/finance/sercop/objective/102,NORTH KESTEVEN DISTRICT COUNCIL,,25-04-2018,0000076887,3073,0,Rural Services Network 18-19,908000,Public Bodies Council support services
South Lakeland District Council,http://opendatacommunities.org/id/district-council/south-lakeland,30/04/2018,Revenues and Benefits,Central Services,http://opendatacommunities.org/def/concept/finance/sercop/objective/102,CAPITA BUSINESS SERVICES LTD (NCR),,01-04-2018,0000076888,3542.33,0,Internet Payment / bank charges to,261500,HR Training & Conferences
South Lakeland District Council,http://opendatacommunities.org/id/district-council/south-lakeland,30/04/2018,Revenues and Benefits,Non-Service Payments,,Kendal BID Ltd,08986243,25-04-2018,0000076889,23289.78,0,Collection figures for December 2017 to,201700,Financial Services Grants
South Lakeland District Council,http://opendatacommunities.org/id/district-council/south-lakeland,30/04/2018,Community & Housing Group,Housing Services,http://opendatacommunities.org/def/concept/finance/sercop/objective/108,GROWING CONCERNS LTD,,25-04-2018,0000076890,1071.91,0,For Handy Person Service 2018/19,391200,Construction Engineering
South Lakeland District Council,http://opendatacommunities.org/id/district-council/south-lakeland,30/04/2018,Development Implementation,Central Services,http://opendatacommunities.org/def/concept/finance/sercop/objective/102,LAMBERT SMITH HAMPTON GROUP,2521225,23-04-2018,0000076891,6611,0,Kendal Town Hall Fees,999999,Unclassifiable
South Lakeland District Council,http://opendatacommunities.org/id/district-council/south-lakeland,30/04/2018,Electoral Services,Central Services,http://opendatacommunities.org/def/concept/finance/sercop/objective/102,Idox Software Ltd,2933889,25-04-2018,0000076895,3254.64,0,Zebra GK420D USB/Ethernet and Fujitsu,271600,ICT Software Customised & Bespoke
South Lakeland District Council,http://opendatacommunities.org/id/district-council/south-lakeland,30/04/2018,Revenues and Benefits,Central Services,http://opendatacommunities.org/def/concept/finance/sercop/objective/102,CIVICA UK LTD,01628868,25-04-2018,0000077014,1313.79,0,PTC Scheduler & Alerts for Pericles,271600,ICT Software Customised & Bespoke
South Lakeland District Council,http://opendatacommunities.org/id/district-council/south-lakeland,30/04/2018,Revenues and Benefits,Central Services,http://opendatacommunities.org/def/concept/finance/sercop/objective/102,CIVICA UK LTD,01628868,25-04-2018,0000077015,760.09,0,Local Discretionary Scheme C Tax &,271600,ICT Software Customised & Bespoke
South Lakeland District Council,http://opendatacommunities.org/id/district-council/south-lakeland,30/04/2018,Business Support Community Services,Cultural Environmental Regulatory & Planning Services,http://opendatacommunities.org/def/concept/finance/sercop/objective/104,BRIAN ARMISTEAD LTD T/A SINKFALL RECYCLI,04133280,25-04-2018,0000077016,890.53,0,Green waste tipping - 2018/19,391110,Construction Buildings Construction
South Lakeland District Council,http://opendatacommunities.org/id/district-council/south-lakeland,30/04/2018,Business Support Community Services,Cultural Environmental Regulatory & Planning Services,http://opendatacommunities.org/def/concept/finance/sercop/objective/104,BRIAN ARMISTEAD LTD T/A SINKFALL RECYCLI,04133280,25-04-2018,0000077017,1441.36,0,Green waste tipping - 2018/19,391110,Construction Buildings Construction
South Lakeland District Council,http://opendatacommunities.org/id/district-council/south-lakeland,30/04/2018,Business Support Community Services,Cultural Environmental Regulatory & Planning Services,http://opendatacommunities.org/def/concept/finance/sercop/objective/104,ARCO LIMITED,00133804,25-04-2018,0000077018,35.95,0,Cleaning materials,141100,Clothing Protective
South Lakeland District Council,http://opendatacommunities.org/id/district-council/south-lakeland,30/04/2018,Business Support Community Services,Internal Trading Accounts,,EK MOTOR FACTORS LTD,00838524,25-04-2018,0000077019,330,0,Parts,381400,Vehicle Mgt Maintenance
South Lakeland District Council,http://opendatacommunities.org/id/district-council/south-lakeland,30/04/2018,Business Support Community Services,Internal Trading Accounts,,HYDRAIR TRUCK & TRAILER PARTS LTD,,25-04-2018,0000077020,42.06,0,Parts,381500,Vehicle Mgt Parts
South Lakeland District Council,http://opendatacommunities.org/id/district-council/south-lakeland,30/04/2018,Business Support Community Services,Internal Trading Accounts,,HYDRAIR TRUCK & TRAILER PARTS LTD,,25-04-2018,0000077021,42.06,0,Parts,381500,Vehicle Mgt Parts
South Lakeland District Council,http://opendatacommunities.org/id/district-council/south-lakeland,30/04/2018,Business Support Community Services,Internal Trading Accounts,,INNOVATIVE SAFETY SYSTEMS LTD,06875015,25-04-2018,0000077022,766,0,Radar head,192200,Facilities Security
South Lakeland District Council,http://opendatacommunities.org/id/district-council/south-lakeland,30/04/2018,Business Support Community Services,Internal Trading Accounts,,TPS Preston,,25-04-2018,0000077023,13.74,0,Parts,381400,Vehicle Mgt Maintenance
South Lakeland District Council,http://opendatacommunities.org/id/district-council/south-lakeland,30/04/2018,Business Support Community Services,Internal Trading Accounts,,FAUN ZOELLER (UK) LTD,00751804,30-04-2018,0000077024,411.66,0,Arms,381400,Vehicle Mgt Maintenance
South Lakeland District Council,http://opendatacommunities.org/id/district-council/south-lakeland,30/04/2018,Leisure and Wellbeing,Cultural Environmental Regulatory & Planning Services,http://opendatacommunities.org/def/concept/finance/sercop/objective/104,KOMPAN Scotland Ltd,SC127228,23-04-2018,0000077028,402.8,0,"Kompan Module Bird's Nest Seat, Lime",331000,Sports Playground Equipment
South Lakeland District Council,http://opendatacommunities.org/id/district-council/south-lakeland,30/04/2018,Development Implementation,Planning and Development,,John Wade Groundworks Ltd,,23-04-2018,0000077029,135,0,Stone Bench Removal at Kendal Market,100000,Building Construction materials
South Lakeland District Council,http://opendatacommunities.org/id/district-council/south-lakeland,30/04/2018,Development Implementation,Central Services,http://opendatacommunities.org/def/concept/finance/sercop/objective/102,LAMBERT SMITH HAMPTON GROUP,2521225,23-04-2018,0000077030,44677.48,0,Property Services Contract April -,999999,Unclassifiable
South Lakeland District Council,http://opendatacommunities.org/id/district-council/south-lakeland,30/04/2018,Development Implementation,Central Services,http://opendatacommunities.org/def/concept/finance/sercop/objective/102,Maysand Ltd,02912226,23-04-2018,0000077031,27849.13,0,Kendal Town Hall,390000,Construction
South Lakeland District Council,http://opendatacommunities.org/id/district-council/south-lakeland,30/04/2018,Policy & Partnerships,Central Services,http://opendatacommunities.org/def/concept/finance/sercop/objective/102,HEMMING GROUP LTD,00490200,23-04-2018,0000077032,140,0,Subcription for Management Journel,192200,Facilities Security
South Lakeland District Council,http://opendatacommunities.org/id/district-council/south-lakeland,30/04/2018,Business Support Community Services,Internal Trading Accounts,,K S INTERNATIONAL LTD,02703321,23-04-2018,0000077033,31,0,Parts,381500,Vehicle Mgt Parts
South Lakeland District Council,http://opendatacommunities.org/id/district-council/south-lakeland,30/04/2018,Business Support Community Services,Internal Trading Accounts,,K S INTERNATIONAL LTD,02703321,25-04-2018,0000077034,100,0,Parts,381500,Vehicle Mgt Parts
South Lakeland District Council,http://opendatacommunities.org/id/district-council/south-lakeland,30/04/2018,Business Support Community Services,Internal Trading Accounts,,RIBBLESDALE AUTO ELECTRICS 1992 LTD,02732686,25-04-2018,0000077035,210,0,Parts,381500,Vehicle Mgt Parts
South Lakeland District Council,http://opendatacommunities.org/id/district-council/south-lakeland,30/04/2018,Revenues and Benefits,Central Services,http://opendatacommunities.org/def/concept/finance/sercop/objective/102,TEAM NETSOL LIMITED,03697370,25-04-2018,0000077036,9143,0,"Becs claims support, maintenance &",151000,Consultancy Business
South Lakeland District Council,http://opendatacommunities.org/id/district-council/south-lakeland,30/04/2018,Business Support Community Services,Internal Trading Accounts,,GARWOOD EUROPE LTD,04333504,25-04-2018,0000077037,60,0,Covers,182011,Environment Waste Management Consumables
South Lakeland District Council,http://opendatacommunities.org/id/district-council/south-lakeland,30/04/2018,Revenues and Benefits,SLDC as Agent,,ROYAL MAIL GROUP PLC,,23-04-2018,0000077040,2314.47,0,2018-19 Postal Charges a/c 0198123013,301200,Mail Services� Postage
South Lakeland District Council,http://opendatacommunities.org/id/district-council/south-lakeland,30/04/2018,Policy & Partnerships,Central Services,http://opendatacommunities.org/def/concept/finance/sercop/objective/102,ADECCO UK LIMITED,00593232,25-04-2018,0000077042,446.94,0,Temporary L&D Advisor supporting,261400,HR Temporary & Agency Staff
South Lakeland District Council,http://opendatacommunities.org/id/district-council/south-lakeland,30/04/2018,Business Support Community Services,Housing Services,http://opendatacommunities.org/def/concept/finance/sercop/objective/108,AMF Property,,25-04-2018,0000077044,390,0,"Deposit for 12 Hoad View Apartments,",250010,Housing Letting Agents
South Lakeland District Council,http://opendatacommunities.org/id/district-council/south-lakeland,30/04/2018,Business Support Community Services,Internal Trading Accounts,,Romaquip UK,,25-04-2018,0000077048,214.2,0,Curtains,381000,Vehicle Mgt Commercial
South Lakeland District Council,http://opendatacommunities.org/id/district-council/south-lakeland,30/04/2018,Business Support Community Services,Cultural Environmental Regulatory & Planning Services,http://opendatacommunities.org/def/concept/finance/sercop/objective/104,ADECCO UK LIMITED,00593232,25-04-2018,0000077049,443.63,0,Agency staff 2018/19,261400,HR Temporary & Agency Staff
South Lakeland District Council,http://opendatacommunities.org/id/district-council/south-lakeland,30/04/2018,Business Support Community Services,Cultural Environmental Regulatory & Planning Services,http://opendatacommunities.org/def/concept/finance/sercop/objective/104,Masterstaff Limited,02777593,25-04-2018,0000077050,4667.85,0,Agency staff,261300,HR Recruitment & Assessment
South Lakeland District Council,http://opendatacommunities.org/id/district-council/south-lakeland,30/04/2018,Business Support Community Services,Internal Trading Accounts,,EK MOTOR FACTORS LTD,00838524,25-04-2018,0000077051,22.24,0,Parts,381400,Vehicle Mgt Maintenance
South Lakeland District Council,http://opendatacommunities.org/id/district-council/south-lakeland,30/04/2018,Business Support Community Services,Internal Trading Accounts,,DENNIS EAGLE LTD,03794455,25-04-2018,0000077052,82.67,0,Parts,381300,Vehicle Mgt Industrial
South Lakeland District Council,http://opendatacommunities.org/id/district-council/south-lakeland,30/04/2018,Development Implementation,Cultural Environmental Regulatory & Planning Services,http://opendatacommunities.org/def/concept/finance/sercop/objective/104,Kendal BID Ltd,08986243,30-04-2018,0000077053,15000,0,Contribution towards cost of Kendal BID,201700,Financial Services Grants
South Lakeland District Council,http://opendatacommunities.org/id/district-council/south-lakeland,30/04/2018,Policy & Partnerships,Central Services,http://opendatacommunities.org/def/concept/finance/sercop/objective/102,Local Council Advisory Service,,25-04-2018,0000077054,30,0,Data Protection Complience Pack with,261200,HR Professional & Advisory Services
South Lakeland District Council,http://opendatacommunities.org/id/district-council/south-lakeland,30/04/2018,Policy & Partnerships,Central Services,http://opendatacommunities.org/def/concept/finance/sercop/objective/102,KENTDALE FIRST AID TRAINING,,25-04-2018,0000077055,90,0,First Aid training for Paul Roberston,261500,HR Training & Conferences
South Lakeland District Council,http://opendatacommunities.org/id/district-council/south-lakeland,30/04/2018,Westmorland Centre Parking Office,Cultural Environmental Regulatory & Planning Services,http://opendatacommunities.org/def/concept/finance/sercop/objective/104,The Pontoon and Dock Company Ltd,,25-04-2018,0000077061,4590,0,Hereford hoist 125kg SWL,907999,Marine Not Elsewhere Classified
South Lakeland District Council,http://opendatacommunities.org/id/district-council/south-lakeland,30/04/2018,Kendal Town Hall,External Trading Accounts,,NABMA,07002137,30-04-2018,0000077066,636,0,NABMA annual subscription for Kendal,202100,Financial Services Subscriptions
South Lakeland District Council,http://opendatacommunities.org/id/district-council/south-lakeland,30/04/2018,Business Support Community Services,Cultural Environmental Regulatory & Planning Services,http://opendatacommunities.org/def/concept/finance/sercop/objective/104,FLUKE UK LTD,,30-04-2018,0000077067,111.5,0,Calibration of PWS Temperature,181811,Environment Technical Equip Measuring
South Lakeland District Council,http://opendatacommunities.org/id/district-council/south-lakeland,30/04/2018,Human Resources,Cultural Environmental Regulatory & Planning Services,http://opendatacommunities.org/def/concept/finance/sercop/objective/104,NEWSQUEST MEDIA GROUP LTD,03102566,30-04-2018,0000077068,720,0,Streetscene LGV advert,191000,Facilities Advertising
South Lakeland District Council,http://opendatacommunities.org/id/district-council/south-lakeland,30/04/2018,Revenues and Benefits,Central Services,http://opendatacommunities.org/def/concept/finance/sercop/objective/102,VENN GROUP RECRUITMENT SOLUTIONS,,30-04-2018,0000077069,761.26,0,Agency Staff - A756938,261400,HR Temporary & Agency Staff
South Lakeland District Council,http://opendatacommunities.org/id/district-council/south-lakeland,30/04/2018,Revenues and Benefits,Central Services,http://opendatacommunities.org/def/concept/finance/sercop/objective/102,VENN GROUP RECRUITMENT SOLUTIONS,,30-04-2018,0000077070,1049.04,0,Agency Staff -  A756938,261400,HR Temporary & Agency Staff
South Lakeland District Council,http://opendatacommunities.org/id/district-council/south-lakeland,30/04/2018,Kendal Town Hall,Cultural Environmental Regulatory & Planning Services,http://opendatacommunities.org/def/concept/finance/sercop/objective/104,FARRERS,09023215,30-04-2018,0000077071,34.08,0,1 box of decaf sachets (fair trade) for,111200,Catering Food & Beverages
South Lakeland District Council,http://opendatacommunities.org/id/district-council/south-lakeland,30/04/2018,Community & Housing Group,Central Services,http://opendatacommunities.org/def/concept/finance/sercop/objective/102,NORTHERN HOUSING CONSORTIUM LTD,04361009,25-04-2018,0000077073,885,0,Full Membership April 2018- March 2018,250000,Housing
South Lakeland District Council,http://opendatacommunities.org/id/district-council/south-lakeland,30/04/2018,Business Support Community Services,Internal Trading Accounts,,EK MOTOR FACTORS LTD,00838524,25-04-2018,0000077076,70.48,0,Parts,381400,Vehicle Mgt Maintenance
South Lakeland District Council,http://opendatacommunities.org/id/district-council/south-lakeland,30/04/2018,Business Support Community Services,Internal Trading Accounts,,EK MOTOR FACTORS LTD,00838524,25-04-2018,0000077077,-6.3,0,Parts,381400,Vehicle Mgt Maintenance
South Lakeland District Council,http://opendatacommunities.org/id/district-council/south-lakeland,30/04/2018,Business Support Community Services,Internal Trading Accounts,,EK MOTOR FACTORS LTD,00838524,25-04-2018,0000077078,31.02,0,Parts,381400,Vehicle Mgt Maintenance
South Lakeland District Council,http://opendatacommunities.org/id/district-council/south-lakeland,30/04/2018,Business Support Community Services,Internal Trading Accounts,,TPS Preston,,25-04-2018,0000077079,18.3,0,Parts,381400,Vehicle Mgt Maintenance
South Lakeland District Council,http://opendatacommunities.org/id/district-council/south-lakeland,30/04/2018,Business Support Community Services,Internal Trading Accounts,,Verizon Connect UK Ltd,05265904,25-04-2018,0000077080,200,0,Annual fee for 70 vehicles from 01/06/18,361000,Public Transport Fleet Management
South Lakeland District Council,http://opendatacommunities.org/id/district-council/south-lakeland,30/04/2018,Business Support Community Services,Internal Trading Accounts,,HADWINS (LINDALE) LTD,00986050,25-04-2018,0000077081,814.96,0,Repair SL070,381600,Vehicle Mgt Leasing
South Lakeland District Council,http://opendatacommunities.org/id/district-council/south-lakeland,30/04/2018,Business Support Community Services,Transport Planning Policy,http://opendatacommunities.org/def/concept/finance/sercop/objective/107,CASTLE ALARMS 1981 LTD,09231500,25-04-2018,0000077082,3050,0,BT Redcare annual monitoring,192212,Facilities Security Equipment
South Lakeland District Council,http://opendatacommunities.org/id/district-council/south-lakeland,30/04/2018,Business Support Community Services,Cultural Environmental Regulatory & Planning Services,http://opendatacommunities.org/def/concept/finance/sercop/objective/104,GB Sign Solutions Ltd,09609330,25-04-2018,0000077083,65.25,0,Street nameplates,102400,Building Signage
South Lakeland District Council,http://opendatacommunities.org/id/district-council/south-lakeland,30/04/2018,Westmorland Centre Parking Office,Transport,http://opendatacommunities.org/def/concept/finance/sercop/objective/107,THE SIGN MAN,05748839,25-04-2018,0000077084,195,0,Extra signange,102400,Building Signage
South Lakeland District Council,http://opendatacommunities.org/id/district-council/south-lakeland,30/04/2018,Development Strategy,Planning and Development,,CASTERTON PARISH COUNCIL,,25-04-2018,0000077087,3751.88,0,CIL - Neighbourhood Funding Portion,908000,Public Bodies Council support services
South Lakeland District Council,http://opendatacommunities.org/id/district-council/south-lakeland,30/04/2018,Development Implementation,Central Services,http://opendatacommunities.org/def/concept/finance/sercop/objective/102,ADECCO UK LIMITED,00593232,25-04-2018,0000077089,325.38,0,Cleaner for SLDC - - April,261400,HR Temporary & Agency Staff
South Lakeland District Council,http://opendatacommunities.org/id/district-council/south-lakeland,30/04/2018,Development Implementation,Central Services,http://opendatacommunities.org/def/concept/finance/sercop/objective/102,ADECCO UK LIMITED,00593232,25-04-2018,0000077090,76.08,0,Cleaner for SLDC - - April 2018,261400,HR Temporary & Agency Staff
South Lakeland District Council,http://opendatacommunities.org/id/district-council/south-lakeland,30/04/2018,Business Support Community Services,Transport Planning Policy,http://opendatacommunities.org/def/concept/finance/sercop/objective/107,ARCO LIMITED,00133804,25-04-2018,0000077091,13.24,0,Cleaning materials,141100,Clothing Protective
South Lakeland District Council,http://opendatacommunities.org/id/district-council/south-lakeland,30/04/2018,Business Support Community Services,Cultural Environmental Regulatory & Planning Services,http://opendatacommunities.org/def/concept/finance/sercop/objective/104,ARCO LIMITED,00133804,25-04-2018,0000077091,67.4,0,Cleaning materials,141100,Clothing Protective
South Lakeland District Council,http://opendatacommunities.org/id/district-council/south-lakeland,30/04/2018,Business Support Community Services,Cultural Environmental Regulatory & Planning Services,http://opendatacommunities.org/def/concept/finance/sercop/objective/104,ARCO LIMITED,00133804,25-04-2018,0000077091,224.59,0,Cleaning materials,141100,Clothing Protective
South Lakeland District Council,http://opendatacommunities.org/id/district-council/south-lakeland,30/04/2018,Business Support Community Services,Cultural Environmental Regulatory & Planning Services,http://opendatacommunities.org/def/concept/finance/sercop/objective/104,ARCO LIMITED,00133804,25-04-2018,0000077092,19.7,0,Cleaning materials,141100,Clothing Protective
South Lakeland District Council,http://opendatacommunities.org/id/district-council/south-lakeland,30/04/2018,Business Support Community Services,Internal Trading Accounts,,VOLVO GROUP UK LTD,02190944,25-04-2018,0000077093,88,0,Parts,381000,Vehicle Mgt Commercial
South Lakeland District Council,http://opendatacommunities.org/id/district-council/south-lakeland,30/04/2018,Business Support Community Services,Internal Trading Accounts,,GARWOOD EUROPE LTD,04333504,25-04-2018,0000077094,136.98,0,Switches,182011,Environment Waste Management Consumables
South Lakeland District Council,http://opendatacommunities.org/id/district-council/south-lakeland,30/04/2018,Business Support Community Services,Internal Trading Accounts,,FAUN ZOELLER (UK) LTD,00751804,25-04-2018,0000077095,32.67,0,Washers,381400,Vehicle Mgt Maintenance
South Lakeland District Council,http://opendatacommunities.org/id/district-council/south-lakeland,30/04/2018,Business Support Community Services,Internal Trading Accounts,,TPS Preston,,25-04-2018,0000077096,32.59,0,Parts,381400,Vehicle Mgt Maintenance
South Lakeland District Council,http://opendatacommunities.org/id/district-council/south-lakeland,30/04/2018,Business Support Community Services,Internal Trading Accounts,,EK MOTOR FACTORS LTD,00838524,25-04-2018,0000077097,5.95,0,Parts,381400,Vehicle Mgt Maintenance
South Lakeland District Council,http://opendatacommunities.org/id/district-council/south-lakeland,30/04/2018,Business Support Community Services,Cultural Environmental Regulatory & Planning Services,http://opendatacommunities.org/def/concept/finance/sercop/objective/104,ARCO LIMITED,00133804,25-04-2018,0000077098,354.75,0,Cleaning materials,141100,Clothing Protective
South Lakeland District Council,http://opendatacommunities.org/id/district-council/south-lakeland,30/04/2018,Democratic and Member Services,Cultural Environmental Regulatory & Planning Services,http://opendatacommunities.org/def/concept/finance/sercop/objective/104,GRANTS- MISCELLANEOUS,,25-04-2018,0000077099,250,0,locality donation to purchace new,201700,Financial Services Grants
South Lakeland District Council,http://opendatacommunities.org/id/district-council/south-lakeland,30/04/2018,Environment and Housing,Housing Services,http://opendatacommunities.org/def/concept/finance/sercop/objective/108,Landlord,,25-04-2018,0000077101,700,0,Monthly rent ,250000,Housing
South Lakeland District Council,http://opendatacommunities.org/id/district-council/south-lakeland,30/04/2018,Development Implementation,Central Services,http://opendatacommunities.org/def/concept/finance/sercop/objective/102,MARGARET BARROW INTERIORS LTD T/A MBI,,25-04-2018,0000077102,944,0,CIRC9X-C table with 900mm diameter top,211200,Furniture & Soft Furn Office Furniture
South Lakeland District Council,http://opendatacommunities.org/id/district-council/south-lakeland,30/04/2018,Lake Wardens,Cultural Environmental Regulatory & Planning Services,http://opendatacommunities.org/def/concept/finance/sercop/objective/104,CENTURY PLASTICS LTD,02558642,25-04-2018,0000077103,758.3,0,30 x 8' x 4' Black Palight 3mm Boards,101400,Building General Materials
South Lakeland District Council,http://opendatacommunities.org/id/district-council/south-lakeland,30/04/2018,Electoral Services,Central Services,http://opendatacommunities.org/def/concept/finance/sercop/objective/102,SCI PRINT LTD,,25-04-2018,0000077104,2155.83,0,Printing Poll Cards,191600,Facilities Printing
South Lakeland District Council,http://opendatacommunities.org/id/district-council/south-lakeland,30/04/2018,Electoral Services,Central Services,http://opendatacommunities.org/def/concept/finance/sercop/objective/102,SCI PRINT LTD,,25-04-2018,0000077104,22971.35,0,Printing Poll Cards,191600,Facilities Printing
